Workbook

Sheet Calculation
A1: Wide-Spectrum Text-Analysis -- © 2015 David L. Hoover | G1: # Words to Analyze | H1: =VALUE(OFFSET(H1,EndRow,0)) -> 507 | I1: 482 | J1: 483 | K1: 506 | L1: 617 | M1: 492 | N1: 445 | O1: 465 | P1: 494 | Q1: 516 | R1: 507 | S1: 530 | T1: 491 | U1: 478 | V1: 474 | W1: 458 | X1: 459 | Y1: 514 | Z1: 508 | AA1: 482 | AB1: 643 | AC1: 675 | AD1: 602 | AE1: 589 | AF1: 780 | AG1: 474 | AH1: 529 | AI1: 514 | AJ1: 589 | AK1: 1550-1600 | AL1: 1600-1650 | AM1: 1550-1600 | AN1: Primary/Secondary | AO1: 100 1550-1600 words | AP1: 100 1600-1650 words | AQ1: 1816 1550-1600 words | AR1: 1330 1600-1650 words | AS1: 908 1550-1600 words | AT1: 665 1600-1650 words
A2: Wordlist Size | B2: =COUNTA(Author1!A1:A100003)-3 -> 6310 | C2: 50000 Max | E2: Max Auth. 1 words for Cell F2 is 3632 | F2: 100 | G2: =F2&" "&Author1&" words" -> 100 1550-1600 words | H2: =COUNTIF(OFFSET(H$11,0,0,$F2,1),">0")/H$1 -> 0.06114398422 | I2: =COUNTIF(OFFSET(I$11,0,0,$F2,1),">0")/I$1 -> 0.0601659751 | J2: 0.04554865424 | K2: 0.06916996047 | L2: 0.056726094 | M2: 0.08536585366 | N2: 0.1078651685 | O2: 0.07311827957 | P2: 0.0971659919 | Q2: 0.1143410853 | R2: 0.09861932939 | S2: 0.1037735849 | T2: 0.09368635438 | U2: 0.1380753138 | V2: 0.1223628692 | W2: 0.1331877729 | X2: 0.137254902 | Y2: 0.126459144 | Z2: 0.1358267717 | AA2: 0.1203319502 | AB2: 0.09953343701 | AC2: 0.02666666667 | AD2: 0.008305647841 | AE2: 0.006791171477 | AF2: 0.005128205128 | AG2: 0.008438818565 | AH2: 0.01134215501 | AI2: 0.01361867704 | AJ2: 0.02037351443 | AK2: faire | AL2: every | AN2: Writingsduring 1550-1600 (1) | AO2: 0.06114398422 | AP2: 0.0157790927 | AQ2: 0.4911242604 | AR2: 0.09270216963 | AS2: 0.3353057199 | AT2: 0.09270216963
A3: =Author1&" Sections" -> 1550-1600 Sections | B3: =COUNTA(Author1!B1:ALM1) -> 21 | C3: 1000 Max | E3: Max Auth. 2 words for Cell F3 is 2660 | F3: 100 | G3: =F3&" "&Author2&" words" -> 100 1600-1650 words | H3: =COUNTIF(OFFSET(H$11,Changepoint,0,$F3,1),">0")/H$1 -> 0.0157790927 | I3: 0.02074688797 | J3: 0.03105590062 | K3: 0.01581027668 | L3: 0.01944894652 | M3: 0.006097560976 | N3: 0.02696629213 | O3: 0.01505376344 | P3: 0.01417004049 | Q3: 0.01550387597 | R3: 0.009861932939 | S3: 0.01509433962 | T3: 0.01629327902 | U3: 0.02092050209 | V3: 0.01265822785 | W3: 0.008733624454 | X3: 0.01307189542 | Y3: 0.01167315175 | Z3: 0.01377952756 | AA3: 0.00622406639 | AB3: 0.01399688958 | AC3: 0.07259259259 | AD3: 0.08637873754 | AE3: 0.1001697793 | AF3: 0.08717948718 | AG3: 0.09493670886 | AH3: 0.1096408318 | AI3: 0.08560311284 | AJ3: 0.07470288625 | AK3: selfe | AL3: fresh | AN3: Writingsduring 1550-1600 (2) | AO3: 0.0601659751 | AP3: 0.02074688797 | AQ3: 0.489626556 | AR3: 0.101659751 | AS3: 0.367219917 | AT3: 0.101659751
A4: =Author2&" Sections" -> 1600-1650 Sections | B4: =COUNTA(Author2!A1:ALL1) -> 8 | C4: 1000 Max | E4: 100 | F4: 1816 | G4: =F4&" "&Author1&" words" -> 1816 1550-1600 words | H4: =COUNTIF(OFFSET(H$11,0,0,$F4,1),">0")/H$1 -> 0.4911242604 | I4: =COUNTIF(OFFSET(I$11,0,0,$F4,1),">0")/I$1 -> 0.489626556 | J4: 0.4803312629 | K4: 0.5 | L4: 0.5137763371 | M4: 0.5365853659 | N4: 0.5415730337 | O4: 0.4967741935 | P4: 0.5344129555 | Q4: 0.5174418605 | R4: 0.5088757396 | S4: 0.5264150943 | T4: 0.517311609 | U4: 0.5439330544 | V4: 0.5400843882 | W4: 0.5720524017 | X4: 0.5337690632 | Y4: 0.5622568093 | Z4: 0.5748031496 | AA4: 0.5663900415 | AB4: 0.5163297045 | AC4: 0.1303703704 | AD4: 0.06976744186 | AE4: 0.07809847199 | AF4: 0.06282051282 | AG4: 0.0970464135 | AH4: 0.1001890359 | AI4: 0.1167315175 | AJ4: 0.09677419355 | AK4: loue | AL4: love | AN4: Writingsduring 1550-1600 (3) | AO4: 0.04554865424 | AP4: 0.03105590062 | AQ4: 0.4803312629 | AR4: 0.1180124224 | AS4: 0.3602484472 | AT4: 0.1180124224
A5: =Author1&" Ind. Sections" -> 1550-1600 Ind. Sections | B5: =COUNTA(Author1Ind!A$1:CP$1) -> 0 | C5: 100 Max | E5: Keep | F5: 1330 | G5: =F5&" "&Author2&" words" -> 1330 1600-1650 words | H5: =COUNTIF(OFFSET(H$11,Changepoint,0,$F5,1),">0")/H$1 -> 0.09270216963 | I5: 0.101659751 | J5: 0.1180124224 | K5: 0.08893280632 | L5: 0.1166936791 | M5: 0.08130081301 | N5: 0.1078651685 | O5: 0.09892473118 | P5: 0.1012145749 | Q5: 0.1065891473 | R5: 0.1203155819 | S5: 0.1150943396 | T5: 0.1140529532 | U5: 0.1066945607 | V5: 0.09493670886 | W5: 0.096069869 | X5: 0.09803921569 | Y5: 0.07003891051 | Z5: 0.08661417323 | AA5: 0.07468879668 | AB5: 0.08553654743 | AC5: 0.4325925926 | AD5: 0.5315614618 | AE5: 0.533106961 | AF5: 0.4833333333 | AG5: 0.4915611814 | AH5: 0.5141776938 | AI5: 0.5175097276 | AJ5: 0.5110356537 | AK5: owne | AL5: green | AN5: Writingsduring 1550-1600 (4) | AO5: 0.06916996047 | AP5: 0.01581027668 | AQ5: 0.5 | AR5: 0.08893280632 | AS5: 0.371541502 | AT5: 0.08893280632
A6: =Author2&" Ind. Sections" -> 1600-1650 Ind. Sections | B6: =COUNTA(Author2Ind!A$1:BP$1) -> 0 | C6: 100 Max | E6: Enter Names for Authors below: | F6: 908 | G6: =F6&" "&Author1&" words" -> 908 1550-1600 words | H6: =COUNTIF(OFFSET(H$11,0,0,$F6,1),">0")/H$1 -> 0.3353057199 | I6: =COUNTIF(OFFSET(I$11,0,0,$F6,1),">0")/I$1 -> 0.367219917 | J6: 0.3602484472 | K6: 0.371541502 | L6: 0.3630470016 | M6: 0.3800813008 | N6: 0.4202247191 | O6: 0.3311827957 | P6: 0.4190283401 | Q6: 0.3856589147 | R6: 0.382642998 | S6: 0.3924528302 | T6: 0.3808553971 | U6: 0.4351464435 | V6: 0.44092827 | W6: 0.4410480349 | X6: 0.440087146 | Y6: 0.4474708171 | Z6: 0.468503937 | AA6: 0.4419087137 | AB6: 0.3950233281 | AC6: 0.1051851852 | AD6: 0.05315614618 | AE6: 0.05263157895 | AF6: 0.04871794872 | AG6: 0.07383966245 | AH6: 0.07372400756 | AI6: 0.08754863813 | AJ6: 0.07300509338 | AK6: euen | AL6: leaves | AN6: Writingsduring 1550-1600 (5) | AO6: 0.056726094 | AP6: 0.01944894652 | AQ6: 0.5137763371 | AR6: 0.1166936791 | AS6: 0.3630470016 | AT6: 0.1166936791
A7: Test Sections | B7: =COUNTA(Test!A1:GR1) -> 0 | C7: 100 Max | D7: Author 1: | E7: 1550-1600 | F7: 665 | G7: =F7&" "&Author2&" words" -> 665 1600-1650 words | H7: =COUNTIF(OFFSET(H$11,Changepoint,0,$F7,1),">0")/H$1 -> 0.09270216963 | I7: 0.101659751 | J7: 0.1180124224 | K7: 0.08893280632 | L7: 0.1166936791 | M7: 0.08130081301 | N7: 0.1078651685 | O7: 0.09892473118 | P7: 0.1012145749 | Q7: 0.1065891473 | R7: 0.1203155819 | S7: 0.1150943396 | T7: 0.1140529532 | U7: 0.1066945607 | V7: 0.09493670886 | W7: 0.096069869 | X7: 0.09803921569 | Y7: 0.07003891051 | Z7: 0.08661417323 | AA7: 0.07468879668 | AB7: 0.08553654743 | AC7: 0.3111111111 | AD7: 0.365448505 | AE7: 0.376910017 | AF7: 0.3397435897 | AG7: 0.4071729958 | AH7: 0.3856332703 | AI7: 0.3657587549 | AJ7: 0.3531409168 | AK7: soule | AL7: fair | AN7: Writing between 1550-1600 (1) | AO7: 0.08536585366 | AP7: 0.006097560976 | AQ7: 0.5365853659 | AR7: 0.08130081301 | AS7: 0.3800813008 | AT7: 0.08130081301
A8: Total Sections | B8: =VALUE(SUM(B3:B7)) -> 29 | C8: 2300 Max | D8: Author 2: | E8: 1600-1650 | G8: white = OK to edit | AK8: paine | AL8: hence | AN8: Writing between 1550-1600 (2) | AO8: 0.1078651685 | AP8: 0.02696629213 | AQ8: 0.5415730337 | AR8: 0.1078651685 | AS8: 0.4202247191 | AT8: 0.1078651685
A9: EndRow | B9: =COUNTA(Author1!A1:A50003)+7 -> 6320 | E9: Author 2--1st Word: | F9: 3651 | G9: 1550-1600 | AC9: 1600-1650 | AK9: can | AL9: hear | AN9: Writing between 1550-1600 (3) | AO9: 0.07311827957 | AP9: 0.01505376344 | AQ9: 0.4967741935 | AR9: 0.09892473118 | AS9: 0.3311827957 | AT9: 0.09892473118
A10: Distinctiveness Score | B10: =Author1&" Present %" -> 1550-1600 Present % | C10: =Author2&" Absent %" -> 1600-1650 Absent % | D10: ="Present "&Author1 -> Present 1550-1600 | E10: ="Absent "&Author2 -> Absent 1600-1650 | F10: Rank | G10: Word | H10: Writingsduring 1550-1600 (1) | I10: Writingsduring 1550-1600 (2) | J10: Writingsduring 1550-1600 (3) | K10: Writingsduring 1550-1600 (4) | L10: Writingsduring 1550-1600 (5) | M10: Writing between 1550-1600 (1) | N10: Writing between 1550-1600 (2) | O10: Writing between 1550-1600 (3) | P10: Writing between 1550-1600 (4) | Q10: Writing between 1550-1600 (5) | R10: Writing between 1550-1600 (6) | S10: Writing between 1550-1600 (7) | T10: Writing between 1550-1600 (8) | U10: Writing between 1550-1600 (9) | V10: Writing between 1550-1600 (10) | W10: Writing between 1550-1600 (11) | X10: Writing between 1550-1600 (12) | Y10: Writing between 1550-1600 (13) | Z10: Writing between 1550-1600 (14) | AA10: Writing between 1550-1600 (15) | AB10: Writing between 1550-1600 (16) | AC10: Writings from 1600-1650 (1) | AD10: Writings between 1600-1650 (1) | AE10: Writings between 1600-1650 (2) | AF10: Writings between 1600-1650 (3) | AG10: Writings during 1600-1650 (1) | AH10: Writings during 1600-1650 (2) | AI10: Writings during 1600-1650 (3) | AJ10: Writings during 1600-1650 (4) | AK10: thinke | AL10: o'er | AN10: Writing between 1550-1600 (4) | AO10: 0.0971659919 | AP10: 0.01417004049 | AQ10: 0.5344129555 | AR10: 0.1012145749 | AS10: 0.4190283401 | AT10: 0.1012145749
A11: =B11+C11 -> 1.857142857 | B11: =D11/Author1Sections -> 0.8571428571 | C11: =E11/Author2Sections -> 1 | D11: =COUNTIF(OFFSET(H11,0,0,1,Author1Sections),">0") -> 18 | E11: =COUNTIF(OFFSET(H11,0,Author1Sections,1,Author2Sections),"=0") -> 8 | F11: 91 | G11: faire | H11: 0.3 | I11: 0.1 | J11: 0.1 | K11: 0.1 | L11: 0.14836796 | M11: 0.1 | N11: 0.2 | O11: 0.2 | P11: 0 | Q11: 0.4 | R11: 0.3 | S11: 0 | T11: 0 | U11: 0.2 | V11: 0.1 | W11: 0.3 | X11: 0.4 | Y11: 0.2 | Z11: 0.4 | AA11: 0.1 | AB11: 0.5629838 | AC11: 0 | AD11: 0 | AE11: 0 | AF11: 0 | AG11: 0 | AH11: 0 | AI11: 0 | AJ11: 0 | AK11: stella | AL11: tears | AN11: Writing between 1550-1600 (5) | AO11: 0.1143410853 | AP11: 0.01550387597 | AQ11: 0.5174418605 | AR11: 0.1065891473 | AS11: 0.3856589147 | AT11: 0.1065891473
A12: =B12+C12 -> 1.761904762 | B12: =D12/Author1Sections -> 0.7619047619 | C12: =E12/Author2Sections -> 1 | D12: =COUNTIF(OFFSET(H12,0,0,1,Author1Sections),">0") -> 16 | E12: =COUNTIF(OFFSET(H12,0,Author1Sections,1,Author2Sections),"=0") -> 8 | F12: 104 | G12: selfe | H12: 0 | I12: 0.1 | J12: 0.3 | K12: 0 | L12: 0 | M12: 0.2 | N12: 0.2 | O12: 0 | P12: 0.1 | Q12: 0 | R12: 0.1 | S12: 0.1 | T12: 0.3 | U12: 0.3 | V12: 0.3 | W12: 0.2 | X12: 0.2 | Y12: 0.3 | Z12: 0.4 | AA12: 0.4 | AB12: 0.35186487 | AC12: 0 | AD12: 0 | AE12: 0 | AF12: 0 | AG12: 0 | AH12: 0 | AI12: 0 | AJ12: 0 | AK12: haue | AL12: appear | AN12: Writing between 1550-1600 (6) | AO12: 0.09861932939 | AP12: 0.009861932939 | AQ12: 0.5088757396 | AR12: 0.1203155819 | AS12: 0.382642998 | AT12: 0.1203155819
A13: =B13+C13 -> 1.714285714 | B13: =D13/Author1Sections -> 0.7142857143 | C13: =E13/Author2Sections -> 1 | D13: =COUNTIF(OFFSET(H13,0,0,1,Author1Sections),">0") -> 15 | E13: =COUNTIF(OFFSET(H13,0,Author1Sections,1,Author2Sections),"=0") -> 8 | F13: 38 | G13: loue | H13: 0 | I13: 0 | J13: 0 | K13: 0 | L13: 0 | M13: 0.1 | N13: 0.4 | O13: 0 | P13: 0.4 | Q13: 1.1 | R13: 0.8 | S13: 0.9 | T13: 0.7 | U13: 0.5 | V13: 1.2 | W13: 2 | X13: 0.5 | Y13: 0.9 | Z13: 0.4 | AA13: 0.7 | AB13: 0.42223787 | AC13: 0 | AD13: 0 | AE13: 0 | AF13: 0 | AG13: 0 | AH13: 0 | AI13: 0 | AJ13: 0 | AK13: stellas | AL13: seen | AN13: Writing between 1550-1600 (7) | AO13: 0.1037735849 | AP13: 0.01509433962 | AQ13: 0.5264150943 | AR13: 0.1150943396 | AS13: 0.3924528302 | AT13: 0.1150943396
A14: =B14+C14 -> 1.714285714 | B14: =D14/Author1Sections -> 0.7142857143 | C14: =E14/Author2Sections -> 1 | D14: =COUNTIF(OFFSET(H14,0,0,1,Author1Sections),">0") -> 15 | E14: =COUNTIF(OFFSET(H14,0,Author1Sections,1,Author2Sections),"=0") -> 8 | F14: 131 | G14: owne | H14: 0.2 | I14: 0.1 | J14: 0.2 | K14: 0.2 | L14: 0.14836796 | M14: 0.3 | N14: 0.1 | O14: 0 | P14: 0.1 | Q14: 0.1 | R14: 0 | S14: 0.2 | T14: 0 | U14: 0 | V14: 0 | W14: 0.4 | X14: 0 | Y14: 0.3 | Z14: 0.1 | AA14: 0.3 | AB14: 0.14074595 | AC14: 0 | AD14: 0 | AE14: 0 | AF14: 0 | AG14: 0 | AH14: 0 | AI14: 0 | AJ14: 0 | AK14: alas | AL14: fear | AN14: Writing between 1550-1600 (8) | AO14: 0.09368635438 | AP14: 0.01629327902 | AQ14: 0.517311609 | AR14: 0.1140529532 | AS14: 0.3808553971 | AT14: 0.1140529532
A15: =B15+C15 -> 1.666666667 | B15: =D15/Author1Sections -> 0.6666666667 | C15: =E15/Author2Sections -> 1 | D15: =COUNTIF(OFFSET(H15,0,0,1,Author1Sections),">0") -> 14 | E15: =COUNTIF(OFFSET(H15,0,Author1Sections,1,Author2Sections),"=0") -> 8 | F15: 145 | G15: euen | H15: 0 | I15: 0 | J15: 0 | K15: 0 | L15: 0 | M15: 0.1 | N15: 0.1 | O15: 0.2 | P15: 0.3 | Q15: 0.1 | R15: 0.3 | S15: 0.1 | T15: 0.2 | U15: 0 | V15: 0.2 | W15: 0.4 | X15: 0 | Y15: 0.1 | Z15: 0.2 | AA15: 0.2 | AB15: 0.07037298 | AC15: 0 | AD15: 0 | AE15: 0 | AF15: 0 | AG15: 0 | AH15: 0 | AI15: 0 | AJ15: 0 | AK15: giue | AL15: hill | AN15: Writing between 1550-1600 (9) | AO15: 0.1380753138 | AP15: 0.02092050209 | AQ15: 0.5439330544 | AR15: 0.1066945607 | AS15: 0.4351464435 | AT15: 0.1066945607
A16: =B16+C16 -> 1.666666667 | B16: =D16/Author1Sections -> 0.6666666667 | C16: =E16/Author2Sections -> 1 | D16: =COUNTIF(OFFSET(H16,0,0,1,Author1Sections),">0") -> 14 | E16: =COUNTIF(OFFSET(H16,0,Author1Sections,1,Author2Sections),"=0") -> 8 | F16: 183 | G16: soule | H16: 0 | I16: 0 | J16: 0.2 | K16: 0.1 | L16: 0 | M16: 0.1 | N16: 0.2 | O16: 0.1 | P16: 0 | Q16: 0.2 | R16: 0 | S16: 0.1 | T16: 0 | U16: 0.1 | V16: 0.1 | W16: 0.3 | X16: 0 | Y16: 0.1 | Z16: 0.1 | AA16: 0.1 | AB16: 0.14074595 | AC16: 0 | AD16: 0 | AE16: 0 | AF16: 0 | AG16: 0 | AH16: 0 | AI16: 0 | AJ16: 0 | AK16: name | AL16: upon | AN16: Writing between 1550-1600 (10) | AO16: 0.1223628692 | AP16: 0.01265822785 | AQ16: 0.5400843882 | AR16: 0.09493670886 | AS16: 0.44092827 | AT16: 0.09493670886
A17: =B17+C17 -> 1.666666667 | B17: =D17/Author1Sections -> 0.6666666667 | C17: =E17/Author2Sections -> 1 | D17: =COUNTIF(OFFSET(H17,0,0,1,Author1Sections),">0") -> 14 | E17: =COUNTIF(OFFSET(H17,0,Author1Sections,1,Author2Sections),"=0") -> 8 | F17: 220 | G17: paine | H17: 0.1 | I17: 0 | J17: 0 | K17: 0.2 | L17: 0.07418398 | M17: 0.1 | N17: 0 | O17: 0 | P17: 0.1 | Q17: 0.1 | R17: 0.2 | S17: 0.1 | T17: 0 | U17: 0 | V17: 0.1 | W17: 0 | X17: 0.1 | Y17: 0.1 | Z17: 0.1 | AA17: 0.1 | AB17: 0.14074595 | AC17: 0 | AD17: 0 | AE17: 0 | AF17: 0 | AG17: 0 | AH17: 0 | AI17: 0 | AJ17: 0 | AK17: hart | AL17: down | AN17: Writing between 1550-1600 (11) | AO17: 0.1331877729 | AP17: 0.008733624454 | AQ17: 0.5720524017 | AR17: 0.096069869 | AS17: 0.4410480349 | AT17: 0.096069869
A18: =B18+C18 -> 1.654761905 | B18: =D18/Author1Sections -> 0.9047619048 | C18: =E18/Author2Sections -> 0.75 | D18: =COUNTIF(OFFSET(H18,0,0,1,Author1Sections),">0") -> 19 | E18: =COUNTIF(OFFSET(H18,0,Author1Sections,1,Author2Sections),"=0") -> 6 | F18: 77 | G18: can | H18: 0.1 | I18: 0 | J18: 0.3 | K18: 0.1 | L18: 0.14836796 | M18: 0.3 | N18: 0.5 | O18: 0.3 | P18: 0 | Q18: 0.3 | R18: 0.1 | S18: 0.4 | T18: 0.8 | U18: 0.1 | V18: 0.3 | W18: 0.3 | X18: 0.1 | Y18: 0.2 | Z18: 0.2 | AA18: 0.2 | AB18: 0.07037298 | AC18: 0.19762845 | AD18: 0 | AE18: 0 | AF18: 0 | AG18: 0 | AH18: 0.2 | AI18: 0 | AJ18: 0 | AK18: poore | AL18: FALSE | AN18: Writing between 1550-1600 (12) | AO18: 0.137254902 | AP18: 0.01307189542 | AQ18: 0.5337690632 | AR18: 0.09803921569 | AS18: 0.440087146 | AT18: 0.09803921569
A19: =B19+C19 -> 1.619047619 | B19: =D19/Author1Sections -> 0.619047619 | C19: =E19/Author2Sections -> 1 | D19: =COUNTIF(OFFSET(H19,0,0,1,Author1Sections),">0") -> 13 | E19: =COUNTIF(OFFSET(H19,0,Author1Sections,1,Author2Sections),"=0") -> 8 | F19: 185 | G19: thinke | H19: 0 | I19: 0.1 | J19: 0 | K19: 0 | L19: 0 | M19: 0.1 | N19: 0.1 | O19: 0.1 | P19: 0 | Q19: 0.1 | R19: 0 | S19: 0.3 | T19: 0.2 | U19: 0.3 | V19: 0.1 | W19: 0.2 | X19: 0.1 | Y19: 0 | Z19: 0.1 | AA19: 0.2 | AB19: 0 | AC19: 0 | AD19: 0 | AE19: 0 | AF19: 0 | AG19: 0 | AH19: 0 | AI19: 0 | AJ19: 0 | AK19: sweete | AL19: weep | AN19: Writing between 1550-1600 (13) | AO19: 0.126459144 | AP19: 0.01167315175 | AQ19: 0.5622568093 | AR19: 0.07003891051 | AS19: 0.4474708171 | AT19: 0.07003891051
A20: =B20+C20 -> 1.571428571 | B20: =D20/Author1Sections -> 0.5714285714 | C20: =E20/Author2Sections -> 1 | D20: =COUNTIF(OFFSET(H20,0,0,1,Author1Sections),">0") -> 12 | E20: =COUNTIF(OFFSET(H20,0,Author1Sections,1,Author2Sections),"=0") -> 8 | F20: 98 | G20: stella | H20: 0 | I20: 0 | J20: 0 | K20: 0 | L20: 0 | M20: 0 | N20: 0 | O20: 0 | P20: 0.1 | Q20: 0.3 | R20: 0.3 | S20: 0.3 | T20: 0.2 | U20: 0.3 | V20: 0.6 | W20: 0.2 | X20: 0.5 | Y20: 0 | Z20: 0.3 | AA20: 0.3 | AB20: 0.5629838 | AC20: 0 | AD20: 0 | AE20: 0 | AF20: 0 | AG20: 0 | AH20: 0 | AI20: 0 | AJ20: 0 | AK20: because | AL20: bear | AN20: Writing between 1550-1600 (14) | AO20: 0.1358267717 | AP20: 0.01377952756 | AQ20: 0.5748031496 | AR20: 0.08661417323 | AS20: 0.468503937 | AT20: 0.08661417323
A21: =B21+C21 -> 1.571428571 | B21: =D21/Author1Sections -> 0.5714285714 | C21: =E21/Author2Sections -> 1 | D21: =COUNTIF(OFFSET(H21,0,0,1,Author1Sections),">0") -> 12 | E21: =COUNTIF(OFFSET(H21,0,Author1Sections,1,Author2Sections),"=0") -> 8 | F21: 102 | G21: haue | H21: 0 | I21: 0 | J21: 0 | K21: 0 | L21: 0 | M21: 0.3 | N21: 0.5 | O21: 0.7 | P21: 0.3 | Q21: 0.1 | R21: 0.5 | S21: 0.1 | T21: 0 | U21: 0 | V21: 0.4 | W21: 0 | X21: 0 | Y21: 0.1 | Z21: 0.4 | AA21: 0.3 | AB21: 0.21111894 | AC21: 0 | AD21: 0 | AE21: 0 | AF21: 0 | AG21: 0 | AH21: 0 | AI21: 0 | AJ21: 0 | AK21: teares | AL21: ask'd | AN21: Writing between 1550-1600 (15) | AO21: 0.1203319502 | AP21: 0.00622406639 | AQ21: 0.5663900415 | AR21: 0.07468879668 | AS21: 0.4419087137 | AT21: 0.07468879668
A22: =B22+C22 -> 1.571428571 | B22: =D22/Author1Sections -> 0.5714285714 | C22: =E22/Author2Sections -> 1 | D22: =COUNTIF(OFFSET(H22,0,0,1,Author1Sections),">0") -> 12 | E22: =COUNTIF(OFFSET(H22,0,Author1Sections,1,Author2Sections),"=0") -> 8 | F22: 184 | G22: stellas | H22: 0 | I22: 0 | J22: 0 | K22: 0 | L22: 0 | M22: 0 | N22: 0 | O22: 0 | P22: 0 | Q22: 0.2 | R22: 0.3 | S22: 0.1 | T22: 0.3 | U22: 0.1 | V22: 0.3 | W22: 0.2 | X22: 0.1 | Y22: 0.1 | Z22: 0.1 | AA22: 0.1 | AB22: 0.07037298 | AC22: 0 | AD22: 0 | AE22: 0 | AF22: 0 | AG22: 0 | AH22: 0 | AI22: 0 | AJ22: 0 | AK22: doe | AL22: cheek | AN22: Writing between 1550-1600 (16) | AO22: 0.09953343701 | AP22: 0.01399688958 | AQ22: 0.5163297045 | AR22: 0.08553654743 | AS22: 0.3950233281 | AT22: 0.08553654743
A23: =B23+C23 -> 1.541666667 | B23: =D23/Author1Sections -> 0.6666666667 | C23: =E23/Author2Sections -> 0.875 | D23: =COUNTIF(OFFSET(H23,0,0,1,Author1Sections),">0") -> 14 | E23: =COUNTIF(OFFSET(H23,0,Author1Sections,1,Author2Sections),"=0") -> 7 | F23: 160 | G23: alas | H23: 0 | I23: 0 | J23: 0 | K23: 0 | L23: 0.07418398 | M23: 0.1 | N23: 0.1 | O23: 0 | P23: 0 | Q23: 0.1 | R23: 0.1 | S23: 0.1 | T23: 0 | U23: 0.3 | V23: 0.1 | W23: 0.3 | X23: 0.1 | Y23: 0.1 | Z23: 0.3 | AA23: 0.1 | AB23: 0.14074595 | AC23: 0 | AD23: 0 | AE23: 0 | AF23: 0.067659 | AG23: 0 | AH23: 0 | AI23: 0 | AJ23: 0 | AK23: blisse | AL23: form | AM23: 1600-1650 | AN23: Writings from 1600-1650 (1) | AO23: 0.02666666667 | AP23: 0.07259259259 | AQ23: 0.1303703704 | AR23: 0.4325925926 | AS23: 0.1051851852 | AT23: 0.3111111111
A24: =B24+C24 -> 1.523809524 | B24: =D24/Author1Sections -> 0.5238095238 | C24: =E24/Author2Sections -> 1 | D24: =COUNTIF(OFFSET(H24,0,0,1,Author1Sections),">0") -> 11 | E24: =COUNTIF(OFFSET(H24,0,Author1Sections,1,Author2Sections),"=0") -> 8 | F24: 147 | G24: giue | H24: 0 | I24: 0 | J24: 0 | K24: 0 | L24: 0 | M24: 0.2 | N24: 0.5 | O24: 0.2 | P24: 0 | Q24: 0 | R24: 0 | S24: 0 | T24: 0.2 | U24: 0.1 | V24: 0.2 | W24: 0 | X24: 0.3 | Y24: 0.3 | Z24: 0.1 | AA24: 0.3 | AB24: 0.14074595 | AC24: 0 | AD24: 0 | AE24: 0 | AF24: 0 | AG24: 0 | AH24: 0 | AI24: 0 | AJ24: 0 | AK24: leaue | AL24: stream | AN24: Writings between 1600-1650 (1) | AO24: 0.008305647841 | AP24: 0.08637873754 | AQ24: 0.06976744186 | AR24: 0.5315614618 | AS24: 0.05315614618 | AT24: 0.365448505
A25: =B25+C25 -> 1.523809524 | B25: =D25/Author1Sections -> 0.5238095238 | C25: =E25/Author2Sections -> 1 | D25: =COUNTIF(OFFSET(H25,0,0,1,Author1Sections),">0") -> 11 | E25: =COUNTIF(OFFSET(H25,0,Author1Sections,1,Author2Sections),"=0") -> 8 | F25: 191 | G25: name | H25: 0.2 | I25: 0.2 | J25: 0 | K25: 0 | L25: 0 | M25: 0 | N25: 0.1 | O25: 0.1 | P25: 0 | Q25: 0.2 | R25: 0.2 | S25: 0 | T25: 0.1 | U25: 0 | V25: 0.2 | W25: 0.2 | X25: 0 | Y25: 0.2 | Z25: 0 | AA25: 0.2 | AB25: 0 | AC25: 0 | AD25: 0 | AE25: 0 | AF25: 0 | AG25: 0 | AH25: 0 | AI25: 0 | AJ25: 0 | AK25: wise | AL25: visage | AN25: Writings between 1600-1650 (2) | AO25: 0.006791171477 | AP25: 0.1001697793 | AQ25: 0.07809847199 | AR25: 0.533106961 | AS25: 0.05263157895 | AT25: 0.376910017
A26: =B26+C26 -> 1.523809524 | B26: =D26/Author1Sections -> 0.5238095238 | C26: =E26/Author2Sections -> 1 | D26: =COUNTIF(OFFSET(H26,0,0,1,Author1Sections),">0") -> 11 | E26: =COUNTIF(OFFSET(H26,0,Author1Sections,1,Author2Sections),"=0") -> 8 | F26: 202 | G26: hart | H26: 0 | I26: 0 | J26: 0 | K26: 0 | L26: 0 | M26: 0.1 | N26: 0 | O26: 0 | P26: 0.1 | Q26: 0.1 | R26: 0 | S26: 0 | T26: 0.1 | U26: 0.1 | V26: 0.2 | W26: 0 | X26: 0.2 | Y26: 0.1 | Z26: 0.2 | AA26: 0.3 | AB26: 0.21111894 | AC26: 0 | AD26: 0 | AE26: 0 | AF26: 0 | AG26: 0 | AH26: 0 | AI26: 0 | AJ26: 0 | AK26: downe | AL26: vows | AN26: Writings between 1600-1650 (3) | AO26: 0.005128205128 | AP26: 0.08717948718 | AQ26: 0.06282051282 | AR26: 0.4833333333 | AS26: 0.04871794872 | AT26: 0.3397435897
A27: =B27+C27 -> 1.523809524 | B27: =D27/Author1Sections -> 0.5238095238 | C27: =E27/Author2Sections -> 1 | D27: =COUNTIF(OFFSET(H27,0,0,1,Author1Sections),">0") -> 11 | E27: =COUNTIF(OFFSET(H27,0,Author1Sections,1,Author2Sections),"=0") -> 8 | F27: 233 | G27: poore | H27: 0 | I27: 0 | J27: 0 | K27: 0 | L27: 0 | M27: 0.2 | N27: 0.2 | O27: 0.2 | P27: 0.1 | Q27: 0.1 | R27: 0.1 | S27: 0.1 | T27: 0 | U27: 0.1 | V27: 0 | W27: 0 | X27: 0 | Y27: 0.2 | Z27: 0 | AA27: 0.2 | AB27: 0.07037298 | AC27: 0 | AD27: 0 | AE27: 0 | AF27: 0 | AG27: 0 | AH27: 0 | AI27: 0 | AJ27: 0 | AK27: neuer | AL27: hair | AN27: Writings during 1600-1650 (1) | AO27: 0.008438818565 | AP27: 0.09493670886 | AQ27: 0.0970464135 | AR27: 0.4915611814 | AS27: 0.07383966245 | AT27: 0.4071729958
A28: =B28+C28 -> 1.523809524 | B28: =D28/Author1Sections -> 0.5238095238 | C28: =E28/Author2Sections -> 1 | D28: =COUNTIF(OFFSET(H28,0,0,1,Author1Sections),">0") -> 11 | E28: =COUNTIF(OFFSET(H28,0,Author1Sections,1,Author2Sections),"=0") -> 8 | F28: 271 | G28: sweete | H28: 0.1 | I28: 0.1 | J28: 0 | K28: 0.1 | L28: 0.07418398 | M28: 0.1 | N28: 0.1 | O28: 0 | P28: 0 | Q28: 0 | R28: 0 | S28: 0 | T28: 0.1 | U28: 0 | V28: 0.1 | W28: 0 | X28: 0.1 | Y28: 0 | Z28: 0.1 | AA28: 0 | AB28: 0.2814919 | AC28: 0 | AD28: 0 | AE28: 0 | AF28: 0 | AG28: 0 | AH28: 0 | AI28: 0 | AJ28: 0 | AK28: most | AL28: have | AN28: Writings during 1600-1650 (2) | AO28: 0.01134215501 | AP28: 0.1096408318 | AQ28: 0.1001890359 | AR28: 0.5141776938 | AS28: 0.07372400756 | AT28: 0.3856332703
A29: =B29+C29 -> 1.494047619 | B29: =D29/Author1Sections -> 0.619047619 | C29: =E29/Author2Sections -> 0.875 | D29: =COUNTIF(OFFSET(H29,0,0,1,Author1Sections),">0") -> 13 | E29: =COUNTIF(OFFSET(H29,0,Author1Sections,1,Author2Sections),"=0") -> 7 | F29: 176 | G29: because | H29: 0 | I29: 0.1 | J29: 0.1 | K29: 0 | L29: 0 | M29: 0 | N29: 0.3 | O29: 0.1 | P29: 0 | Q29: 0.1 | R29: 0.1 | S29: 0.3 | T29: 0.1 | U29: 0.1 | V29: 0.2 | W29: 0 | X29: 0 | Y29: 0.2 | Z29: 0.1 | AA29: 0.1 | AB29: 0 | AC29: 0.065876156 | AD29: 0 | AE29: 0 | AF29: 0 | AG29: 0 | AH29: 0 | AI29: 0 | AJ29: 0 | AK29: ioy | AL29: give | AN29: Writings during 1600-1650 (3) | AO29: 0.01361867704 | AP29: 0.08560311284 | AQ29: 0.1167315175 | AR29: 0.5175097276 | AS29: 0.08754863813 | AT29: 0.3657587549
A30: =B30+C30 -> 1.476190476 | B30: =D30/Author1Sections -> 0.4761904762 | C30: =E30/Author2Sections -> 1 | D30: =COUNTIF(OFFSET(H30,0,0,1,Author1Sections),">0") -> 10 | E30: =COUNTIF(OFFSET(H30,0,Author1Sections,1,Author2Sections),"=0") -> 8 | F30: 205 | G30: teares | H30: 0.2 | I30: 0.1 | J30: 0 | K30: 0 | L30: 0.14836796 | M30: 0 | N30: 0 | O30: 0 | P30: 0 | Q30: 0.1 | R30: 0 | S30: 0 | T30: 0 | U30: 0.1 | V30: 0 | W30: 0.1 | X30: 0.1 | Y30: 0 | Z30: 0.1 | AA30: 0.4 | AB30: 0.2814919 | AC30: 0 | AD30: 0 | AE30: 0 | AF30: 0 | AG30: 0 | AH30: 0 | AI30: 0 | AJ30: 0 | AK30: deare | AL30: youth | AN30: Writings during 1600-1650 (4) | AO30: 0.02037351443 | AP30: 0.07470288625 | AQ30: 0.09677419355 | AR30: 0.5110356537 | AS30: 0.07300509338 | AT30: 0.3531409168
A31: =B31+C31 -> 1.476190476 | B31: =D31/Author1Sections -> 0.4761904762 | C31: =E31/Author2Sections -> 1 | D31: =COUNTIF(OFFSET(H31,0,0,1,Author1Sections),">0") -> 10 | E31: =COUNTIF(OFFSET(H31,0,Author1Sections,1,Author2Sections),"=0") -> 8 | F31: 216 | G31: doe | H31: 0 | I31: 0 | J31: 0 | K31: 0.1 | L31: 0 | M31: 0 | N31: 0.1 | O31: 0 | P31: 0 | Q31: 0.1 | R31: 0.1 | S31: 0 | T31: 0.1 | U31: 0.3 | V31: 0.1 | W31: 0.4 | X31: 0 | Y31: 0.2 | Z31: 0 | AA31: 0 | AB31: 0.14074595 | AC31: 0 | AD31: 0 | AE31: 0 | AF31: 0 | AG31: 0 | AH31: 0 | AI31: 0 | AJ31: 0 | AK31: heau'nly | AL31: head
A32: =B32+C32 -> 1.476190476 | B32: =D32/Author1Sections -> 0.4761904762 | C32: =E32/Author2Sections -> 1 | D32: =COUNTIF(OFFSET(H32,0,0,1,Author1Sections),">0") -> 10 | E32: =COUNTIF(OFFSET(H32,0,Author1Sections,1,Author2Sections),"=0") -> 8 | F32: 241 | G32: blisse | H32: 0 | I32: 0 | J32: 0 | K32: 0 | L32: 0.07418398 | M32: 0 | N32: 0 | O32: 0 | P32: 0.1 | Q32: 0 | R32: 0 | S32: 0 | T32: 0.1 | U32: 0.2 | V32: 0.1 | W32: 0.2 | X32: 0.4 | Y32: 0 | Z32: 0.1 | AA32: 0.1 | AB32: 0.07037298 | AC32: 0 | AD32: 0 | AE32: 0 | AF32: 0 | AG32: 0 | AH32: 0 | AI32: 0 | AJ32: 0 | AK32: onely | AL32: look
A33: =B33+C33 -> 1.476190476 | B33: =D33/Author1Sections -> 0.4761904762 | C33: =E33/Author2Sections -> 1 | D33: =COUNTIF(OFFSET(H33,0,0,1,Author1Sections),">0") -> 10 | E33: =COUNTIF(OFFSET(H33,0,Author1Sections,1,Author2Sections),"=0") -> 8 | F33: 246 | G33: leaue | H33: 0 | I33: 0 | J33: 0 | K33: 0 | L33: 0 | M33: 0 | N33: 0.1 | O33: 0 | P33: 0.1 | Q33: 0.3 | R33: 0 | S33: 0 | T33: 0.1 | U33: 0.2 | V33: 0.1 | W33: 0.1 | X33: 0.1 | Y33: 0 | Z33: 0.2 | AA33: 0.2 | AB33: 0 | AC33: 0 | AD33: 0 | AE33: 0 | AF33: 0 | AG33: 0 | AH33: 0 | AI33: 0 | AJ33: 0 | AK33: vaine | AL33: under
A34: =B34+C34 -> 1.476190476 | B34: =D34/Author1Sections -> 0.4761904762 | C34: =E34/Author2Sections -> 1 | D34: =COUNTIF(OFFSET(H34,0,0,1,Author1Sections),">0") -> 10 | E34: =COUNTIF(OFFSET(H34,0,Author1Sections,1,Author2Sections),"=0") -> 8 | F34: 255 | G34: wise | H34: 0 | I34: 0 | J34: 0 | K34: 0.2 | L34: 0 | M34: 0.1 | N34: 0.1 | O34: 0.1 | P34: 0 | Q34: 0.1 | R34: 0 | S34: 0.2 | T34: 0.2 | U34: 0 | V34: 0 | W34: 0.1 | X34: 0.2 | Y34: 0.2 | Z34: 0 | AA34: 0 | AB34: 0 | AC34: 0 | AD34: 0 | AE34: 0 | AF34: 0 | AG34: 0 | AH34: 0 | AI34: 0 | AJ34: 0 | AK34: stellaes | AL34: live
A35: =B35+C35 -> 1.476190476 | B35: =D35/Author1Sections -> 0.4761904762 | C35: =E35/Author2Sections -> 1 | D35: =COUNTIF(OFFSET(H35,0,0,1,Author1Sections),">0") -> 10 | E35: =COUNTIF(OFFSET(H35,0,Author1Sections,1,Author2Sections),"=0") -> 8 | F35: 261 | G35: downe | H35: 0.1 | I35: 0.1 | J35: 0 | K35: 0.1 | L35: 0.22255193 | M35: 0 | N35: 0.1 | O35: 0.1 | P35: 0 | Q35: 0.1 | R35: 0 | S35: 0 | T35: 0 | U35: 0 | V35: 0 | W35: 0.1 | X35: 0 | Y35: 0.1 | Z35: 0 | AA35: 0 | AB35: 0.21111894 | AC35: 0 | AD35: 0 | AE35: 0 | AF35: 0 | AG35: 0 | AH35: 0 | AI35: 0 | AJ35: 0 | AK35: proue | AL35: than
A36: =B36+C36 -> 1.476190476 | B36: =D36/Author1Sections -> 0.4761904762 | C36: =E36/Author2Sections -> 1 | D36: =COUNTIF(OFFSET(H36,0,0,1,Author1Sections),">0") -> 10 | E36: =COUNTIF(OFFSET(H36,0,Author1Sections,1,Author2Sections),"=0") -> 8 | F36: 289 | G36: neuer | H36: 0 | I36: 0 | J36: 0 | K36: 0 | L36: 0 | M36: 0 | N36: 0.2 | O36: 0.1 | P36: 0.1 | Q36: 0.1 | R36: 0 | S36: 0.1 | T36: 0.1 | U36: 0.2 | V36: 0 | W36: 0.1 | X36: 0 | Y36: 0.2 | Z36: 0.1 | AA36: 0 | AB36: 0 | AC36: 0 | AD36: 0 | AE36: 0 | AF36: 0 | AG36: 0 | AH36: 0 | AI36: 0 | AJ36: 0 | AK36: beautie | AL36: again
A37: =B37+C37 -> 1.452380952 | B37: =D37/Author1Sections -> 0.9523809524 | C37: =E37/Author2Sections -> 0.5 | D37: =COUNTIF(OFFSET(H37,0,0,1,Author1Sections),">0") -> 20 | E37: =COUNTIF(OFFSET(H37,0,Author1Sections,1,Author2Sections),"=0") -> 4 | F37: 65 | G37: most | H37: 0 | I37: 0.2 | J37: 0.2 | K37: 0.1 | L37: 0.2967359 | M37: 0.3 | N37: 0.2 | O37: 0.1 | P37: 0.4 | Q37: 0.7 | R37: 0.3 | S37: 0.3 | T37: 0.2 | U37: 0.1 | V37: 0.3 | W37: 0.4 | X37: 0.1 | Y37: 0.5 | Z37: 0.3 | AA37: 0.1 | AB37: 0.35186487 | AC37: 0.19762845 | AD37: 0 | AE37: 0.2 | AF37: 0 | AG37: 0 | AH37: 0.1 | AI37: 0 | AJ37: 0.17730497 | AK37: mee | AL37: us
A38: =B38+C38 -> 1.428571429 | B38: =D38/Author1Sections -> 0.4285714286 | C38: =E38/Author2Sections -> 1 | D38: =COUNTIF(OFFSET(H38,0,0,1,Author1Sections),">0") -> 9 | E38: =COUNTIF(OFFSET(H38,0,Author1Sections,1,Author2Sections),"=0") -> 8 | F38: 156 | G38: ioy | H38: 0 | I38: 0 | J38: 0 | K38: 0 | L38: 0 | M38: 0 | N38: 0 | O38: 0 | P38: 0.2 | Q38: 0 | R38: 0.1 | S38: 0.1 | T38: 0 | U38: 0 | V38: 0.1 | W38: 0 | X38: 0.4 | Y38: 0.3 | Z38: 0.2 | AA38: 0.1 | AB38: 0.5629838 | AC38: 0 | AD38: 0 | AE38: 0 | AF38: 0 | AG38: 0 | AH38: 0 | AI38: 0 | AJ38: 0 | AK38: vertues | AL38: winds
A39: =B39+C39 -> 1.428571429 | B39: =D39/Author1Sections -> 0.4285714286 | C39: =E39/Author2Sections -> 1 | D39: =COUNTIF(OFFSET(H39,0,0,1,Author1Sections),">0") -> 9 | E39: =COUNTIF(OFFSET(H39,0,Author1Sections,1,Author2Sections),"=0") -> 8 | F39: 215 | G39: deare | H39: 0 | I39: 0.5 | J39: 0.1 | K39: 0 | L39: 0 | M39: 0 | N39: 0 | O39: 0 | P39: 0.2 | Q39: 0 | R39: 0 | S39: 0 | T39: 0 | U39: 0.2 | V39: 0.1 | W39: 0 | X39: 0.2 | Y39: 0.2 | Z39: 0.1 | AA39: 0.1 | AB39: 0 | AC39: 0 | AD39: 0 | AE39: 0 | AF39: 0 | AG39: 0 | AH39: 0 | AI39: 0 | AJ39: 0 | AK39: vpon | AL39: bore
A40: =B40+C40 -> 1.428571429 | B40: =D40/Author1Sections -> 0.4285714286 | C40: =E40/Author2Sections -> 1 | D40: =COUNTIF(OFFSET(H40,0,0,1,Author1Sections),">0") -> 9 | E40: =COUNTIF(OFFSET(H40,0,Author1Sections,1,Author2Sections),"=0") -> 8 | F40: 244 | G40: heau'nly | H40: 0 | I40: 0 | J40: 0 | K40: 0 | L40: 0 | M40: 0 | N40: 0 | O40: 0 | P40: 0 | Q40: 0.2 | R40: 0.1 | S40: 0 | T40: 0.2 | U40: 0.2 | V40: 0.2 | W40: 0 | X40: 0.2 | Y40: 0.1 | Z40: 0.1 | AA40: 0 | AB40: 0.14074595 | AC40: 0 | AD40: 0 | AE40: 0 | AF40: 0 | AG40: 0 | AH40: 0 | AI40: 0 | AJ40: 0 | AK40: flie | AL40: maid
A41: =B41+C41 -> 1.428571429 | B41: =D41/Author1Sections -> 0.4285714286 | C41: =E41/Author2Sections -> 1 | D41: =COUNTIF(OFFSET(H41,0,0,1,Author1Sections),">0") -> 9 | E41: =COUNTIF(OFFSET(H41,0,Author1Sections,1,Author2Sections),"=0") -> 8 | F41: 248 | G41: onely | H41: 0 | I41: 0 | J41: 0 | K41: 0 | L41: 0 | M41: 0.1 | N41: 0 | O41: 0.1 | P41: 0.1 | Q41: 0 | R41: 0 | S41: 0.1 | T41: 0 | U41: 0.1 | V41: 0 | W41: 0.3 | X41: 0.1 | Y41: 0.4 | Z41: 0 | AA41: 0 | AB41: 0.14074595 | AC41: 0 | AD41: 0 | AE41: 0 | AF41: 0 | AG41: 0 | AH41: 0 | AI41: 0 | AJ41: 0 | AK41: vse | AL41: takes
A42: =B42+C42 -> 1.428571429 | B42: =D42/Author1Sections -> 0.4285714286 | C42: =E42/Author2Sections -> 1 | D42: =COUNTIF(OFFSET(H42,0,0,1,Author1Sections),">0") -> 9 | E42: =COUNTIF(OFFSET(H42,0,Author1Sections,1,Author2Sections),"=0") -> 8 | F42: 254 | G42: vaine | H42: 0.2 | I42: 0 | J42: 0 | K42: 0.5 | L42: 0.07418398 | M42: 0 | N42: 0 | O42: 0 | P42: 0.1 | Q42: 0.2 | R42: 0 | S42: 0.1 | T42: 0 | U42: 0 | V42: 0 | W42: 0.1 | X42: 0.1 | Y42: 0 | Z42: 0 | AA42: 0.1 | AB42: 0 | AC42: 0 | AD42: 0 | AE42: 0 | AF42: 0 | AG42: 0 | AH42: 0 | AI42: 0 | AJ42: 0 | AK42: braine | AL42: due
A43: =B43+C43 -> 1.428571429 | B43: =D43/Author1Sections -> 0.4285714286 | C43: =E43/Author2Sections -> 1 | D43: =COUNTIF(OFFSET(H43,0,0,1,Author1Sections),">0") -> 9 | E43: =COUNTIF(OFFSET(H43,0,Author1Sections,1,Author2Sections),"=0") -> 8 | F43: 270 | G43: stellaes | H43: 0 | I43: 0 | J43: 0 | K43: 0 | L43: 0 | M43: 0 | N43: 0 | O43: 0 | P43: 0.1 | Q43: 0.3 | R43: 0.1 | S43: 0.4 | T43: 0.1 | U43: 0.1 | V43: 0.1 | W43: 0 | X43: 0 | Y43: 0 | Z43: 0.1 | AA43: 0.1 | AB43: 0 | AC43: 0 | AD43: 0 | AE43: 0 | AF43: 0 | AG43: 0 | AH43: 0 | AI43: 0 | AJ43: 0 | AK43: am | AL43: fill
A44: =B44+C44 -> 1.428571429 | B44: =D44/Author1Sections -> 0.4285714286 | C44: =E44/Author2Sections -> 1 | D44: =COUNTIF(OFFSET(H44,0,0,1,Author1Sections),">0") -> 9 | E44: =COUNTIF(OFFSET(H44,0,Author1Sections,1,Author2Sections),"=0") -> 8 | F44: 290 | G44: proue | H44: 0 | I44: 0 | J44: 0 | K44: 0 | L44: 0 | M44: 0 | N44: 0 | O44: 0 | P44: 0 | Q44: 0.1 | R44: 0.1 | S44: 0.1 | T44: 0 | U44: 0.1 | V44: 0.3 | W44: 0.2 | X44: 0 | Y44: 0.2 | Z44: 0 | AA44: 0.1 | AB44: 0.07037298 | AC44: 0 | AD44: 0 | AE44: 0 | AF44: 0 | AG44: 0 | AH44: 0 | AI44: 0 | AJ44: 0 | AK44: late | AL44: self
A45: =B45+C45 -> 1.428571429 | B45: =D45/Author1Sections -> 0.4285714286 | C45: =E45/Author2Sections -> 1 | D45: =COUNTIF(OFFSET(H45,0,0,1,Author1Sections),">0") -> 9 | E45: =COUNTIF(OFFSET(H45,0,Author1Sections,1,Author2Sections),"=0") -> 8 | F45: 299 | G45: beautie | H45: 0 | I45: 0 | J45: 0 | K45: 0 | L45: 0.07418398 | M45: 0 | N45: 0.1 | O45: 0 | P45: 0.1 | Q45: 0.2 | R45: 0 | S45: 0 | T45: 0 | U45: 0.1 | V45: 0.3 | W45: 0 | X45: 0.1 | Y45: 0.1 | Z45: 0 | AA45: 0 | AB45: 0.07037298 | AC45: 0 | AD45: 0 | AE45: 0 | AF45: 0 | AG45: 0 | AH45: 0 | AI45: 0 | AJ45: 0 | AK45: breath | AL45: ere
A46: =B46+C46 -> 1.428571429 | B46: =D46/Author1Sections -> 0.4285714286 | C46: =E46/Author2Sections -> 1 | D46: =COUNTIF(OFFSET(H46,0,0,1,Author1Sections),">0") -> 9 | E46: =COUNTIF(OFFSET(H46,0,Author1Sections,1,Author2Sections),"=0") -> 8 | F46: 308 | G46: mee | H46: 0.1 | I46: 0 | J46: 0 | K46: 0.2 | L46: 0 | M46: 0 | N46: 0.1 | O46: 0.1 | P46: 0 | Q46: 0 | R46: 0.1 | S46: 0.1 | T46: 0.1 | U46: 0 | V46: 0.1 | W46: 0 | X46: 0 | Y46: 0 | Z46: 0.3 | AA46: 0 | AB46: 0 | AC46: 0 | AD46: 0 | AE46: 0 | AF46: 0 | AG46: 0 | AH46: 0 | AI46: 0 | AJ46: 0 | AK46: since | AL46: up
A47: =B47+C47 -> 1.428571429 | B47: =D47/Author1Sections -> 0.4285714286 | C47: =E47/Author2Sections -> 1 | D47: =COUNTIF(OFFSET(H47,0,0,1,Author1Sections),">0") -> 9 | E47: =COUNTIF(OFFSET(H47,0,Author1Sections,1,Author2Sections),"=0") -> 8 | F47: 321 | G47: vertues | H47: 0 | I47: 0 | J47: 0.1 | K47: 0.1 | L47: 0 | M47: 0.1 | N47: 0 | O47: 0 | P47: 0 | Q47: 0 | R47: 0 | S47: 0.1 | T47: 0 | U47: 0.2 | V47: 0 | W47: 0.2 | X47: 0.1 | Y47: 0.2 | Z47: 0.1 | AA47: 0 | AB47: 0 | AC47: 0 | AD47: 0 | AE47: 0 | AF47: 0 | AG47: 0 | AH47: 0 | AI47: 0 | AJ47: 0 | AK47: vertue | AL47: thyself
A48: =B48+C48 -> 1.428571429 | B48: =D48/Author1Sections -> 0.4285714286 | C48: =E48/Author2Sections -> 1 | D48: =COUNTIF(OFFSET(H48,0,0,1,Author1Sections),">0") -> 9 | E48: =COUNTIF(OFFSET(H48,0,Author1Sections,1,Author2Sections),"=0") -> 8 | F48: 322 | G48: vpon | H48: 0 | I48: 0 | J48: 0 | K48: 0 | L48: 0 | M48: 0.2 | N48: 0.1 | O48: 0.1 | P48: 0.2 | Q48: 0 | R48: 0.1 | S48: 0 | T48: 0.2 | U48: 0.1 | V48: 0 | W48: 0 | X48: 0 | Y48: 0 | Z48: 0 | AA48: 0.1 | AB48: 0.07037298 | AC48: 0 | AD48: 0 | AE48: 0 | AF48: 0 | AG48: 0 | AH48: 0 | AI48: 0 | AJ48: 0 | AK48: beames | AL48: thousand
A49: =B49+C49 -> 1.428571429 | B49: =D49/Author1Sections -> 0.4285714286 | C49: =E49/Author2Sections -> 1 | D49: =COUNTIF(OFFSET(H49,0,0,1,Author1Sections),">0") -> 9 | E49: =COUNTIF(OFFSET(H49,0,Author1Sections,1,Author2Sections),"=0") -> 8 | F49: 364 | G49: flie | H49: 0 | I49: 0 | J49: 0 | K49: 0.1 | L49: 0 | M49: 0 | N49: 0 | O49: 0 | P49: 0.1 | Q49: 0.1 | R49: 0 | S49: 0.1 | T49: 0 | U49: 0 | V49: 0 | W49: 0.1 | X49: 0.2 | Y49: 0.1 | Z49: 0.1 | AA49: 0 | AB49: 0.07037298 | AC49: 0 | AD49: 0 | AE49: 0 | AF49: 0 | AG49: 0 | AH49: 0 | AI49: 0 | AJ49: 0 | AK49: iudge | AL49: wind
A50: =B50+C50 -> 1.428571429 | B50: =D50/Author1Sections -> 0.4285714286 | C50: =E50/Author2Sections -> 1 | D50: =COUNTIF(OFFSET(H50,0,0,1,Author1Sections),">0") -> 9 | E50: =COUNTIF(OFFSET(H50,0,Author1Sections,1,Author2Sections),"=0") -> 8 | F50: 387 | G50: vse | H50: 0 | I50: 0 | J50: 0 | K50: 0 | L50: 0 | M50: 0.1 | N50: 0 | O50: 0.1 | P50: 0 | Q50: 0.1 | R50: 0 | S50: 0.2 | T50: 0.1 | U50: 0.1 | V50: 0.1 | W50: 0 | X50: 0 | Y50: 0 | Z50: 0.1 | AA50: 0 | AB50: 0.07037298 | AC50: 0 | AD50: 0 | AE50: 0 | AF50: 0 | AG50: 0 | AH50: 0 | AI50: 0 | AJ50: 0 | AK50: loues | AL50: ear
A51: =B51+C51 -> 1.428571429 | B51: =D51/Author1Sections -> 0.4285714286 | C51: =E51/Author2Sections -> 1 | D51: =COUNTIF(OFFSET(H51,0,0,1,Author1Sections),">0") -> 9 | E51: =COUNTIF(OFFSET(H51,0,Author1Sections,1,Author2Sections),"=0") -> 8 | F51: 397 | G51: braine | H51: 0 | I51: 0 | J51: 0 | K51: 0.1 | L51: 0 | M51: 0.1 | N51: 0 | O51: 0 | P51: 0 | Q51: 0 | R51: 0 | S51: 0 | T51: 0 | U51: 0 | V51: 0.1 | W51: 0.1 | X51: 0.1 | Y51: 0.1 | Z51: 0.1 | AA51: 0.1 | AB51: 0.07037298 | AC51: 0 | AD51: 0 | AE51: 0 | AF51: 0 | AG51: 0 | AH51: 0 | AI51: 0 | AJ51: 0 | AK51: soone | AL51: lives
A52: =B52+C52 -> 1.416666667 | B52: =D52/Author1Sections -> 0.6666666667 | C52: =E52/Author2Sections -> 0.75 | D52: =COUNTIF(OFFSET(H52,0,0,1,Author1Sections),">0") -> 14 | E52: =COUNTIF(OFFSET(H52,0,Author1Sections,1,Author2Sections),"=0") -> 6 | F52: 134 | G52: am | H52: 0.2 | I52: 0 | J52: 0 | K52: 0 | L52: 0 | M52: 0.3 | N52: 0.5 | O52: 0.1 | P52: 0 | Q52: 0.1 | R52: 0.1 | S52: 0 | T52: 0.1 | U52: 0.2 | V52: 0.1 | W52: 0.1 | X52: 0.2 | Y52: 0.1 | Z52: 0 | AA52: 0.2 | AB52: 0.14074595 | AC52: 0.13175231 | AD52: 0 | AE52: 0 | AF52: 0 | AG52: 0 | AH52: 0 | AI52: 0.1 | AJ52: 0 | AK52: moue | AL52: sweets
A53: =B53+C53 -> 1.398809524 | B53: =D53/Author1Sections -> 0.5238095238 | C53: =E53/Author2Sections -> 0.875 | D53: =COUNTIF(OFFSET(H53,0,0,1,Author1Sections),">0") -> 11 | E53: =COUNTIF(OFFSET(H53,0,Author1Sections,1,Author2Sections),"=0") -> 7 | F53: 245 | G53: late | H53: 0 | I53: 0.2 | J53: 0.1 | K53: 0 | L53: 0.07418398 | M53: 0 | N53: 0 | O53: 0 | P53: 0 | Q53: 0.1 | R53: 0.1 | S53: 0.1 | T53: 0 | U53: 0.1 | V53: 0 | W53: 0.3 | X53: 0 | Y53: 0.1 | Z53: 0.1 | AA53: 0.1 | AB53: 0 | AC53: 0 | AD53: 0 | AE53: 0 | AF53: 0 | AG53: 0 | AH53: 0 | AI53: 0 | AJ53: 0.088652484 | AK53: shee | AL53: art
A54: =B54+C54 -> 1.398809524 | B54: =D54/Author1Sections -> 0.5238095238 | C54: =E54/Author2Sections -> 0.875 | D54: =COUNTIF(OFFSET(H54,0,0,1,Author1Sections),">0") -> 11 | E54: =COUNTIF(OFFSET(H54,0,Author1Sections,1,Author2Sections),"=0") -> 7 | F54: 259 | G54: breath | H54: 0.1 | I54: 0 | J54: 0.3 | K54: 0 | L54: 0 | M54: 0 | N54: 0 | O54: 0 | P54: 0.1 | Q54: 0 | R54: 0.1 | S54: 0 | T54: 0 | U54: 0.1 | V54: 0 | W54: 0.1 | X54: 0.1 | Y54: 0.1 | Z54: 0.1 | AA54: 0.1 | AB54: 0.07037298 | AC54: 0 | AD54: 0 | AE54: 0 | AF54: 0 | AG54: 0 | AH54: 0 | AI54: 0 | AJ54: 0.088652484 | AK54: eares | AL54: age
A55: =B55+C55 -> 1.386904762 | B55: =D55/Author1Sections -> 0.7619047619 | C55: =E55/Author2Sections -> 0.625 | D55: =COUNTIF(OFFSET(H55,0,0,1,Author1Sections),">0") -> 16 | E55: =COUNTIF(OFFSET(H55,0,Author1Sections,1,Author2Sections),"=0") -> 5 | F55: 97 | G55: since | H55: 0 | I55: 0.1 | J55: 0 | K55: 0.1 | L55: 0.07418398 | M55: 0 | N55: 0.2 | O55: 0.1 | P55: 0.4 | Q55: 0 | R55: 0 | S55: 0.2 | T55: 0.5 | U55: 0.3 | V55: 0.3 | W55: 0.2 | X55: 0.3 | Y55: 0.1 | Z55: 0.3 | AA55: 0.3 | AB55: 0.07037298 | AC55: 0.26350462 | AD55: 0 | AE55: 0 | AF55: 0 | AG55: 0 | AH55: 0.1 | AI55: 0 | AJ55: 0.088652484 | AK55: farre | AL55: set
A56: =B56+C56 -> 1.380952381 | B56: =D56/Author1Sections -> 0.380952381 | C56: =E56/Author2Sections -> 1 | D56: =COUNTIF(OFFSET(H56,0,0,1,Author1Sections),">0") -> 8 | E56: =COUNTIF(OFFSET(H56,0,Author1Sections,1,Author2Sections),"=0") -> 8 | F56: 207 | G56: vertue | H56: 0 | I56: 0 | J56: 0 | K56: 0.2 | L56: 0 | M56: 0 | N56: 0 | O56: 0 | P56: 0 | Q56: 0.1 | R56: 0 | S56: 0.3 | T56: 0.1 | U56: 0 | V56: 0.5 | W56: 0.2 | X56: 0.3 | Y56: 0.1 | Z56: 0 | AA56: 0 | AB56: 0 | AC56: 0 | AD56: 0 | AE56: 0 | AF56: 0 | AG56: 0 | AH56: 0 | AI56: 0 | AJ56: 0 | AK56: wo | AL56: sweet
A57: =B57+C57 -> 1.380952381 | B57: =D57/Author1Sections -> 0.380952381 | C57: =E57/Author2Sections -> 1 | D57: =COUNTIF(OFFSET(H57,0,0,1,Author1Sections),">0") -> 8 | E57: =COUNTIF(OFFSET(H57,0,Author1Sections,1,Author2Sections),"=0") -> 8 | F57: 275 | G57: beames | H57: 0 | I57: 0 | J57: 0 | K57: 0 | L57: 0 | M57: 0.1 | N57: 0 | O57: 0 | P57: 0 | Q57: 0.2 | R57: 0 | S57: 0 | T57: 0 | U57: 0.2 | V57: 0.2 | W57: 0 | X57: 0.1 | Y57: 0.3 | Z57: 0.1 | AA57: 0.1 | AB57: 0 | AC57: 0 | AD57: 0 | AE57: 0 | AF57: 0 | AG57: 0 | AH57: 0 | AI57: 0 | AJ57: 0 | AK57: dare | AL57: beauty's
A58: =B58+C58 -> 1.380952381 | B58: =D58/Author1Sections -> 0.380952381 | C58: =E58/Author2Sections -> 1 | D58: =COUNTIF(OFFSET(H58,0,0,1,Author1Sections),">0") -> 8 | E58: =COUNTIF(OFFSET(H58,0,Author1Sections,1,Author2Sections),"=0") -> 8 | F58: 286 | G58: iudge | H58: 0 | I58: 0 | J58: 0 | K58: 0 | L58: 0 | M58: 0 | N58: 0.3 | O58: 0 | P58: 0.3 | Q58: 0 | R58: 0.1 | S58: 0.1 | T58: 0.1 | U58: 0.2 | V58: 0 | W58: 0.1 | X58: 0 | Y58: 0 | Z58: 0.1 | AA58: 0 | AB58: 0 | AC58: 0 | AD58: 0 | AE58: 0 | AF58: 0 | AG58: 0 | AH58: 0 | AI58: 0 | AJ58: 0 | AK58: race | AL58: 'gainst
A59: =B59+C59 -> 1.380952381 | B59: =D59/Author1Sections -> 0.380952381 | C59: =E59/Author2Sections -> 1 | D59: =COUNTIF(OFFSET(H59,0,0,1,Author1Sections),">0") -> 8 | E59: =COUNTIF(OFFSET(H59,0,Author1Sections,1,Author2Sections),"=0") -> 8 | F59: 288 | G59: loues | H59: 0 | I59: 0 | J59: 0 | K59: 0 | L59: 0 | M59: 0 | N59: 0 | O59: 0 | P59: 0.1 | Q59: 0 | R59: 0.1 | S59: 0 | T59: 0 | U59: 0.3 | V59: 0.3 | W59: 0.1 | X59: 0.1 | Y59: 0 | Z59: 0.2 | AA59: 0 | AB59: 0.07037298 | AC59: 0 | AD59: 0 | AE59: 0 | AF59: 0 | AG59: 0 | AH59: 0 | AI59: 0 | AJ59: 0 | AK59: inward | AL59: morn
A60: =B60+C60 -> 1.380952381 | B60: =D60/Author1Sections -> 0.380952381 | C60: =E60/Author2Sections -> 1 | D60: =COUNTIF(OFFSET(H60,0,0,1,Author1Sections),">0") -> 8 | E60: =COUNTIF(OFFSET(H60,0,Author1Sections,1,Author2Sections),"=0") -> 8 | F60: 293 | G60: soone | H60: 0 | I60: 0.2 | J60: 0.3 | K60: 0 | L60: 0.14836796 | M60: 0 | N60: 0 | O60: 0 | P60: 0.1 | Q60: 0.1 | R60: 0 | S60: 0 | T60: 0 | U60: 0 | V60: 0.1 | W60: 0.2 | X60: 0 | Y60: 0 | Z60: 0 | AA60: 0 | AB60: 0.07037298 | AC60: 0 | AD60: 0 | AE60: 0 | AF60: 0 | AG60: 0 | AH60: 0 | AI60: 0 | AJ60: 0 | AK60: now | AL60: music
A61: =B61+C61 -> 1.380952381 | B61: =D61/Author1Sections -> 0.380952381 | C61: =E61/Author2Sections -> 1 | D61: =COUNTIF(OFFSET(H61,0,0,1,Author1Sections),">0") -> 8 | E61: =COUNTIF(OFFSET(H61,0,Author1Sections,1,Author2Sections),"=0") -> 8 | F61: 309 | G61: moue | H61: 0 | I61: 0 | J61: 0 | K61: 0 | L61: 0 | M61: 0 | N61: 0 | O61: 0 | P61: 0 | Q61: 0.2 | R61: 0.1 | S61: 0 | T61: 0 | U61: 0.2 | V61: 0.2 | W61: 0.1 | X61: 0.2 | Y61: 0.1 | Z61: 0 | AA61: 0.1 | AB61: 0 | AC61: 0 | AD61: 0 | AE61: 0 | AF61: 0 | AG61: 0 | AH61: 0 | AI61: 0 | AJ61: 0 | AK61: delight | AL61: sometime
A62: =B62+C62 -> 1.380952381 | B62: =D62/Author1Sections -> 0.380952381 | C62: =E62/Author2Sections -> 1 | D62: =COUNTIF(OFFSET(H62,0,0,1,Author1Sections),">0") -> 8 | E62: =COUNTIF(OFFSET(H62,0,Author1Sections,1,Author2Sections),"=0") -> 8 | F62: 315 | G62: shee | H62: 0.3 | I62: 0 | J62: 0 | K62: 0.1 | L62: 0 | M62: 0.2 | N62: 0 | O62: 0 | P62: 0.1 | Q62: 0 | R62: 0.1 | S62: 0 | T62: 0 | U62: 0 | V62: 0 | W62: 0.1 | X62: 0.1 | Y62: 0 | Z62: 0 | AA62: 0 | AB62: 0.14074595 | AC62: 0 | AD62: 0 | AE62: 0 | AF62: 0 | AG62: 0 | AH62: 0 | AI62: 0 | AJ62: 0 | AK62: take | AL62: feast
A63: =B63+C63 -> 1.380952381 | B63: =D63/Author1Sections -> 0.380952381 | C63: =E63/Author2Sections -> 1 | D63: =COUNTIF(OFFSET(H63,0,0,1,Author1Sections),">0") -> 8 | E63: =COUNTIF(OFFSET(H63,0,Author1Sections,1,Author2Sections),"=0") -> 8 | F63: 331 | G63: eares | H63: 0 | I63: 0 | J63: 0 | K63: 0 | L63: 0 | M63: 0.2 | N63: 0.1 | O63: 0.2 | P63: 0.1 | Q63: 0 | R63: 0 | S63: 0 | T63: 0 | U63: 0 | V63: 0 | W63: 0.1 | X63: 0 | Y63: 0.1 | Z63: 0.2 | AA63: 0.1 | AB63: 0 | AC63: 0 | AD63: 0 | AE63: 0 | AF63: 0 | AG63: 0 | AH63: 0 | AI63: 0 | AJ63: 0 | AK63: much | AL63: gray
A64: =B64+C64 -> 1.380952381 | B64: =D64/Author1Sections -> 0.380952381 | C64: =E64/Author2Sections -> 1 | D64: =COUNTIF(OFFSET(H64,0,0,1,Author1Sections),">0") -> 8 | E64: =COUNTIF(OFFSET(H64,0,Author1Sections,1,Author2Sections),"=0") -> 8 | F64: 332 | G64: farre | H64: 0 | I64: 0.1 | J64: 0 | K64: 0.2 | L64: 0.07418398 | M64: 0 | N64: 0 | O64: 0 | P64: 0 | Q64: 0 | R64: 0 | S64: 0 | T64: 0.1 | U64: 0.2 | V64: 0 | W64: 0.1 | X64: 0 | Y64: 0 | Z64: 0.2 | AA64: 0 | AB64: 0.07037298 | AC64: 0 | AD64: 0 | AE64: 0 | AF64: 0 | AG64: 0 | AH64: 0 | AI64: 0 | AJ64: 0 | AK64: things | AL64: heav'n
A65: =B65+C65 -> 1.380952381 | B65: =D65/Author1Sections -> 0.380952381 | C65: =E65/Author2Sections -> 1 | D65: =COUNTIF(OFFSET(H65,0,0,1,Author1Sections),">0") -> 8 | E65: =COUNTIF(OFFSET(H65,0,Author1Sections,1,Author2Sections),"=0") -> 8 | F65: 355 | G65: wo | H65: 0 | I65: 0 | J65: 0 | K65: 0 | L65: 0 | M65: 0 | N65: 0 | O65: 0 | P65: 0.2 | Q65: 0 | R65: 0 | S65: 0 | T65: 0 | U65: 0.1 | V65: 0 | W65: 0.2 | X65: 0.2 | Y65: 0.1 | Z65: 0.1 | AA65: 0.1 | AB65: 0.07037298 | AC65: 0 | AD65: 0 | AE65: 0 | AF65: 0 | AG65: 0 | AH65: 0 | AI65: 0 | AJ65: 0 | AK65: sure | AL65: judgment
A66: =B66+C66 -> 1.380952381 | B66: =D66/Author1Sections -> 0.380952381 | C66: =E66/Author2Sections -> 1 | D66: =COUNTIF(OFFSET(H66,0,0,1,Author1Sections),">0") -> 8 | E66: =COUNTIF(OFFSET(H66,0,Author1Sections,1,Author2Sections),"=0") -> 8 | F66: 361 | G66: dare | H66: 0 | I66: 0 | J66: 0 | K66: 0 | L66: 0 | M66: 0.3 | N66: 0 | O66: 0 | P66: 0 | Q66: 0.1 | R66: 0 | S66: 0.1 | T66: 0 | U66: 0.1 | V66: 0.1 | W66: 0 | X66: 0 | Y66: 0.1 | Z66: 0 | AA66: 0.1 | AB66: 0.07037298 | AC66: 0 | AD66: 0 | AE66: 0 | AF66: 0 | AG66: 0 | AH66: 0 | AI66: 0 | AJ66: 0 | AK66: highest | AL66: stage
A67: =B67+C67 -> 1.380952381 | B67: =D67/Author1Sections -> 0.380952381 | C67: =E67/Author2Sections -> 1 | D67: =COUNTIF(OFFSET(H67,0,0,1,Author1Sections),">0") -> 8 | E67: =COUNTIF(OFFSET(H67,0,Author1Sections,1,Author2Sections),"=0") -> 8 | F67: 374 | G67: race | H67: 0 | I67: 0.1 | J67: 0 | K67: 0 | L67: 0 | M67: 0 | N67: 0 | O67: 0 | P67: 0 | Q67: 0.1 | R67: 0 | S67: 0.3 | T67: 0 | U67: 0.1 | V67: 0 | W67: 0.1 | X67: 0.1 | Y67: 0 | Z67: 0.1 | AA67: 0 | AB67: 0.07037298 | AC67: 0 | AD67: 0 | AE67: 0 | AF67: 0 | AG67: 0 | AH67: 0 | AI67: 0 | AJ67: 0 | AK67: wit | AL67: work
A68: =B68+C68 -> 1.380952381 | B68: =D68/Author1Sections -> 0.380952381 | C68: =E68/Author2Sections -> 1 | D68: =COUNTIF(OFFSET(H68,0,0,1,Author1Sections),">0") -> 8 | E68: =COUNTIF(OFFSET(H68,0,Author1Sections,1,Author2Sections),"=0") -> 8 | F68: 416 | G68: inward | H68: 0 | I68: 0 | J68: 0 | K68: 0.2 | L68: 0 | M68: 0 | N68: 0 | O68: 0 | P68: 0 | Q68: 0.1 | R68: 0.1 | S68: 0.1 | T68: 0 | U68: 0.1 | V68: 0 | W68: 0 | X68: 0.1 | Y68: 0 | Z68: 0 | AA68: 0.1 | AB68: 0.07037298 | AC68: 0 | AD68: 0 | AE68: 0 | AF68: 0 | AG68: 0 | AH68: 0 | AI68: 0 | AJ68: 0 | AK68: vnto | AL68: 'this
A69: =B69+C69 -> 1.375 | B69: =D69/Author1Sections -> 1 | C69: =E69/Author2Sections -> 0.375 | D69: =COUNTIF(OFFSET(H69,0,0,1,Author1Sections),">0") -> 21 | E69: =COUNTIF(OFFSET(H69,0,Author1Sections,1,Author2Sections),"=0") -> 3 | F69: 34 | G69: now | H69: 1.1 | I69: 1.2 | J69: 0.7 | K69: 0.4 | L69: 0.44510385 | M69: 0.4 | N69: 0.5 | O69: 0.2 | P69: 0.6 | Q69: 0.2 | R69: 0.2 | S69: 0.3 | T69: 0.4 | U69: 0.2 | V69: 0.7 | W69: 0.9 | X69: 0.4 | Y69: 0.6 | Z69: 0.3 | AA69: 0.5 | AB69: 0.2814919 | AC69: 0.52700925 | AD69: 0 | AE69: 0 | AF69: 0.541272 | AG69: 0.5 | AH69: 0 | AI69: 0.1 | AJ69: 0.17730497 | AK69: blacke | AL69: anon
A70: =B70+C70 -> 1.369047619 | B70: =D70/Author1Sections -> 0.619047619 | C70: =E70/Author2Sections -> 0.75 | D70: =COUNTIF(OFFSET(H70,0,0,1,Author1Sections),">0") -> 13 | E70: =COUNTIF(OFFSET(H70,0,Author1Sections,1,Author2Sections),"=0") -> 6 | F70: 143 | G70: delight | H70: 0.1 | I70: 0 | J70: 0.1 | K70: 0 | L70: 0.14836796 | M70: 0.1 | N70: 0 | O70: 0 | P70: 0 | Q70: 0.1 | R70: 0 | S70: 0 | T70: 0.1 | U70: 0 | V70: 0.2 | W70: 0.3 | X70: 0.3 | Y70: 0.3 | Z70: 0.2 | AA70: 0.1 | AB70: 0.21111894 | AC70: 0.065876156 | AD70: 0.1 | AE70: 0 | AF70: 0 | AG70: 0 | AH70: 0 | AI70: 0 | AJ70: 0 | AK70: speech | AL70: bears
A71: =B71+C71 -> 1.369047619 | B71: =D71/Author1Sections -> 0.619047619 | C71: =E71/Author2Sections -> 0.75 | D71: =COUNTIF(OFFSET(H71,0,0,1,Author1Sections),">0") -> 13 | E71: =COUNTIF(OFFSET(H71,0,Author1Sections,1,Author2Sections),"=0") -> 6 | F71: 151 | G71: take | H71: 0 | I71: 0 | J71: 0 | K71: 0 | L71: 0 | M71: 0.1 | N71: 0.3 | O71: 0 | P71: 0.3 | Q71: 0.2 | R71: 0.2 | S71: 0.1 | T71: 0 | U71: 0.2 | V71: 0.1 | W71: 0.1 | X71: 0.2 | Y71: 0.1 | Z71: 0.1 | AA71: 0.1 | AB71: 0 | AC71: 0.19762845 | AD71: 0 | AE71: 0 | AF71: 0 | AG71: 0 | AH71: 0 | AI71: 0 | AJ71: 0.088652484 | AK71: beare | AL71: beauteous
A72: =B72+C72 -> 1.357142857 | B72: =D72/Author1Sections -> 0.8571428571 | C72: =E72/Author2Sections -> 0.5 | D72: =COUNTIF(OFFSET(H72,0,0,1,Author1Sections),">0") -> 18 | E72: =COUNTIF(OFFSET(H72,0,Author1Sections,1,Author2Sections),"=0") -> 4 | F72: 103 | G72: much | H72: 0.2 | I72: 0.1 | J72: 0 | K72: 0.2 | L72: 0.14836796 | M72: 0.2 | N72: 0.2 | O72: 0.4 | P72: 0.2 | Q72: 0.1 | R72: 0 | S72: 0.1 | T72: 0.1 | U72: 0.2 | V72: 0 | W72: 0.1 | X72: 0.1 | Y72: 0.1 | Z72: 0.2 | AA72: 0.1 | AB72: 0.07037298 | AC72: 0.32938075 | AD72: 0 | AE72: 0 | AF72: 0.067659 | AG72: 0.2 | AH72: 0 | AI72: 0 | AJ72: 0.26595744 | AK72: comfort | AL72: blown
A73: =B73+C73 -> 1.351190476 | B73: =D73/Author1Sections -> 0.4761904762 | C73: =E73/Author2Sections -> 0.875 | D73: =COUNTIF(OFFSET(H73,0,0,1,Author1Sections),">0") -> 10 | E73: =COUNTIF(OFFSET(H73,0,Author1Sections,1,Author2Sections),"=0") -> 7 | F73: 238 | G73: things | H73: 0 | I73: 0.2 | J73: 0.1 | K73: 0.1 | L73: 0.07418398 | M73: 0 | N73: 0 | O73: 0 | P73: 0.2 | Q73: 0 | R73: 0.1 | S73: 0.2 | T73: 0 | U73: 0.3 | V73: 0 | W73: 0.1 | X73: 0 | Y73: 0.1 | Z73: 0 | AA73: 0 | AB73: 0 | AC73: 0 | AD73: 0 | AE73: 0 | AF73: 0 | AG73: 0 | AH73: 0 | AI73: 0 | AJ73: 0.088652484 | AK73: foole | AL73: brown
A74: =B74+C74 -> 1.351190476 | B74: =D74/Author1Sections -> 0.4761904762 | C74: =E74/Author2Sections -> 0.875 | D74: =COUNTIF(OFFSET(H74,0,0,1,Author1Sections),">0") -> 10 | E74: =COUNTIF(OFFSET(H74,0,Author1Sections,1,Author2Sections),"=0") -> 7 | F74: 252 | G74: sure | H74: 0.1 | I74: 0 | J74: 0 | K74: 0 | L74: 0 | M74: 0 | N74: 0.2 | O74: 0 | P74: 0 | Q74: 0.1 | R74: 0.1 | S74: 0.2 | T74: 0.2 | U74: 0 | V74: 0.1 | W74: 0 | X74: 0.1 | Y74: 0.1 | Z74: 0 | AA74: 0 | AB74: 0.07037298 | AC74: 0.13175231 | AD74: 0 | AE74: 0 | AF74: 0 | AG74: 0 | AH74: 0 | AI74: 0 | AJ74: 0 | AK74: vp | AL74: charm
A75: =B75+C75 -> 1.351190476 | B75: =D75/Author1Sections -> 0.4761904762 | C75: =E75/Author2Sections -> 0.875 | D75: =COUNTIF(OFFSET(H75,0,0,1,Author1Sections),">0") -> 10 | E75: =COUNTIF(OFFSET(H75,0,Author1Sections,1,Author2Sections),"=0") -> 7 | F75: 284 | G75: highest | H75: 0.1 | I75: 0.1 | J75: 0.2 | K75: 0.1 | L75: 0.07418398 | M75: 0.1 | N75: 0.1 | O75: 0 | P75: 0 | Q75: 0 | R75: 0 | S75: 0.2 | T75: 0 | U75: 0 | V75: 0 | W75: 0 | X75: 0 | Y75: 0 | Z75: 0.1 | AA75: 0 | AB75: 0.07037298 | AC75: 0 | AD75: 0 | AE75: 0.1 | AF75: 0 | AG75: 0 | AH75: 0 | AI75: 0 | AJ75: 0 | AK75: wretch | AL75: clear
A76: =B76+C76 -> 1.339285714 | B76: =D76/Author1Sections -> 0.7142857143 | C76: =E76/Author2Sections -> 0.625 | D76: =COUNTIF(OFFSET(H76,0,0,1,Author1Sections),">0") -> 15 | E76: =COUNTIF(OFFSET(H76,0,Author1Sections,1,Author2Sections),"=0") -> 5 | F76: 113 | G76: wit | H76: 0 | I76: 0 | J76: 0 | K76: 0.1 | L76: 0 | M76: 0 | N76: 0.1 | O76: 0.1 | P76: 0.1 | Q76: 0.3 | R76: 0.5 | S76: 0.1 | T76: 0.6 | U76: 0.1 | V76: 0 | W76: 0.2 | X76: 0.2 | Y76: 0.1 | Z76: 0.4 | AA76: 0.2 | AB76: 0.07037298 | AC76: 0.19762845 | AD76: 0.1 | AE76: 0 | AF76: 0 | AG76: 0 | AH76: 0 | AI76: 0 | AJ76: 0.088652484 | AK76: deere | AL76: drawn
A77: =B77+C77 -> 1.333333333 | B77: =D77/Author1Sections -> 0.3333333333 | C77: =E77/Author2Sections -> 1 | D77: =COUNTIF(OFFSET(H77,0,0,1,Author1Sections),">0") -> 7 | E77: =COUNTIF(OFFSET(H77,0,Author1Sections,1,Author2Sections),"=0") -> 8 | F77: 294 | G77: vnto | H77: 0 | I77: 0 | J77: 0 | K77: 0 | L77: 0 | M77: 0 | N77: 0.2 | O77: 0 | P77: 0.1 | Q77: 0 | R77: 0.2 | S77: 0.2 | T77: 0 | U77: 0.2 | V77: 0 | W77: 0 | X77: 0.1 | Y77: 0 | Z77: 0 | AA77: 0 | AB77: 0.21111894 | AC77: 0 | AD77: 0 | AE77: 0 | AF77: 0 | AG77: 0 | AH77: 0 | AI77: 0 | AJ77: 0 | AK77: nay | AL77: dream
A78: =B78+C78 -> 1.333333333 | B78: =D78/Author1Sections -> 0.3333333333 | C78: =E78/Author2Sections -> 1 | D78: =COUNTIF(OFFSET(H78,0,0,1,Author1Sections),">0") -> 7 | E78: =COUNTIF(OFFSET(H78,0,Author1Sections,1,Author2Sections),"=0") -> 8 | F78: 301 | G78: blacke | H78: 0.1 | I78: 0 | J78: 0 | K78: 0 | L78: 0 | M78: 0 | N78: 0 | O78: 0 | P78: 0 | Q78: 0.3 | R78: 0 | S78: 0 | T78: 0 | U78: 0 | V78: 0.1 | W78: 0.1 | X78: 0.1 | Y78: 0 | Z78: 0 | AA78: 0.3 | AB78: 0.14074595 | AC78: 0 | AD78: 0 | AE78: 0 | AF78: 0 | AG78: 0 | AH78: 0 | AI78: 0 | AJ78: 0 | AK78: wonder | AL78: frost
A79: =B79+C79 -> 1.333333333 | B79: =D79/Author1Sections -> 0.3333333333 | C79: =E79/Author2Sections -> 1 | D79: =COUNTIF(OFFSET(H79,0,0,1,Author1Sections),">0") -> 7 | E79: =COUNTIF(OFFSET(H79,0,Author1Sections,1,Author2Sections),"=0") -> 8 | F79: 318 | G79: speech | H79: 0 | I79: 0 | J79: 0 | K79: 0 | L79: 0 | M79: 0.2 | N79: 0 | O79: 0.1 | P79: 0 | Q79: 0 | R79: 0 | S79: 0.2 | T79: 0 | U79: 0 | V79: 0.2 | W79: 0.2 | X79: 0.2 | Y79: 0.1 | Z79: 0 | AA79: 0 | AB79: 0 | AC79: 0 | AD79: 0 | AE79: 0 | AF79: 0 | AG79: 0 | AH79: 0 | AI79: 0 | AJ79: 0 | AK79: euer | AL79: glowing
A80: =B80+C80 -> 1.333333333 | B80: =D80/Author1Sections -> 0.3333333333 | C80: =E80/Author2Sections -> 1 | D80: =COUNTIF(OFFSET(H80,0,0,1,Author1Sections),">0") -> 7 | E80: =COUNTIF(OFFSET(H80,0,Author1Sections,1,Author2Sections),"=0") -> 8 | F80: 326 | G80: beare | H80: 0 | I80: 0.2 | J80: 0 | K80: 0 | L80: 0.14836796 | M80: 0 | N80: 0 | O80: 0 | P80: 0 | Q80: 0 | R80: 0.1 | S80: 0 | T80: 0 | U80: 0 | V80: 0.2 | W80: 0.1 | X80: 0 | Y80: 0 | Z80: 0.1 | AA80: 0 | AB80: 0.14074595 | AC80: 0 | AD80: 0 | AE80: 0 | AF80: 0 | AG80: 0 | AH80: 0 | AI80: 0 | AJ80: 0 | AK80: feare | AL80: hairy
A81: =B81+C81 -> 1.333333333 | B81: =D81/Author1Sections -> 0.3333333333 | C81: =E81/Author2Sections -> 1 | D81: =COUNTIF(OFFSET(H81,0,0,1,Author1Sections),">0") -> 7 | E81: =COUNTIF(OFFSET(H81,0,Author1Sections,1,Author2Sections),"=0") -> 8 | F81: 329 | G81: comfort | H81: 0.1 | I81: 0.2 | J81: 0 | K81: 0 | L81: 0.07418398 | M81: 0.1 | N81: 0 | O81: 0 | P81: 0.2 | Q81: 0 | R81: 0 | S81: 0 | T81: 0 | U81: 0 | V81: 0 | W81: 0 | X81: 0.2 | Y81: 0 | Z81: 0 | AA81: 0 | AB81: 0.14074595 | AC81: 0 | AD81: 0 | AE81: 0 | AF81: 0 | AG81: 0 | AH81: 0 | AI81: 0 | AJ81: 0 | AK81: gifts | AL81: hang
A82: =B82+C82 -> 1.333333333 | B82: =D82/Author1Sections -> 0.3333333333 | C82: =E82/Author2Sections -> 1 | D82: =COUNTIF(OFFSET(H82,0,0,1,Author1Sections),">0") -> 7 | E82: =COUNTIF(OFFSET(H82,0,Author1Sections,1,Author2Sections),"=0") -> 8 | F82: 335 | G82: foole | H82: 0 | I82: 0 | J82: 0 | K82: 0 | L82: 0 | M82: 0 | N82: 0.3 | O82: 0.3 | P82: 0 | Q82: 0 | R82: 0 | S82: 0.1 | T82: 0.1 | U82: 0 | V82: 0.1 | W82: 0 | X82: 0 | Y82: 0.1 | Z82: 0.1 | AA82: 0 | AB82: 0 | AC82: 0 | AD82: 0 | AE82: 0 | AF82: 0 | AG82: 0 | AH82: 0 | AI82: 0 | AJ82: 0 | AK82: looke | AL82: hideous
A83: =B83+C83 -> 1.333333333 | B83: =D83/Author1Sections -> 0.3333333333 | C83: =E83/Author2Sections -> 1 | D83: =COUNTIF(OFFSET(H83,0,0,1,Author1Sections),">0") -> 7 | E83: =COUNTIF(OFFSET(H83,0,Author1Sections,1,Author2Sections),"=0") -> 8 | F83: 354 | G83: vp | H83: 0 | I83: 0 | J83: 0 | K83: 0 | L83: 0 | M83: 0.1 | N83: 0 | O83: 0.3 | P83: 0 | Q83: 0 | R83: 0.1 | S83: 0 | T83: 0.2 | U83: 0.1 | V83: 0 | W83: 0 | X83: 0 | Y83: 0 | Z83: 0.1 | AA83: 0 | AB83: 0.14074595 | AC83: 0 | AD83: 0 | AE83: 0 | AF83: 0 | AG83: 0 | AH83: 0 | AI83: 0 | AJ83: 0 | AK83: nought | AL83: past
A84: =B84+C84 -> 1.333333333 | B84: =D84/Author1Sections -> 0.3333333333 | C84: =E84/Author2Sections -> 1 | D84: =COUNTIF(OFFSET(H84,0,0,1,Author1Sections),">0") -> 7 | E84: =COUNTIF(OFFSET(H84,0,Author1Sections,1,Author2Sections),"=0") -> 8 | F84: 356 | G84: wretch | H84: 0 | I84: 0 | J84: 0 | K84: 0 | L84: 0 | M84: 0.3 | N84: 0.1 | O84: 0 | P84: 0.1 | Q84: 0 | R84: 0 | S84: 0 | T84: 0.1 | U84: 0.1 | V84: 0 | W84: 0 | X84: 0 | Y84: 0 | Z84: 0 | AA84: 0.2 | AB84: 0.14074595 | AC84: 0 | AD84: 0 | AE84: 0 | AF84: 0 | AG84: 0 | AH84: 0 | AI84: 0 | AJ84: 0 | AK84: passe | AL84: prime
A85: =B85+C85 -> 1.333333333 | B85: =D85/Author1Sections -> 0.3333333333 | C85: =E85/Author2Sections -> 1 | D85: =COUNTIF(OFFSET(H85,0,0,1,Author1Sections),">0") -> 7 | E85: =COUNTIF(OFFSET(H85,0,Author1Sections,1,Author2Sections),"=0") -> 8 | F85: 404 | G85: deere | H85: 0.1 | I85: 0 | J85: 0 | K85: 0 | L85: 0 | M85: 0 | N85: 0.1 | O85: 0 | P85: 0 | Q85: 0 | R85: 0.1 | S85: 0 | T85: 0 | U85: 0 | V85: 0.1 | W85: 0.2 | X85: 0 | Y85: 0 | Z85: 0.1 | AA85: 0.2 | AB85: 0 | AC85: 0 | AD85: 0 | AE85: 0 | AF85: 0 | AG85: 0 | AH85: 0 | AI85: 0 | AJ85: 0 | AK85: sighes | AL85: sage
A86: =B86+C86 -> 1.333333333 | B86: =D86/Author1Sections -> 0.3333333333 | C86: =E86/Author2Sections -> 1 | D86: =COUNTIF(OFFSET(H86,0,0,1,Author1Sections),">0") -> 7 | E86: =COUNTIF(OFFSET(H86,0,Author1Sections,1,Author2Sections),"=0") -> 8 | F86: 418 | G86: nay | H86: 0 | I86: 0 | J86: 0 | K86: 0 | L86: 0 | M86: 0 | N86: 0 | O86: 0 | P86: 0 | Q86: 0 | R86: 0 | S86: 0 | T86: 0.1 | U86: 0 | V86: 0 | W86: 0.1 | X86: 0.2 | Y86: 0.2 | Z86: 0.1 | AA86: 0.1 | AB86: 0.07037298 | AC86: 0 | AD86: 0 | AE86: 0 | AF86: 0 | AG86: 0 | AH86: 0 | AI86: 0 | AJ86: 0 | AK86: armes | AL86: son
A87: =B87+C87 -> 1.333333333 | B87: =D87/Author1Sections -> 0.3333333333 | C87: =E87/Author2Sections -> 1 | D87: =COUNTIF(OFFSET(H87,0,0,1,Author1Sections),">0") -> 7 | E87: =COUNTIF(OFFSET(H87,0,Author1Sections,1,Author2Sections),"=0") -> 8 | F87: 431 | G87: wonder | H87: 0.1 | I87: 0 | J87: 0.1 | K87: 0.1 | L87: 0.07418398 | M87: 0 | N87: 0 | O87: 0 | P87: 0 | Q87: 0 | R87: 0 | S87: 0.1 | T87: 0 | U87: 0 | V87: 0 | W87: 0 | X87: 0 | Y87: 0.2 | Z87: 0.2 | AA87: 0 | AB87: 0 | AC87: 0 | AD87: 0 | AE87: 0 | AF87: 0 | AG87: 0 | AH87: 0 | AI87: 0 | AJ87: 0 | AK87: flow | AL87: story
A88: =B88+C88 -> 1.333333333 | B88: =D88/Author1Sections -> 0.3333333333 | C88: =E88/Author2Sections -> 1 | D88: =COUNTIF(OFFSET(H88,0,0,1,Author1Sections),">0") -> 7 | E88: =COUNTIF(OFFSET(H88,0,Author1Sections,1,Author2Sections),"=0") -> 8 | F88: 446 | G88: euer | H88: 0 | I88: 0 | J88: 0 | K88: 0 | L88: 0 | M88: 0 | N88: 0.1 | O88: 0 | P88: 0 | Q88: 0.1 | R88: 0 | S88: 0 | T88: 0 | U88: 0.1 | V88: 0 | W88: 0.1 | X88: 0.1 | Y88: 0.2 | Z88: 0.1 | AA88: 0 | AB88: 0 | AC88: 0 | AD88: 0 | AE88: 0 | AF88: 0 | AG88: 0 | AH88: 0 | AI88: 0 | AJ88: 0 | AK88: pray | AL88: strain
A89: =B89+C89 -> 1.333333333 | B89: =D89/Author1Sections -> 0.3333333333 | C89: =E89/Author2Sections -> 1 | D89: =COUNTIF(OFFSET(H89,0,0,1,Author1Sections),">0") -> 7 | E89: =COUNTIF(OFFSET(H89,0,Author1Sections,1,Author2Sections),"=0") -> 8 | F89: 448 | G89: feare | H89: 0 | I89: 0 | J89: 0 | K89: 0 | L89: 0.07418398 | M89: 0.2 | N89: 0.1 | O89: 0 | P89: 0 | Q89: 0.1 | R89: 0 | S89: 0 | T89: 0 | U89: 0 | V89: 0.1 | W89: 0 | X89: 0.1 | Y89: 0.1 | Z89: 0 | AA89: 0 | AB89: 0 | AC89: 0 | AD89: 0 | AE89: 0 | AF89: 0 | AG89: 0 | AH89: 0 | AI89: 0 | AJ89: 0 | AK89: shine | AL89: string
A90: =B90+C90 -> 1.333333333 | B90: =D90/Author1Sections -> 0.3333333333 | C90: =E90/Author2Sections -> 1 | D90: =COUNTIF(OFFSET(H90,0,0,1,Author1Sections),">0") -> 7 | E90: =COUNTIF(OFFSET(H90,0,Author1Sections,1,Author2Sections),"=0") -> 8 | F90: 452 | G90: gifts | H90: 0.1 | I90: 0 | J90: 0.1 | K90: 0 | L90: 0 | M90: 0.2 | N90: 0 | O90: 0 | P90: 0 | Q90: 0 | R90: 0 | S90: 0 | T90: 0.1 | U90: 0.1 | V90: 0 | W90: 0 | X90: 0 | Y90: 0.1 | Z90: 0.1 | AA90: 0 | AB90: 0 | AC90: 0 | AD90: 0 | AE90: 0 | AF90: 0 | AG90: 0 | AH90: 0 | AI90: 0 | AJ90: 0 | AK90: see | AL90: sweetness
A91: =B91+C91 -> 1.333333333 | B91: =D91/Author1Sections -> 0.3333333333 | C91: =E91/Author2Sections -> 1 | D91: =COUNTIF(OFFSET(H91,0,0,1,Author1Sections),">0") -> 7 | E91: =COUNTIF(OFFSET(H91,0,Author1Sections,1,Author2Sections),"=0") -> 8 | F91: 465 | G91: looke | H91: 0.1 | I91: 0 | J91: 0 | K91: 0 | L91: 0 | M91: 0 | N91: 0.1 | O91: 0 | P91: 0.1 | Q91: 0 | R91: 0 | S91: 0.1 | T91: 0 | U91: 0 | V91: 0.1 | W91: 0.2 | X91: 0.1 | Y91: 0 | Z91: 0 | AA91: 0 | AB91: 0 | AC91: 0 | AD91: 0 | AE91: 0 | AF91: 0 | AG91: 0 | AH91: 0 | AI91: 0 | AJ91: 0 | AK91: wits | AL91: tear
A92: =B92+C92 -> 1.333333333 | B92: =D92/Author1Sections -> 0.3333333333 | C92: =E92/Author2Sections -> 1 | D92: =COUNTIF(OFFSET(H92,0,0,1,Author1Sections),">0") -> 7 | E92: =COUNTIF(OFFSET(H92,0,Author1Sections,1,Author2Sections),"=0") -> 8 | F92: 473 | G92: nought | H92: 0.2 | I92: 0.1 | J92: 0 | K92: 0.1 | L92: 0.07418398 | M92: 0 | N92: 0 | O92: 0 | P92: 0 | Q92: 0 | R92: 0.1 | S92: 0.1 | T92: 0 | U92: 0.1 | V92: 0 | W92: 0 | X92: 0 | Y92: 0 | Z92: 0 | AA92: 0 | AB92: 0 | AC92: 0 | AD92: 0 | AE92: 0 | AF92: 0 | AG92: 0 | AH92: 0 | AI92: 0 | AJ92: 0 | AK92: heart | AL92: trim
A93: =B93+C93 -> 1.333333333 | B93: =D93/Author1Sections -> 0.3333333333 | C93: =E93/Author2Sections -> 1 | D93: =COUNTIF(OFFSET(H93,0,0,1,Author1Sections),">0") -> 7 | E93: =COUNTIF(OFFSET(H93,0,Author1Sections,1,Author2Sections),"=0") -> 8 | F93: 474 | G93: passe | H93: 0 | I93: 0.1 | J93: 0 | K93: 0.1 | L93: 0 | M93: 0 | N93: 0 | O93: 0 | P93: 0 | Q93: 0 | R93: 0.1 | S93: 0 | T93: 0 | U93: 0 | V93: 0 | W93: 0 | X93: 0.1 | Y93: 0.1 | Z93: 0.1 | AA93: 0 | AB93: 0.14074595 | AC93: 0 | AD93: 0 | AE93: 0 | AF93: 0 | AG93: 0 | AH93: 0 | AI93: 0 | AJ93: 0 | AK93: should | AL93: yours
A94: =B94+C94 -> 1.333333333 | B94: =D94/Author1Sections -> 0.3333333333 | C94: =E94/Author2Sections -> 1 | D94: =COUNTIF(OFFSET(H94,0,0,1,Author1Sections),">0") -> 7 | E94: =COUNTIF(OFFSET(H94,0,Author1Sections,1,Author2Sections),"=0") -> 8 | F94: 480 | G94: sighes | H94: 0 | I94: 0 | J94: 0 | K94: 0 | L94: 0.07418398 | M94: 0 | N94: 0 | O94: 0 | P94: 0 | Q94: 0.1 | R94: 0.1 | S94: 0 | T94: 0 | U94: 0 | V94: 0 | W94: 0 | X94: 0.1 | Y94: 0 | Z94: 0.2 | AA94: 0.1 | AB94: 0.07037298 | AC94: 0 | AD94: 0 | AE94: 0 | AF94: 0 | AG94: 0 | AH94: 0 | AI94: 0 | AJ94: 0 | AK94: thus | AL94: else
A95: =B95+C95 -> 1.333333333 | B95: =D95/Author1Sections -> 0.3333333333 | C95: =E95/Author2Sections -> 1 | D95: =COUNTIF(OFFSET(H95,0,0,1,Author1Sections),">0") -> 7 | E95: =COUNTIF(OFFSET(H95,0,Author1Sections,1,Author2Sections),"=0") -> 8 | F95: 493 | G95: armes | H95: 0 | I95: 0 | J95: 0 | K95: 0.1 | L95: 0.07418398 | M95: 0 | N95: 0 | O95: 0 | P95: 0 | Q95: 0 | R95: 0.1 | S95: 0 | T95: 0 | U95: 0.1 | V95: 0 | W95: 0 | X95: 0.1 | Y95: 0 | Z95: 0.1 | AA95: 0.1 | AB95: 0 | AC95: 0 | AD95: 0 | AE95: 0 | AF95: 0 | AG95: 0 | AH95: 0 | AI95: 0 | AJ95: 0 | AK95: lips | AL95: dear
A96: =B96+C96 -> 1.333333333 | B96: =D96/Author1Sections -> 0.3333333333 | C96: =E96/Author2Sections -> 1 | D96: =COUNTIF(OFFSET(H96,0,0,1,Author1Sections),">0") -> 7 | E96: =COUNTIF(OFFSET(H96,0,Author1Sections,1,Author2Sections),"=0") -> 8 | F96: 508 | G96: flow | H96: 0 | I96: 0 | J96: 0 | K96: 0 | L96: 0 | M96: 0 | N96: 0 | O96: 0 | P96: 0.1 | Q96: 0.1 | R96: 0 | S96: 0.1 | T96: 0 | U96: 0.1 | V96: 0 | W96: 0 | X96: 0 | Y96: 0.1 | Z96: 0 | AA96: 0.1 | AB96: 0.07037298 | AC96: 0 | AD96: 0 | AE96: 0 | AF96: 0 | AG96: 0 | AH96: 0 | AI96: 0 | AJ96: 0 | AK96: cannot | AL96: deep
A97: =B97+C97 -> 1.333333333 | B97: =D97/Author1Sections -> 0.3333333333 | C97: =E97/Author2Sections -> 1 | D97: =COUNTIF(OFFSET(H97,0,0,1,Author1Sections),">0") -> 7 | E97: =COUNTIF(OFFSET(H97,0,Author1Sections,1,Author2Sections),"=0") -> 8 | F97: 542 | G97: pray | H97: 0 | I97: 0 | J97: 0 | K97: 0.1 | L97: 0 | M97: 0 | N97: 0 | O97: 0 | P97: 0 | Q97: 0 | R97: 0.1 | S97: 0 | T97: 0 | U97: 0.1 | V97: 0.1 | W97: 0 | X97: 0 | Y97: 0.1 | Z97: 0.1 | AA97: 0.1 | AB97: 0 | AC97: 0 | AD97: 0 | AE97: 0 | AF97: 0 | AG97: 0 | AH97: 0 | AI97: 0 | AJ97: 0 | AK97: rich | AL97: off
A98: =B98+C98 -> 1.333333333 | B98: =D98/Author1Sections -> 0.3333333333 | C98: =E98/Author2Sections -> 1 | D98: =COUNTIF(OFFSET(H98,0,0,1,Author1Sections),">0") -> 7 | E98: =COUNTIF(OFFSET(H98,0,Author1Sections,1,Author2Sections),"=0") -> 8 | F98: 549 | G98: shine | H98: 0 | I98: 0 | J98: 0 | K98: 0 | L98: 0 | M98: 0 | N98: 0 | O98: 0 | P98: 0.1 | Q98: 0 | R98: 0 | S98: 0.1 | T98: 0 | U98: 0.1 | V98: 0.1 | W98: 0.1 | X98: 0.1 | Y98: 0 | Z98: 0 | AA98: 0 | AB98: 0.07037298 | AC98: 0 | AD98: 0 | AE98: 0 | AF98: 0 | AG98: 0 | AH98: 0 | AI98: 0 | AJ98: 0 | AK98: straight | AL98: bright
A99: =B99+C99 -> 1.327380952 | B99: =D99/Author1Sections -> 0.9523809524 | C99: =E99/Author2Sections -> 0.375 | D99: =COUNTIF(OFFSET(H99,0,0,1,Author1Sections),">0") -> 20 | E99: =COUNTIF(OFFSET(H99,0,Author1Sections,1,Author2Sections),"=0") -> 3 | F99: 66 | G99: see | H99: 0.3 | I99: 0.2 | J99: 0.2 | K99: 0.3 | L99: 0.37091988 | M99: 0 | N99: 0.1 | O99: 0.2 | P99: 0.3 | Q99: 0.1 | R99: 0.5 | S99: 0.2 | T99: 0.4 | U99: 0.3 | V99: 0.4 | W99: 0.1 | X99: 0.4 | Y99: 0.2 | Z99: 0.4 | AA99: 0.1 | AB99: 0.21111894 | AC99: 0.13175231 | AD99: 0 | AE99: 0.1 | AF99: 0 | AG99: 0.2 | AH99: 0.3 | AI99: 0.2 | AJ99: 0 | AK99: borne | AL99: folly
A100: =B100+C100 -> 1.321428571 | B100: =D100/Author1Sections -> 0.5714285714 | C100: =E100/Author2Sections -> 0.75 | D100: =COUNTIF(OFFSET(H100,0,0,1,Author1Sections),">0") -> 12 | E100: =COUNTIF(OFFSET(H100,0,Author1Sections,1,Author2Sections),"=0") -> 6 | F100: 195 | G100: wits | H100: 0.1 | I100: 0 | J100: 0.1 | K100: 0 | L100: 0 | M100: 0.1 | N100: 0.1 | O100: 0 | P100: 0.2 | Q100: 0 | R100: 0.1 | S100: 0.3 | T100: 0.1 | U100: 0.1 | V100: 0 | W100: 0 | X100: 0 | Y100: 0.1 | Z100: 0.1 | AA100: 0 | AB100: 0.07037298 | AC100: 0.19762845 | AD100: 0 | AE100: 0 | AF100: 0 | AG100: 0 | AH100: 0 | AI100: 0.1 | AJ100: 0 | AK100: cause | AL100: never
A101: =B101+C101 -> 1.30952381 | B101: =D101/Author1Sections -> 0.8095238095 | C101: =E101/Author2Sections -> 0.5 | D101: =COUNTIF(OFFSET(H101,0,0,1,Author1Sections),">0") -> 17 | E101: =COUNTIF(OFFSET(H101,0,Author1Sections,1,Author2Sections),"=0") -> 4 | F101: 70 | G101: heart | H101: 0.1 | I101: 0.1 | J101: 0 | K101: 0.1 | L101: 0.14836796 | M101: 0 | N101: 0 | O101: 0.3 | P101: 0.1 | Q101: 0.4 | R101: 0.3 | S101: 0.4 | T101: 0.6 | U101: 0.5 | V101: 0.5 | W101: 0.2 | X101: 0.3 | Y101: 0.3 | Z101: 0.7 | AA101: 0.1 | AB101: 0 | AC101: 0.065876156 | AD101: 0.1 | AE101: 0 | AF101: 0 | AG101: 0 | AH101: 0 | AI101: 0.2 | AJ101: 0.4432624 | AK101: force | AL101: th'
A102: =B102+C102 -> 1.30952381 | B102: =D102/Author1Sections -> 0.8095238095 | C102: =E102/Author2Sections -> 0.5 | D102: =COUNTIF(OFFSET(H102,0,0,1,Author1Sections),">0") -> 17 | E102: =COUNTIF(OFFSET(H102,0,Author1Sections,1,Author2Sections),"=0") -> 4 | F102: 105 | G102: should | H102: 0.1 | I102: 0 | J102: 0.1 | K102: 0.1 | L102: 0.07418398 | M102: 0.2 | N102: 0.2 | O102: 0.1 | P102: 0.1 | Q102: 0.3 | R102: 0 | S102: 0.1 | T102: 0.1 | U102: 0 | V102: 0.1 | W102: 0.3 | X102: 0.2 | Y102: 0 | Z102: 0.2 | AA102: 0.2 | AB102: 0.21111894 | AC102: 0.26350462 | AD102: 0 | AE102: 0 | AF102: 0 | AG102: 0.2 | AH102: 0.5 | AI102: 0 | AJ102: 0.088652484 | AK102: lay | AL102: gave
A103: =B103+C103 -> 1.30952381 | B103: =D103/Author1Sections -> 0.8095238095 | C103: =E103/Author2Sections -> 0.5 | D103: =COUNTIF(OFFSET(H103,0,0,1,Author1Sections),">0") -> 17 | E103: =COUNTIF(OFFSET(H103,0,Author1Sections,1,Author2Sections),"=0") -> 4 | F103: 111 | G103: thus | H103: 0 | I103: 0.1 | J103: 0 | K103: 0.1 | L103: 0.07418398 | M103: 0.2 | N103: 0.2 | O103: 0.3 | P103: 0.5 | Q103: 0.1 | R103: 0.2 | S103: 0 | T103: 0.3 | U103: 0.2 | V103: 0.3 | W103: 0.1 | X103: 0.2 | Y103: 0.1 | Z103: 0.2 | AA103: 0.3 | AB103: 0 | AC103: 0 | AD103: 0.1 | AE103: 0.1 | AF103: 0.067659 | AG103: 0 | AH103: 0 | AI103: 0.1 | AJ103: 0 | AK103: while | AL103: think
A104: =B104+C104 -> 1.303571429 | B104: =D104/Author1Sections -> 0.4285714286 | C104: =E104/Author2Sections -> 0.875 | D104: =COUNTIF(OFFSET(H104,0,0,1,Author1Sections),">0") -> 9 | E104: =COUNTIF(OFFSET(H104,0,Author1Sections,1,Author2Sections),"=0") -> 7 | F104: 180 | G104: lips | H104: 0 | I104: 0.1 | J104: 0 | K104: 0 | L104: 0 | M104: 0 | N104: 0 | O104: 0 | P104: 0 | Q104: 0 | R104: 0.1 | S104: 0 | T104: 0.2 | U104: 0.2 | V104: 0.2 | W104: 0.1 | X104: 0 | Y104: 0.2 | Z104: 0.5 | AA104: 0.3 | AB104: 0 | AC104: 0 | AD104: 0 | AE104: 0 | AF104: 0 | AG104: 0 | AH104: 0 | AI104: 0.1 | AJ104: 0 | AK104: words | AL104: met
A105: =B105+C105 -> 1.303571429 | B105: =D105/Author1Sections -> 0.4285714286 | C105: =E105/Author2Sections -> 0.875 | D105: =COUNTIF(OFFSET(H105,0,0,1,Author1Sections),">0") -> 9 | E105: =COUNTIF(OFFSET(H105,0,Author1Sections,1,Author2Sections),"=0") -> 7 | F105: 197 | G105: cannot | H105: 0 | I105: 0 | J105: 0 | K105: 0 | L105: 0 | M105: 0.1 | N105: 0.1 | O105: 0.1 | P105: 0 | Q105: 0.1 | R105: 0 | S105: 0 | T105: 0 | U105: 0.1 | V105: 0.4 | W105: 0.1 | X105: 0.1 | Y105: 0 | Z105: 0.3 | AA105: 0 | AB105: 0 | AC105: 0.26350462 | AD105: 0 | AE105: 0 | AF105: 0 | AG105: 0 | AH105: 0 | AI105: 0 | AJ105: 0 | AK105: sight | AL105: pale
A106: =B106+C106 -> 1.303571429 | B106: =D106/Author1Sections -> 0.4285714286 | C106: =E106/Author2Sections -> 0.875 | D106: =COUNTIF(OFFSET(H106,0,0,1,Author1Sections),">0") -> 9 | E106: =COUNTIF(OFFSET(H106,0,Author1Sections,1,Author2Sections),"=0") -> 7 | F106: 204 | G106: rich | H106: 0.1 | I106: 0 | J106: 0.1 | K106: 0 | L106: 0.07418398 | M106: 0 | N106: 0.1 | O106: 0 | P106: 0 | Q106: 0.1 | R106: 0 | S106: 0.4 | T106: 0.6 | U106: 0.1 | V106: 0 | W106: 0 | X106: 0 | Y106: 0.1 | Z106: 0 | AA106: 0 | AB106: 0 | AC106: 0.065876156 | AD106: 0 | AE106: 0 | AF106: 0 | AG106: 0 | AH106: 0 | AI106: 0 | AJ106: 0 | AK106: kisse | AL106: flood
A107: =B107+C107 -> 1.303571429 | B107: =D107/Author1Sections -> 0.4285714286 | C107: =E107/Author2Sections -> 0.875 | D107: =COUNTIF(OFFSET(H107,0,0,1,Author1Sections),">0") -> 9 | E107: =COUNTIF(OFFSET(H107,0,Author1Sections,1,Author2Sections),"=0") -> 7 | F107: 251 | G107: straight | H107: 0 | I107: 0 | J107: 0 | K107: 0 | L107: 0.07418398 | M107: 0 | N107: 0 | O107: 0.1 | P107: 0.1 | Q107: 0.2 | R107: 0.2 | S107: 0.1 | T107: 0 | U107: 0.2 | V107: 0 | W107: 0.3 | X107: 0 | Y107: 0 | Z107: 0 | AA107: 0 | AB107: 0.07037298 | AC107: 0 | AD107: 0.1 | AE107: 0 | AF107: 0 | AG107: 0 | AH107: 0 | AI107: 0 | AJ107: 0 | AK107: ne | AL107: playing
A108: =B108+C108 -> 1.303571429 | B108: =D108/Author1Sections -> 0.4285714286 | C108: =E108/Author2Sections -> 0.875 | D108: =COUNTIF(OFFSET(H108,0,0,1,Author1Sections),">0") -> 9 | E108: =COUNTIF(OFFSET(H108,0,Author1Sections,1,Author2Sections),"=0") -> 7 | F108: 257 | G108: borne | H108: 0 | I108: 0.1 | J108: 0 | K108: 0.1 | L108: 0.22255193 | M108: 0 | N108: 0 | O108: 0 | P108: 0.1 | Q108: 0.1 | R108: 0.2 | S108: 0 | T108: 0 | U108: 0 | V108: 0.1 | W108: 0 | X108: 0.2 | Y108: 0 | Z108: 0.1 | AA108: 0 | AB108: 0 | AC108: 0 | AD108: 0 | AE108: 0 | AF108: 0 | AG108: 0 | AH108: 0.1 | AI108: 0 | AJ108: 0 | AK108: heare | AL108: ring
A109: =B109+C109 -> 1.303571429 | B109: =D109/Author1Sections -> 0.4285714286 | C109: =E109/Author2Sections -> 0.875 | D109: =COUNTIF(OFFSET(H109,0,0,1,Author1Sections),">0") -> 9 | E109: =COUNTIF(OFFSET(H109,0,Author1Sections,1,Author2Sections),"=0") -> 7 | F109: 260 | G109: cause | H109: 0 | I109: 0 | J109: 0 | K109: 0 | L109: 0 | M109: 0 | N109: 0 | O109: 0.1 | P109: 0.1 | Q109: 0 | R109: 0 | S109: 0.2 | T109: 0 | U109: 0.3 | V109: 0 | W109: 0 | X109: 0.1 | Y109: 0.2 | Z109: 0.1 | AA109: 0.1 | AB109: 0.07037298 | AC109: 0.065876156 | AD109: 0 | AE109: 0 | AF109: 0 | AG109: 0 | AH109: 0 | AI109: 0 | AJ109: 0 | AK109: griefe | AL109: told
A110: =B110+C110 -> 1.303571429 | B110: =D110/Author1Sections -> 0.4285714286 | C110: =E110/Author2Sections -> 0.875 | D110: =COUNTIF(OFFSET(H110,0,0,1,Author1Sections),">0") -> 9 | E110: =COUNTIF(OFFSET(H110,0,Author1Sections,1,Author2Sections),"=0") -> 7 | F110: 282 | G110: force | H110: 0.1 | I110: 0 | J110: 0 | K110: 0 | L110: 0 | M110: 0 | N110: 0.1 | O110: 0 | P110: 0 | Q110: 0.1 | R110: 0 | S110: 0 | T110: 0.1 | U110: 0.1 | V110: 0 | W110: 0 | X110: 0.3 | Y110: 0.1 | Z110: 0.1 | AA110: 0 | AB110: 0.07037298 | AC110: 0 | AD110: 0 | AE110: 0 | AF110: 0 | AG110: 0 | AH110: 0 | AI110: 0 | AJ110: 0.17730497 | AK110: shepheards | AL110: aught
A111: =B111+C111 -> 1.303571429 | B111: =D111/Author1Sections -> 0.4285714286 | C111: =E111/Author2Sections -> 0.875 | D111: =COUNTIF(OFFSET(H111,0,0,1,Author1Sections),">0") -> 9 | E111: =COUNTIF(OFFSET(H111,0,Author1Sections,1,Author2Sections),"=0") -> 7 | F111: 287 | G111: lay | H111: 0 | I111: 0 | J111: 0 | K111: 0.1 | L111: 0.14836796 | M111: 0 | N111: 0 | O111: 0 | P111: 0 | Q111: 0.1 | R111: 0 | S111: 0.2 | T111: 0 | U111: 0.1 | V111: 0.1 | W111: 0 | X111: 0.1 | Y111: 0.1 | Z111: 0 | AA111: 0 | AB111: 0.14074595 | AC111: 0 | AD111: 0 | AE111: 0 | AF111: 0.067659 | AG111: 0 | AH111: 0 | AI111: 0 | AJ111: 0 | AK111: write | AL111: drew
A112: =B112+C112 -> 1.291666667 | B112: =D112/Author1Sections -> 0.6666666667 | C112: =E112/Author2Sections -> 0.625 | D112: =COUNTIF(OFFSET(H112,0,0,1,Author1Sections),">0") -> 14 | E112: =COUNTIF(OFFSET(H112,0,Author1Sections,1,Author2Sections),"=0") -> 5 | F112: 78 | G112: while | H112: 0.1 | I112: 0 | J112: 0 | K112: 0 | L112: 0 | M112: 0 | N112: 0 | O112: 0 | P112: 0.2 | Q112: 0.2 | R112: 0.4 | S112: 0.2 | T112: 0.3 | U112: 0.3 | V112: 0.6 | W112: 0.1 | X112: 0.3 | Y112: 0.5 | Z112: 0.3 | AA112: 0.3 | AB112: 0.49261084 | AC112: 0 | AD112: 0.3 | AE112: 0.4 | AF112: 0.067659 | AG112: 0 | AH112: 0 | AI112: 0 | AJ112: 0 | AK112: bene | AL112: half
A113: =B113+C113 -> 1.291666667 | B113: =D113/Author1Sections -> 0.6666666667 | C113: =E113/Author2Sections -> 0.625 | D113: =COUNTIF(OFFSET(H113,0,0,1,Author1Sections),">0") -> 14 | E113: =COUNTIF(OFFSET(H113,0,Author1Sections,1,Author2Sections),"=0") -> 5 | F113: 107 | G113: words | H113: 0 | I113: 0 | J113: 0 | K113: 0 | L113: 0 | M113: 0.1 | N113: 0 | O113: 0 | P113: 0.2 | Q113: 0.1 | R113: 0.3 | S113: 0.2 | T113: 0.5 | U113: 0.1 | V113: 0.1 | W113: 0.6 | X113: 0.3 | Y113: 0.1 | Z113: 0.5 | AA113: 0.4 | AB113: 0.07037298 | AC113: 0.13175231 | AD113: 0 | AE113: 0 | AF113: 0.067659 | AG113: 0 | AH113: 0 | AI113: 0.1 | AJ113: 0 | AK113: cupids | AL113: holy
A114: =B114+C114 -> 1.291666667 | B114: =D114/Author1Sections -> 0.6666666667 | C114: =E114/Author2Sections -> 0.625 | D114: =COUNTIF(OFFSET(H114,0,0,1,Author1Sections),">0") -> 14 | E114: =COUNTIF(OFFSET(H114,0,Author1Sections,1,Author2Sections),"=0") -> 5 | F114: 132 | G114: sight | H114: 0 | I114: 0 | J114: 0 | K114: 0.1 | L114: 0.44510385 | M114: 0.2 | N114: 0.2 | O114: 0.1 | P114: 0.1 | Q114: 0.1 | R114: 0.1 | S114: 0.1 | T114: 0 | U114: 0 | V114: 0.1 | W114: 0.2 | X114: 0.1 | Y114: 0 | Z114: 0 | AA114: 0.2 | AB114: 0.35186487 | AC114: 0 | AD114: 0 | AE114: 0.1 | AF114: 0 | AG114: 0.1 | AH114: 0.1 | AI114: 0 | AJ114: 0 | AK114: fine | AL114: liberty
A115: =B115+C115 -> 1.285714286 | B115: =D115/Author1Sections -> 0.2857142857 | C115: =E115/Author2Sections -> 1 | D115: =COUNTIF(OFFSET(H115,0,0,1,Author1Sections),">0") -> 6 | E115: =COUNTIF(OFFSET(H115,0,Author1Sections,1,Author2Sections),"=0") -> 8 | F115: 226 | G115: kisse | H115: 0 | I115: 0 | J115: 0 | K115: 0 | L115: 0 | M115: 0 | N115: 0 | O115: 0 | P115: 0.1 | Q115: 0 | R115: 0 | S115: 0.1 | T115: 0 | U115: 0.1 | V115: 0 | W115: 0 | X115: 0 | Y115: 0.6 | Z115: 0.6 | AA115: 0 | AB115: 0.07037298 | AC115: 0 | AD115: 0 | AE115: 0 | AF115: 0 | AG115: 0 | AH115: 0 | AI115: 0 | AJ115: 0 | AK115: heau'n | AL115: melting
A116: =B116+C116 -> 1.285714286 | B116: =D116/Author1Sections -> 0.2857142857 | C116: =E116/Author2Sections -> 1 | D116: =COUNTIF(OFFSET(H116,0,0,1,Author1Sections),">0") -> 6 | E116: =COUNTIF(OFFSET(H116,0,Author1Sections,1,Author2Sections),"=0") -> 8 | F116: 230 | G116: ne | H116: 0.1 | I116: 0.5 | J116: 0.4 | K116: 0.3 | L116: 0.14836796 | M116: 0 | N116: 0 | O116: 0 | P116: 0 | Q116: 0 | R116: 0 | S116: 0 | T116: 0 | U116: 0 | V116: 0 | W116: 0 | X116: 0 | Y116: 0 | Z116: 0 | AA116: 0.1 | AB116: 0 | AC116: 0 | AD116: 0 | AE116: 0 | AF116: 0 | AG116: 0 | AH116: 0 | AI116: 0 | AJ116: 0 | AK116: lesse | AL116: tale
A117: =B117+C117 -> 1.285714286 | B117: =D117/Author1Sections -> 0.2857142857 | C117: =E117/Author2Sections -> 1 | D117: =COUNTIF(OFFSET(H117,0,0,1,Author1Sections),">0") -> 6 | E117: =COUNTIF(OFFSET(H117,0,Author1Sections,1,Author2Sections),"=0") -> 8 | F117: 306 | G117: heare | H117: 0 | I117: 0 | J117: 0.5 | K117: 0 | L117: 0 | M117: 0 | N117: 0.1 | O117: 0 | P117: 0 | Q117: 0 | R117: 0 | S117: 0 | T117: 0 | U117: 0 | V117: 0 | W117: 0.2 | X117: 0 | Y117: 0.1 | Z117: 0.2 | AA117: 0.1 | AB117: 0 | AC117: 0 | AD117: 0 | AE117: 0 | AF117: 0 | AG117: 0 | AH117: 0 | AI117: 0 | AJ117: 0 | AK117: meane | AL117: wear
A118: =B118+C118 -> 1.285714286 | B118: =D118/Author1Sections -> 0.2857142857 | C118: =E118/Author2Sections -> 1 | D118: =COUNTIF(OFFSET(H118,0,0,1,Author1Sections),">0") -> 6 | E118: =COUNTIF(OFFSET(H118,0,Author1Sections,1,Author2Sections),"=0") -> 8 | F118: 367 | G118: griefe | H118: 0 | I118: 0.1 | J118: 0 | K118: 0.2 | L118: 0.22255193 | M118: 0 | N118: 0 | O118: 0 | P118: 0 | Q118: 0 | R118: 0 | S118: 0 | T118: 0 | U118: 0 | V118: 0 | W118: 0.1 | X118: 0.1 | Y118: 0 | Z118: 0 | AA118: 0.2 | AB118: 0 | AC118: 0 | AD118: 0 | AE118: 0 | AF118: 0 | AG118: 0 | AH118: 0 | AI118: 0 | AJ118: 0 | AK118: misse | AL118: till
A119: =B119+C119 -> 1.285714286 | B119: =D119/Author1Sections -> 0.2857142857 | C119: =E119/Author2Sections -> 1 | D119: =COUNTIF(OFFSET(H119,0,0,1,Author1Sections),">0") -> 6 | E119: =COUNTIF(OFFSET(H119,0,Author1Sections,1,Author2Sections),"=0") -> 8 | F119: 378 | G119: shepheards | H119: 0 | I119: 0.2 | J119: 0.1 | K119: 0 | L119: 0 | M119: 0.2 | N119: 0.1 | O119: 0.3 | P119: 0.1 | Q119: 0 | R119: 0 | S119: 0 | T119: 0 | U119: 0 | V119: 0 | W119: 0 | X119: 0 | Y119: 0 | Z119: 0 | AA119: 0 | AB119: 0 | AC119: 0 | AD119: 0 | AE119: 0 | AF119: 0 | AG119: 0 | AH119: 0 | AI119: 0 | AJ119: 0 | AK119: faith | AL119: lies
A120: =B120+C120 -> 1.285714286 | B120: =D120/Author1Sections -> 0.2857142857 | C120: =E120/Author2Sections -> 1 | D120: =COUNTIF(OFFSET(H120,0,0,1,Author1Sections),">0") -> 6 | E120: =COUNTIF(OFFSET(H120,0,Author1Sections,1,Author2Sections),"=0") -> 8 | F120: 434 | G120: write | H120: 0 | I120: 0 | J120: 0 | K120: 0 | L120: 0 | M120: 0 | N120: 0 | O120: 0 | P120: 0.1 | Q120: 0 | R120: 0 | S120: 0 | T120: 0.3 | U120: 0.1 | V120: 0.2 | W120: 0 | X120: 0 | Y120: 0 | Z120: 0 | AA120: 0.1 | AB120: 0.07037298 | AC120: 0 | AD120: 0 | AE120: 0 | AF120: 0 | AG120: 0 | AH120: 0 | AI120: 0 | AJ120: 0 | AK120: feele | AL120: hand
A121: =B121+C121 -> 1.285714286 | B121: =D121/Author1Sections -> 0.2857142857 | C121: =E121/Author2Sections -> 1 | D121: =COUNTIF(OFFSET(H121,0,0,1,Author1Sections),">0") -> 6 | E121: =COUNTIF(OFFSET(H121,0,Author1Sections,1,Author2Sections),"=0") -> 8 | F121: 437 | G121: bene | H121: 0 | I121: 0 | J121: 0 | K121: 0 | L121: 0 | M121: 0.1 | N121: 0.2 | O121: 0 | P121: 0.2 | Q121: 0 | R121: 0 | S121: 0 | T121: 0.1 | U121: 0 | V121: 0 | W121: 0 | X121: 0 | Y121: 0 | Z121: 0.1 | AA121: 0 | AB121: 0.07037298 | AC121: 0 | AD121: 0 | AE121: 0 | AF121: 0 | AG121: 0 | AH121: 0 | AI121: 0 | AJ121: 0 | AK121: friend | AL121: blood
A122: =B122+C122 -> 1.285714286 | B122: =D122/Author1Sections -> 0.2857142857 | C122: =E122/Author2Sections -> 1 | D122: =COUNTIF(OFFSET(H122,0,0,1,Author1Sections),">0") -> 6 | E122: =COUNTIF(OFFSET(H122,0,Author1Sections,1,Author2Sections),"=0") -> 8 | F122: 442 | G122: cupids | H122: 0 | I122: 0 | J122: 0 | K122: 0 | L122: 0 | M122: 0 | N122: 0 | O122: 0 | P122: 0 | Q122: 0.2 | R122: 0.1 | S122: 0 | T122: 0 | U122: 0.1 | V122: 0.1 | W122: 0 | X122: 0 | Y122: 0.2 | Z122: 0.1 | AA122: 0 | AB122: 0 | AC122: 0 | AD122: 0 | AE122: 0 | AF122: 0 | AG122: 0 | AH122: 0 | AI122: 0 | AJ122: 0 | AK122: keepe | AL122: bring
A123: =B123+C123 -> 1.285714286 | B123: =D123/Author1Sections -> 0.2857142857 | C123: =E123/Author2Sections -> 1 | D123: =COUNTIF(OFFSET(H123,0,0,1,Author1Sections),">0") -> 6 | E123: =COUNTIF(OFFSET(H123,0,Author1Sections,1,Author2Sections),"=0") -> 8 | F123: 450 | G123: fine | H123: 0.1 | I123: 0 | J123: 0 | K123: 0 | L123: 0 | M123: 0 | N123: 0 | O123: 0 | P123: 0.2 | Q123: 0.2 | R123: 0.1 | S123: 0 | T123: 0 | U123: 0 | V123: 0 | W123: 0.1 | X123: 0 | Y123: 0 | Z123: 0 | AA123: 0 | AB123: 0.07037298 | AC123: 0 | AD123: 0 | AE123: 0 | AF123: 0 | AG123: 0 | AH123: 0 | AI123: 0 | AJ123: 0 | AK123: lookes | AL123: gentle
A124: =B124+C124 -> 1.285714286 | B124: =D124/Author1Sections -> 0.2857142857 | C124: =E124/Author2Sections -> 1 | D124: =COUNTIF(OFFSET(H124,0,0,1,Author1Sections),">0") -> 6 | E124: =COUNTIF(OFFSET(H124,0,Author1Sections,1,Author2Sections),"=0") -> 8 | F124: 455 | G124: heau'n | H124: 0 | I124: 0 | J124: 0 | K124: 0 | L124: 0 | M124: 0 | N124: 0 | O124: 0 | P124: 0 | Q124: 0.1 | R124: 0 | S124: 0.2 | T124: 0 | U124: 0 | V124: 0 | W124: 0.1 | X124: 0.2 | Y124: 0 | Z124: 0.1 | AA124: 0 | AB124: 0.07037298 | AC124: 0 | AD124: 0 | AE124: 0 | AF124: 0 | AG124: 0 | AH124: 0 | AI124: 0 | AJ124: 0 | AK124: reasons | AL124: father
A125: =B125+C125 -> 1.285714286 | B125: =D125/Author1Sections -> 0.2857142857 | C125: =E125/Author2Sections -> 1 | D125: =COUNTIF(OFFSET(H125,0,0,1,Author1Sections),">0") -> 6 | E125: =COUNTIF(OFFSET(H125,0,Author1Sections,1,Author2Sections),"=0") -> 8 | F125: 463 | G125: lesse | H125: 0 | I125: 0 | J125: 0 | K125: 0 | L125: 0 | M125: 0 | N125: 0.1 | O125: 0 | P125: 0 | Q125: 0 | R125: 0 | S125: 0 | T125: 0 | U125: 0 | V125: 0.1 | W125: 0 | X125: 0.2 | Y125: 0.2 | Z125: 0 | AA125: 0.1 | AB125: 0.07037298 | AC125: 0 | AD125: 0 | AE125: 0 | AF125: 0 | AG125: 0 | AH125: 0 | AI125: 0 | AJ125: 0 | AK125: smart | AL125: low
A126: =B126+C126 -> 1.285714286 | B126: =D126/Author1Sections -> 0.2857142857 | C126: =E126/Author2Sections -> 1 | D126: =COUNTIF(OFFSET(H126,0,0,1,Author1Sections),">0") -> 6 | E126: =COUNTIF(OFFSET(H126,0,Author1Sections,1,Author2Sections),"=0") -> 8 | F126: 468 | G126: meane | H126: 0 | I126: 0.1 | J126: 0 | K126: 0 | L126: 0 | M126: 0 | N126: 0 | O126: 0.1 | P126: 0 | Q126: 0 | R126: 0 | S126: 0.1 | T126: 0 | U126: 0 | V126: 0 | W126: 0.1 | X126: 0 | Y126: 0.3 | Z126: 0 | AA126: 0.1 | AB126: 0 | AC126: 0 | AD126: 0 | AE126: 0 | AF126: 0 | AG126: 0 | AH126: 0 | AI126: 0 | AJ126: 0 | AK126: sprites | AL126: pure
A127: =B127+C127 -> 1.285714286 | B127: =D127/Author1Sections -> 0.2857142857 | C127: =E127/Author2Sections -> 1 | D127: =COUNTIF(OFFSET(H127,0,0,1,Author1Sections),">0") -> 6 | E127: =COUNTIF(OFFSET(H127,0,Author1Sections,1,Author2Sections),"=0") -> 8 | F127: 470 | G127: misse | H127: 0 | I127: 0 | J127: 0 | K127: 0 | L127: 0 | M127: 0 | N127: 0.1 | O127: 0 | P127: 0 | Q127: 0 | R127: 0 | S127: 0 | T127: 0.1 | U127: 0 | V127: 0.2 | W127: 0.1 | X127: 0 | Y127: 0.2 | Z127: 0 | AA127: 0.1 | AB127: 0 | AC127: 0 | AD127: 0 | AE127: 0 | AF127: 0 | AG127: 0 | AH127: 0 | AI127: 0 | AJ127: 0 | AK127: wish | AL127: done
A128: =B128+C128 -> 1.285714286 | B128: =D128/Author1Sections -> 0.2857142857 | C128: =E128/Author2Sections -> 1 | D128: =COUNTIF(OFFSET(H128,0,0,1,Author1Sections),">0") -> 6 | E128: =COUNTIF(OFFSET(H128,0,Author1Sections,1,Author2Sections),"=0") -> 8 | F128: 502 | G128: faith | H128: 0 | I128: 0 | J128: 0 | K128: 0 | L128: 0 | M128: 0 | N128: 0 | O128: 0 | P128: 0 | Q128: 0.1 | R128: 0.1 | S128: 0 | T128: 0 | U128: 0 | V128: 0.1 | W128: 0 | X128: 0.1 | Y128: 0.1 | Z128: 0.2 | AA128: 0 | AB128: 0 | AC128: 0 | AD128: 0 | AE128: 0 | AF128: 0 | AG128: 0 | AH128: 0 | AI128: 0 | AJ128: 0 | AK128: fortunes | AL128: end
A129: =B129+C129 -> 1.285714286 | B129: =D129/Author1Sections -> 0.2857142857 | C129: =E129/Author2Sections -> 1 | D129: =COUNTIF(OFFSET(H129,0,0,1,Author1Sections),">0") -> 6 | E129: =COUNTIF(OFFSET(H129,0,Author1Sections,1,Author2Sections),"=0") -> 8 | F129: 505 | G129: feele | H129: 0 | I129: 0 | J129: 0.1 | K129: 0 | L129: 0 | M129: 0 | N129: 0 | O129: 0 | P129: 0 | Q129: 0.2 | R129: 0.1 | S129: 0 | T129: 0.1 | U129: 0 | V129: 0 | W129: 0.1 | X129: 0 | Y129: 0 | Z129: 0 | AA129: 0.1 | AB129: 0 | AC129: 0 | AD129: 0 | AE129: 0 | AF129: 0 | AG129: 0 | AH129: 0 | AI129: 0 | AJ129: 0 | AK129: god | AL129: go
A130: =B130+C130 -> 1.285714286 | B130: =D130/Author1Sections -> 0.2857142857 | C130: =E130/Author2Sections -> 1 | D130: =COUNTIF(OFFSET(H130,0,0,1,Author1Sections),">0") -> 6 | E130: =COUNTIF(OFFSET(H130,0,Author1Sections,1,Author2Sections),"=0") -> 8 | F130: 512 | G130: friend | H130: 0 | I130: 0 | J130: 0 | K130: 0 | L130: 0 | M130: 0 | N130: 0 | O130: 0 | P130: 0 | Q130: 0 | R130: 0.1 | S130: 0.1 | T130: 0 | U130: 0 | V130: 0 | W130: 0.1 | X130: 0.1 | Y130: 0 | Z130: 0 | AA130: 0.1 | AB130: 0.14074595 | AC130: 0 | AD130: 0 | AE130: 0 | AF130: 0 | AG130: 0 | AH130: 0 | AI130: 0 | AJ130: 0 | AK130: helpe | AL130: peace
A131: =B131+C131 -> 1.285714286 | B131: =D131/Author1Sections -> 0.2857142857 | C131: =E131/Author2Sections -> 1 | D131: =COUNTIF(OFFSET(H131,0,0,1,Author1Sections),">0") -> 6 | E131: =COUNTIF(OFFSET(H131,0,Author1Sections,1,Author2Sections),"=0") -> 8 | F131: 522 | G131: keepe | H131: 0 | I131: 0 | J131: 0 | K131: 0 | L131: 0 | M131: 0 | N131: 0.1 | O131: 0 | P131: 0 | Q131: 0 | R131: 0.1 | S131: 0 | T131: 0.1 | U131: 0 | V131: 0 | W131: 0 | X131: 0.1 | Y131: 0 | Z131: 0.2 | AA131: 0 | AB131: 0.07037298 | AC131: 0 | AD131: 0 | AE131: 0 | AF131: 0 | AG131: 0 | AH131: 0 | AI131: 0 | AJ131: 0 | AK131: hopes | AL131: joy
A132: =B132+C132 -> 1.285714286 | B132: =D132/Author1Sections -> 0.2857142857 | C132: =E132/Author2Sections -> 1 | D132: =COUNTIF(OFFSET(H132,0,0,1,Author1Sections),">0") -> 6 | E132: =COUNTIF(OFFSET(H132,0,Author1Sections,1,Author2Sections),"=0") -> 8 | F132: 533 | G132: lookes | H132: 0 | I132: 0 | J132: 0 | K132: 0 | L132: 0 | M132: 0 | N132: 0 | O132: 0 | P132: 0 | Q132: 0 | R132: 0.1 | S132: 0 | T132: 0.1 | U132: 0.1 | V132: 0 | W132: 0 | X132: 0 | Y132: 0.1 | Z132: 0.1 | AA132: 0 | AB132: 0.14074595 | AC132: 0 | AD132: 0 | AE132: 0 | AF132: 0 | AG132: 0 | AH132: 0 | AI132: 0 | AJ132: 0 | AK132: lost | AL132: reason
A133: =B133+C133 -> 1.285714286 | B133: =D133/Author1Sections -> 0.2857142857 | C133: =E133/Author2Sections -> 1 | D133: =COUNTIF(OFFSET(H133,0,0,1,Author1Sections),">0") -> 6 | E133: =COUNTIF(OFFSET(H133,0,Author1Sections,1,Author2Sections),"=0") -> 8 | F133: 544 | G133: reasons | H133: 0 | I133: 0 | J133: 0 | K133: 0.1 | L133: 0 | M133: 0 | N133: 0 | O133: 0 | P133: 0.1 | Q133: 0 | R133: 0.1 | S133: 0 | T133: 0.1 | U133: 0 | V133: 0 | W133: 0.1 | X133: 0.2 | Y133: 0 | Z133: 0 | AA133: 0 | AB133: 0 | AC133: 0 | AD133: 0 | AE133: 0 | AF133: 0 | AG133: 0 | AH133: 0 | AI133: 0 | AJ133: 0 | AK133: scorne | AL133: fly
A134: =B134+C134 -> 1.285714286 | B134: =D134/Author1Sections -> 0.2857142857 | C134: =E134/Author2Sections -> 1 | D134: =COUNTIF(OFFSET(H134,0,0,1,Author1Sections),">0") -> 6 | E134: =COUNTIF(OFFSET(H134,0,Author1Sections,1,Author2Sections),"=0") -> 8 | F134: 555 | G134: smart | H134: 0 | I134: 0 | J134: 0 | K134: 0 | L134: 0 | M134: 0 | N134: 0 | O134: 0 | P134: 0 | Q134: 0.1 | R134: 0 | S134: 0.1 | T134: 0.1 | U134: 0.2 | V134: 0.1 | W134: 0 | X134: 0 | Y134: 0 | Z134: 0.1 | AA134: 0 | AB134: 0 | AC134: 0 | AD134: 0 | AE134: 0 | AF134: 0 | AG134: 0 | AH134: 0 | AI134: 0 | AJ134: 0 | AK134: shot | AL134: bid
A135: =B135+C135 -> 1.285714286 | B135: =D135/Author1Sections -> 0.2857142857 | C135: =E135/Author2Sections -> 1 | D135: =COUNTIF(OFFSET(H135,0,0,1,Author1Sections),">0") -> 6 | E135: =COUNTIF(OFFSET(H135,0,Author1Sections,1,Author2Sections),"=0") -> 8 | F135: 559 | G135: sprites | H135: 0 | I135: 0 | J135: 0 | K135: 0 | L135: 0 | M135: 0 | N135: 0 | O135: 0 | P135: 0.1 | Q135: 0 | R135: 0.1 | S135: 0 | T135: 0 | U135: 0.1 | V135: 0 | W135: 0 | X135: 0 | Y135: 0.1 | Z135: 0.1 | AA135: 0.2 | AB135: 0 | AC135: 0 | AD135: 0 | AE135: 0 | AF135: 0 | AG135: 0 | AH135: 0 | AI135: 0 | AJ135: 0 | AK135: sweare | AL135: soul
A136: =B136+C136 -> 1.285714286 | B136: =D136/Author1Sections -> 0.2857142857 | C136: =E136/Author2Sections -> 1 | D136: =COUNTIF(OFFSET(H136,0,0,1,Author1Sections),">0") -> 6 | E136: =COUNTIF(OFFSET(H136,0,Author1Sections,1,Author2Sections),"=0") -> 8 | F136: 573 | G136: wish | H136: 0 | I136: 0 | J136: 0 | K136: 0 | L136: 0 | M136: 0.1 | N136: 0 | O136: 0 | P136: 0.1 | Q136: 0 | R136: 0 | S136: 0 | T136: 0 | U136: 0 | V136: 0 | W136: 0 | X136: 0.1 | Y136: 0 | Z136: 0.2 | AA136: 0.1 | AB136: 0.07037298 | AC136: 0 | AD136: 0 | AE136: 0 | AF136: 0 | AG136: 0 | AH136: 0 | AI136: 0 | AJ136: 0 | AK136: tedious | AL136: knew
A137: =B137+C137 -> 1.285714286 | B137: =D137/Author1Sections -> 0.2857142857 | C137: =E137/Author2Sections -> 1 | D137: =COUNTIF(OFFSET(H137,0,0,1,Author1Sections),">0") -> 6 | E137: =COUNTIF(OFFSET(H137,0,Author1Sections,1,Author2Sections),"=0") -> 8 | F137: 605 | G137: fortunes | H137: 0.1 | I137: 0.1 | J137: 0 | K137: 0.1 | L137: 0.07418398 | M137: 0 | N137: 0 | O137: 0 | P137: 0 | Q137: 0 | R137: 0 | S137: 0.1 | T137: 0 | U137: 0 | V137: 0 | W137: 0.1 | X137: 0 | Y137: 0 | Z137: 0 | AA137: 0 | AB137: 0 | AC137: 0 | AD137: 0 | AE137: 0 | AF137: 0 | AG137: 0 | AH137: 0 | AI137: 0 | AJ137: 0 | AK137: death | AL137: pleasures
A138: =B138+C138 -> 1.285714286 | B138: =D138/Author1Sections -> 0.2857142857 | C138: =E138/Author2Sections -> 1 | D138: =COUNTIF(OFFSET(H138,0,0,1,Author1Sections),">0") -> 6 | E138: =COUNTIF(OFFSET(H138,0,Author1Sections,1,Author2Sections),"=0") -> 8 | F138: 607 | G138: god | H138: 0 | I138: 0.1 | J138: 0 | K138: 0 | L138: 0.07418398 | M138: 0 | N138: 0 | O138: 0 | P138: 0.1 | Q138: 0.1 | R138: 0 | S138: 0 | T138: 0 | U138: 0 | V138: 0 | W138: 0 | X138: 0 | Y138: 0.1 | Z138: 0 | AA138: 0.1 | AB138: 0 | AC138: 0 | AD138: 0 | AE138: 0 | AF138: 0 | AG138: 0 | AH138: 0 | AI138: 0 | AJ138: 0 | AK138: same | AL138: sister
A139: =B139+C139 -> 1.285714286 | B139: =D139/Author1Sections -> 0.2857142857 | C139: =E139/Author2Sections -> 1 | D139: =COUNTIF(OFFSET(H139,0,0,1,Author1Sections),">0") -> 6 | E139: =COUNTIF(OFFSET(H139,0,Author1Sections,1,Author2Sections),"=0") -> 8 | F139: 613 | G139: helpe | H139: 0 | I139: 0 | J139: 0 | K139: 0 | L139: 0 | M139: 0.1 | N139: 0 | O139: 0 | P139: 0 | Q139: 0 | R139: 0 | S139: 0 | T139: 0.1 | U139: 0 | V139: 0.1 | W139: 0.1 | X139: 0 | Y139: 0.1 | Z139: 0 | AA139: 0 | AB139: 0.07037298 | AC139: 0 | AD139: 0 | AE139: 0 | AF139: 0 | AG139: 0 | AH139: 0 | AI139: 0 | AJ139: 0 | AK139: say | AL139: child
A140: =B140+C140 -> 1.285714286 | B140: =D140/Author1Sections -> 0.2857142857 | C140: =E140/Author2Sections -> 1 | D140: =COUNTIF(OFFSET(H140,0,0,1,Author1Sections),">0") -> 6 | E140: =COUNTIF(OFFSET(H140,0,Author1Sections,1,Author2Sections),"=0") -> 8 | F140: 615 | G140: hopes | H140: 0 | I140: 0 | J140: 0 | K140: 0 | L140: 0 | M140: 0 | N140: 0.1 | O140: 0 | P140: 0.1 | Q140: 0.1 | R140: 0 | S140: 0 | T140: 0 | U140: 0 | V140: 0 | W140: 0 | X140: 0.1 | Y140: 0.1 | Z140: 0.1 | AA140: 0 | AB140: 0 | AC140: 0 | AD140: 0 | AE140: 0 | AF140: 0 | AG140: 0 | AH140: 0 | AI140: 0 | AJ140: 0 | AK140: case | AL140: herself
A141: =B141+C141 -> 1.285714286 | B141: =D141/Author1Sections -> 0.2857142857 | C141: =E141/Author2Sections -> 1 | D141: =COUNTIF(OFFSET(H141,0,0,1,Author1Sections),">0") -> 6 | E141: =COUNTIF(OFFSET(H141,0,Author1Sections,1,Author2Sections),"=0") -> 8 | F141: 619 | G141: lost | H141: 0.1 | I141: 0.1 | J141: 0 | K141: 0 | L141: 0 | M141: 0 | N141: 0 | O141: 0.1 | P141: 0.1 | Q141: 0 | R141: 0 | S141: 0 | T141: 0.1 | U141: 0 | V141: 0 | W141: 0 | X141: 0.1 | Y141: 0 | Z141: 0 | AA141: 0 | AB141: 0 | AC141: 0 | AD141: 0 | AE141: 0 | AF141: 0 | AG141: 0 | AH141: 0 | AI141: 0 | AJ141: 0 | AK141: length | AL141: question
A142: =B142+C142 -> 1.285714286 | B142: =D142/Author1Sections -> 0.2857142857 | C142: =E142/Author2Sections -> 1 | D142: =COUNTIF(OFFSET(H142,0,0,1,Author1Sections),">0") -> 6 | E142: =COUNTIF(OFFSET(H142,0,Author1Sections,1,Author2Sections),"=0") -> 8 | F142: 652 | G142: scorne | H142: 0.1 | I142: 0 | J142: 0 | K142: 0 | L142: 0.07418398 | M142: 0 | N142: 0 | O142: 0 | P142: 0 | Q142: 0 | R142: 0 | S142: 0.1 | T142: 0 | U142: 0 | V142: 0.1 | W142: 0 | X142: 0.1 | Y142: 0.1 | Z142: 0 | AA142: 0 | AB142: 0 | AC142: 0 | AD142: 0 | AE142: 0 | AF142: 0 | AG142: 0 | AH142: 0 | AI142: 0 | AJ142: 0 | AK142: therefore | AL142: sings
A143: =B143+C143 -> 1.285714286 | B143: =D143/Author1Sections -> 0.2857142857 | C143: =E143/Author2Sections -> 1 | D143: =COUNTIF(OFFSET(H143,0,0,1,Author1Sections),">0") -> 6 | E143: =COUNTIF(OFFSET(H143,0,Author1Sections,1,Author2Sections),"=0") -> 8 | F143: 658 | G143: shot | H143: 0 | I143: 0 | J143: 0 | K143: 0 | L143: 0 | M143: 0 | N143: 0 | O143: 0 | P143: 0.1 | Q143: 0 | R143: 0.1 | S143: 0.1 | T143: 0.1 | U143: 0.1 | V143: 0.1 | W143: 0 | X143: 0 | Y143: 0 | Z143: 0 | AA143: 0 | AB143: 0 | AC143: 0 | AD143: 0 | AE143: 0 | AF143: 0 | AG143: 0 | AH143: 0 | AI143: 0 | AJ143: 0 | AK143: frame | AL143: together
A144: =B144+C144 -> 1.285714286 | B144: =D144/Author1Sections -> 0.2857142857 | C144: =E144/Author2Sections -> 1 | D144: =COUNTIF(OFFSET(H144,0,0,1,Author1Sections),">0") -> 6 | E144: =COUNTIF(OFFSET(H144,0,Author1Sections,1,Author2Sections),"=0") -> 8 | F144: 668 | G144: sweare | H144: 0 | I144: 0 | J144: 0 | K144: 0 | L144: 0 | M144: 0 | N144: 0 | O144: 0 | P144: 0 | Q144: 0.1 | R144: 0 | S144: 0 | T144: 0 | U144: 0 | V144: 0.1 | W144: 0 | X144: 0 | Y144: 0.1 | Z144: 0.1 | AA144: 0.1 | AB144: 0.07037298 | AC144: 0 | AD144: 0 | AE144: 0 | AF144: 0 | AG144: 0 | AH144: 0 | AI144: 0 | AJ144: 0 | AK144: staid | AL144: beside
A145: =B145+C145 -> 1.285714286 | B145: =D145/Author1Sections -> 0.2857142857 | C145: =E145/Author2Sections -> 1 | D145: =COUNTIF(OFFSET(H145,0,0,1,Author1Sections),">0") -> 6 | E145: =COUNTIF(OFFSET(H145,0,Author1Sections,1,Author2Sections),"=0") -> 8 | F145: 671 | G145: tedious | H145: 0 | I145: 0 | J145: 0 | K145: 0 | L145: 0 | M145: 0 | N145: 0.1 | O145: 0 | P145: 0 | Q145: 0.1 | R145: 0 | S145: 0 | T145: 0 | U145: 0 | V145: 0 | W145: 0 | X145: 0.1 | Y145: 0.1 | Z145: 0 | AA145: 0.1 | AB145: 0.07037298 | AC145: 0 | AD145: 0 | AE145: 0 | AF145: 0 | AG145: 0 | AH145: 0 | AI145: 0 | AJ145: 0 | AK145: word | AL145: cast
A146: =B146+C146 -> 1.273809524 | B146: =D146/Author1Sections -> 0.5238095238 | C146: =E146/Author2Sections -> 0.75 | D146: =COUNTIF(OFFSET(H146,0,0,1,Author1Sections),">0") -> 11 | E146: =COUNTIF(OFFSET(H146,0,Author1Sections,1,Author2Sections),"=0") -> 6 | F146: 198 | G146: death | H146: 0.1 | I146: 0.1 | J146: 0.3 | K146: 0.1 | L146: 0.07418398 | M146: 0 | N146: 0.1 | O146: 0 | P146: 0 | Q146: 0 | R146: 0 | S146: 0 | T146: 0 | U146: 0.1 | V146: 0.2 | W146: 0 | X146: 0 | Y146: 0.1 | Z146: 0.1 | AA146: 0.1 | AB146: 0 | AC146: 0.19762845 | AD146: 0 | AE146: 0 | AF146: 0 | AG146: 0.1 | AH146: 0 | AI146: 0 | AJ146: 0 | AK146: for | AL146: delights
A147: =B147+C147 -> 1.273809524 | B147: =D147/Author1Sections -> 0.5238095238 | C147: =E147/Author2Sections -> 0.75 | D147: =COUNTIF(OFFSET(H147,0,0,1,Author1Sections),">0") -> 11 | E147: =COUNTIF(OFFSET(H147,0,Author1Sections,1,Author2Sections),"=0") -> 6 | F147: 234 | G147: same | H147: 0.1 | I147: 0 | J147: 0 | K147: 0.2 | L147: 0.07418398 | M147: 0 | N147: 0 | O147: 0 | P147: 0 | Q147: 0 | R147: 0.1 | S147: 0.2 | T147: 0.1 | U147: 0 | V147: 0.1 | W147: 0.1 | X147: 0 | Y147: 0 | Z147: 0.1 | AA147: 0.1 | AB147: 0.07037298 | AC147: 0 | AD147: 0 | AE147: 0 | AF147: 0.135318 | AG147: 0.1 | AH147: 0 | AI147: 0 | AJ147: 0 | AK147: doth | AL147: himself
A148: =B148+C148 -> 1.261904762 | B148: =D148/Author1Sections -> 0.7619047619 | C148: =E148/Author2Sections -> 0.5 | D148: =COUNTIF(OFFSET(H148,0,0,1,Author1Sections),">0") -> 16 | E148: =COUNTIF(OFFSET(H148,0,Author1Sections,1,Author2Sections),"=0") -> 4 | F148: 101 | G148: say | H148: 0.1 | I148: 0 | J148: 0 | K148: 0.1 | L148: 0 | M148: 0.5 | N148: 0.2 | O148: 0.2 | P148: 0.3 | Q148: 0 | R148: 0.2 | S148: 0.2 | T148: 0.2 | U148: 0.1 | V148: 0.3 | W148: 0.1 | X148: 0.2 | Y148: 0 | Z148: 0.1 | AA148: 0.2 | AB148: 0.2814919 | AC148: 0.065876156 | AD148: 0 | AE148: 0 | AF148: 0 | AG148: 0.1 | AH148: 0.2 | AI148: 0.3 | AJ148: 0 | AK148: o | AL148: meant
A149: =B149+C149 -> 1.255952381 | B149: =D149/Author1Sections -> 0.380952381 | C149: =E149/Author2Sections -> 0.875 | D149: =COUNTIF(OFFSET(H149,0,0,1,Author1Sections),">0") -> 8 | E149: =COUNTIF(OFFSET(H149,0,Author1Sections,1,Author2Sections),"=0") -> 7 | F149: 302 | G149: case | H149: 0 | I149: 0 | J149: 0 | K149: 0.1 | L149: 0 | M149: 0.1 | N149: 0 | O149: 0 | P149: 0 | Q149: 0 | R149: 0 | S149: 0 | T149: 0.1 | U149: 0.2 | V149: 0 | W149: 0.2 | X149: 0.1 | Y149: 0.1 | Z149: 0 | AA149: 0 | AB149: 0.14074595 | AC149: 0 | AD149: 0 | AE149: 0 | AF149: 0 | AG149: 0 | AH149: 0 | AI149: 0.1 | AJ149: 0 | AK149: then | AL149: rude
A150: =B150+C150 -> 1.255952381 | B150: =D150/Author1Sections -> 0.380952381 | C150: =E150/Author2Sections -> 0.875 | D150: =COUNTIF(OFFSET(H150,0,0,1,Author1Sections),">0") -> 8 | E150: =COUNTIF(OFFSET(H150,0,Author1Sections,1,Author2Sections),"=0") -> 7 | F150: 307 | G150: length | H150: 0 | I150: 0.1 | J150: 0 | K150: 0.1 | L150: 0.14836796 | M150: 0 | N150: 0 | O150: 0 | P150: 0.3 | Q150: 0.1 | R150: 0.1 | S150: 0 | T150: 0 | U150: 0 | V150: 0.1 | W150: 0 | X150: 0 | Y150: 0 | Z150: 0 | AA150: 0.1 | AB150: 0 | AC150: 0 | AD150: 0.1 | AE150: 0 | AF150: 0 | AG150: 0 | AH150: 0 | AI150: 0 | AJ150: 0 | AK150: thoughts | AL150: sable
A151: =B151+C151 -> 1.255952381 | B151: =D151/Author1Sections -> 0.380952381 | C151: =E151/Author2Sections -> 0.875 | D151: =COUNTIF(OFFSET(H151,0,0,1,Author1Sections),">0") -> 8 | E151: =COUNTIF(OFFSET(H151,0,Author1Sections,1,Author2Sections),"=0") -> 7 | F151: 352 | G151: therefore | H151: 0 | I151: 0.1 | J151: 0.1 | K151: 0.1 | L151: 0 | M151: 0 | N151: 0.1 | O151: 0 | P151: 0.3 | Q151: 0 | R151: 0 | S151: 0 | T151: 0 | U151: 0 | V151: 0.1 | W151: 0.1 | X151: 0 | Y151: 0 | Z151: 0 | AA151: 0.1 | AB151: 0 | AC151: 0 | AD151: 0 | AE151: 0.1 | AF151: 0 | AG151: 0 | AH151: 0 | AI151: 0 | AJ151: 0 | AK151: right | AL151: simple
A152: =B152+C152 -> 1.255952381 | B152: =D152/Author1Sections -> 0.380952381 | C152: =E152/Author2Sections -> 0.875 | D152: =COUNTIF(OFFSET(H152,0,0,1,Author1Sections),">0") -> 8 | E152: =COUNTIF(OFFSET(H152,0,Author1Sections,1,Author2Sections),"=0") -> 7 | F152: 366 | G152: frame | H152: 0 | I152: 0 | J152: 0 | K152: 0 | L152: 0 | M152: 0 | N152: 0 | O152: 0 | P152: 0 | Q152: 0.1 | R152: 0.2 | S152: 0.1 | T152: 0.1 | U152: 0 | V152: 0 | W152: 0 | X152: 0.1 | Y152: 0.1 | Z152: 0 | AA152: 0.1 | AB152: 0.07037298 | AC152: 0 | AD152: 0 | AE152: 0 | AF152: 0 | AG152: 0.1 | AH152: 0 | AI152: 0 | AJ152: 0 | AK152: doo | AL152: sits
A153: =B153+C153 -> 1.255952381 | B153: =D153/Author1Sections -> 0.380952381 | C153: =E153/Author2Sections -> 0.875 | D153: =COUNTIF(OFFSET(H153,0,0,1,Author1Sections),">0") -> 8 | E153: =COUNTIF(OFFSET(H153,0,Author1Sections,1,Author2Sections),"=0") -> 7 | F153: 425 | G153: staid | H153: 0 | I153: 0 | J153: 0 | K153: 0.1 | L153: 0 | M153: 0 | N153: 0 | O153: 0 | P153: 0 | Q153: 0 | R153: 0.1 | S153: 0.1 | T153: 0 | U153: 0 | V153: 0.1 | W153: 0.1 | X153: 0 | Y153: 0.1 | Z153: 0 | AA153: 0.1 | AB153: 0.07037298 | AC153: 0 | AD153: 0 | AE153: 0.1 | AF153: 0 | AG153: 0 | AH153: 0 | AI153: 0 | AJ153: 0 | AK153: heavens | AL153: themselves
A154: =B154+C154 -> 1.255952381 | B154: =D154/Author1Sections -> 0.380952381 | C154: =E154/Author2Sections -> 0.875 | D154: =COUNTIF(OFFSET(H154,0,0,1,Author1Sections),">0") -> 8 | E154: =COUNTIF(OFFSET(H154,0,Author1Sections,1,Author2Sections),"=0") -> 7 | F154: 432 | G154: word | H154: 0 | I154: 0.1 | J154: 0.1 | K154: 0.1 | L154: 0 | M154: 0.1 | N154: 0 | O154: 0 | P154: 0 | Q154: 0 | R154: 0.1 | S154: 0 | T154: 0.1 | U154: 0 | V154: 0 | W154: 0 | X154: 0.1 | Y154: 0 | Z154: 0 | AA154: 0 | AB154: 0.07037298 | AC154: 0.065876156 | AD154: 0 | AE154: 0 | AF154: 0 | AG154: 0 | AH154: 0 | AI154: 0 | AJ154: 0 | AK154: pitie | AL154: new
A155: =B155+C155 -> 1.25 | B155: =D155/Author1Sections -> 1 | C155: =E155/Author2Sections -> 0.25 | D155: =COUNTIF(OFFSET(H155,0,0,1,Author1Sections),">0") -> 21 | E155: =COUNTIF(OFFSET(H155,0,Author1Sections,1,Author2Sections),"=0") -> 2 | F155: 14 | G155: for | H155: 0.4 | I155: 1 | J155: 0.7 | K155: 1.7 | L155: 0.81602377 | M155: 1 | N155: 0.8 | O155: 0.7 | P155: 0.8 | Q155: 0.7 | R155: 1 | S155: 1.4 | T155: 0.5 | U155: 0.6 | V155: 0.5 | W155: 0.6 | X155: 0.9 | Y155: 0.6 | Z155: 0.6 | AA155: 0.9 | AB155: 0.49261084 | AC155: 0.7246377 | AD155: 0 | AE155: 0 | AF155: 0.744249 | AG155: 1 | AH155: 0.5 | AI155: 0.9 | AJ155: 0.5319149 | AK155: speake | AL155: own
A156: =B156+C156 -> 1.25 | B156: =D156/Author1Sections -> 1 | C156: =E156/Author2Sections -> 0.25 | D156: =COUNTIF(OFFSET(H156,0,0,1,Author1Sections),">0") -> 21 | E156: =COUNTIF(OFFSET(H156,0,Author1Sections,1,Author2Sections),"=0") -> 2 | F156: 35 | G156: doth | H156: 0.3 | I156: 0.3 | J156: 0.2 | K156: 0.3 | L156: 0.14836796 | M156: 0.2 | N156: 0.1 | O156: 0.4 | P156: 0.1 | Q156: 0.3 | R156: 1.1 | S156: 0.5 | T156: 1.1 | U156: 1 | V156: 0.8 | W156: 0.5 | X156: 0.6 | Y156: 0.8 | Z156: 0.3 | AA156: 0.6 | AB156: 0.5629838 | AC156: 0.3952569 | AD156: 0.1 | AE156: 0.3 | AF156: 0.135318 | AG156: 0.5 | AH156: 0 | AI156: 0.1 | AJ156: 0 | AK156: minde | AL156: behold
A157: =B157+C157 -> 1.25 | B157: =D157/Author1Sections -> 1 | C157: =E157/Author2Sections -> 0.25 | D157: =COUNTIF(OFFSET(H157,0,0,1,Author1Sections),">0") -> 21 | E157: =COUNTIF(OFFSET(H157,0,Author1Sections,1,Author2Sections),"=0") -> 2 | F157: 42 | G157: o | H157: 0.3 | I157: 0.2 | J157: 0.4 | K157: 0.8 | L157: 0.07418398 | M157: 0.1 | N157: 0.4 | O157: 0.6 | P157: 0.1 | Q157: 0.1 | R157: 0.4 | S157: 0.1 | T157: 0.4 | U157: 0.9 | V157: 0.6 | W157: 0.5 | X157: 0.7 | Y157: 0.2 | Z157: 0.3 | AA157: 0.5 | AB157: 0.5629838 | AC157: 0.26350462 | AD157: 0 | AE157: 0.1 | AF157: 0.270636 | AG157: 0 | AH157: 0.3 | AI157: 0.1 | AJ157: 0.79787236 | AK157: mouth | AL157: sun
A158: =B158+C158 -> 1.25 | B158: =D158/Author1Sections -> 1 | C158: =E158/Author2Sections -> 0.25 | D158: =COUNTIF(OFFSET(H158,0,0,1,Author1Sections),">0") -> 21 | E158: =COUNTIF(OFFSET(H158,0,Author1Sections,1,Author2Sections),"=0") -> 2 | F158: 43 | G158: then | H158: 0.1 | I158: 0.1 | J158: 0.1 | K158: 0.4 | L158: 0.14836796 | M158: 0.3 | N158: 0.2 | O158: 0.4 | P158: 0.5 | Q158: 0.1 | R158: 0.6 | S158: 0.2 | T158: 0.6 | U158: 0.9 | V158: 0.2 | W158: 0.7 | X158: 0.5 | Y158: 0.5 | Z158: 0.4 | AA158: 0.5 | AB158: 0.5629838 | AC158: 0.26350462 | AD158: 0.6 | AE158: 0 | AF158: 0.067659 | AG158: 0.6 | AH158: 0.2 | AI158: 0 | AJ158: 0.26595744 | AK158: natures | AL158: sound
A159: =B159+C159 -> 1.244047619 | B159: =D159/Author1Sections -> 0.619047619 | C159: =E159/Author2Sections -> 0.625 | D159: =COUNTIF(OFFSET(H159,0,0,1,Author1Sections),">0") -> 13 | E159: =COUNTIF(OFFSET(H159,0,Author1Sections,1,Author2Sections),"=0") -> 5 | F159: 163 | G159: thoughts | H159: 0 | I159: 0 | J159: 0 | K159: 0.1 | L159: 0.07418398 | M159: 0 | N159: 0.2 | O159: 0.1 | P159: 0.1 | Q159: 0.1 | R159: 0.1 | S159: 0.2 | T159: 0.1 | U159: 0 | V159: 0.2 | W159: 0 | X159: 0 | Y159: 0.2 | Z159: 0.2 | AA159: 0 | AB159: 0.14074595 | AC159: 0.065876156 | AD159: 0 | AE159: 0 | AF159: 0.067659 | AG159: 0 | AH159: 0 | AI159: 0.1 | AJ159: 0 | AK159: fault | AL159: ten
A160: =B160+C160 -> 1.244047619 | B160: =D160/Author1Sections -> 0.619047619 | C160: =E160/Author2Sections -> 0.625 | D160: =COUNTIF(OFFSET(H160,0,0,1,Author1Sections),">0") -> 13 | E160: =COUNTIF(OFFSET(H160,0,Author1Sections,1,Author2Sections),"=0") -> 5 | F160: 182 | G160: right | H160: 0.1 | I160: 0.1 | J160: 0.1 | K160: 0 | L160: 0 | M160: 0.1 | N160: 0 | O160: 0 | P160: 0 | Q160: 0.1 | R160: 0.1 | S160: 0.1 | T160: 0.2 | U160: 0.1 | V160: 0.2 | W160: 0 | X160: 0 | Y160: 0.1 | Z160: 0 | AA160: 0.1 | AB160: 0.14074595 | AC160: 0.065876156 | AD160: 0.2 | AE160: 0 | AF160: 0 | AG160: 0 | AH160: 0.1 | AI160: 0 | AJ160: 0 | AK160: felt | AL160: 'o
A161: =B161+C161 -> 1.238095238 | B161: =D161/Author1Sections -> 0.2380952381 | C161: =E161/Author2Sections -> 1 | D161: =COUNTIF(OFFSET(H161,0,0,1,Author1Sections),">0") -> 5 | E161: =COUNTIF(OFFSET(H161,0,Author1Sections,1,Author2Sections),"=0") -> 8 | F161: 217 | G161: doo | H161: 0.1 | I161: 0.5 | J161: 0.6 | K161: 0.4 | L161: 0 | M161: 0 | N161: 0 | O161: 0 | P161: 0.1 | Q161: 0 | R161: 0 | S161: 0 | T161: 0 | U161: 0 | V161: 0 | W161: 0 | X161: 0 | Y161: 0 | Z161: 0 | AA161: 0 | AB161: 0 | AC161: 0 | AD161: 0 | AE161: 0 | AF161: 0 | AG161: 0 | AH161: 0 | AI161: 0 | AJ161: 0 | AK161: ladie | AL161: 'but
A162: =B162+C162 -> 1.238095238 | B162: =D162/Author1Sections -> 0.2380952381 | C162: =E162/Author2Sections -> 1 | D162: =COUNTIF(OFFSET(H162,0,0,1,Author1Sections),">0") -> 5 | E162: =COUNTIF(OFFSET(H162,0,Author1Sections,1,Author2Sections),"=0") -> 8 | F162: 368 | G162: heavens | H162: 0.2 | I162: 0.1 | J162: 0.4 | K162: 0.1 | L162: 0.14836796 | M162: 0 | N162: 0 | O162: 0 | P162: 0 | Q162: 0 | R162: 0 | S162: 0 | T162: 0 | U162: 0 | V162: 0 | W162: 0 | X162: 0 | Y162: 0 | Z162: 0 | AA162: 0 | AB162: 0 | AC162: 0 | AD162: 0 | AE162: 0 | AF162: 0 | AG162: 0 | AH162: 0 | AI162: 0 | AJ162: 0 | AK162: sence | AL162: glass
A163: =B163+C163 -> 1.238095238 | B163: =D163/Author1Sections -> 0.2380952381 | C163: =E163/Author2Sections -> 1 | D163: =COUNTIF(OFFSET(H163,0,0,1,Author1Sections),">0") -> 5 | E163: =COUNTIF(OFFSET(H163,0,Author1Sections,1,Author2Sections),"=0") -> 8 | F163: 372 | G163: pitie | H163: 0.1 | I163: 0 | J163: 0 | K163: 0.1 | L163: 0.07418398 | M163: 0 | N163: 0 | O163: 0 | P163: 0 | Q163: 0 | R163: 0 | S163: 0 | T163: 0 | U163: 0.6 | V163: 0 | W163: 0.1 | X163: 0 | Y163: 0 | Z163: 0 | AA163: 0 | AB163: 0 | AC163: 0 | AD163: 0 | AE163: 0 | AF163: 0 | AG163: 0 | AH163: 0 | AI163: 0 | AJ163: 0 | AK163: slaue | AL163: rhyme
A164: =B164+C164 -> 1.238095238 | B164: =D164/Author1Sections -> 0.2380952381 | C164: =E164/Author2Sections -> 1 | D164: =COUNTIF(OFFSET(H164,0,0,1,Author1Sections),">0") -> 5 | E164: =COUNTIF(OFFSET(H164,0,Author1Sections,1,Author2Sections),"=0") -> 8 | F164: 379 | G164: speake | H164: 0 | I164: 0 | J164: 0 | K164: 0 | L164: 0 | M164: 0.1 | N164: 0 | O164: 0 | P164: 0 | Q164: 0.2 | R164: 0.1 | S164: 0 | T164: 0.3 | U164: 0 | V164: 0 | W164: 0 | X164: 0 | Y164: 0.3 | Z164: 0 | AA164: 0 | AB164: 0 | AC164: 0 | AD164: 0 | AE164: 0 | AF164: 0 | AG164: 0 | AH164: 0 | AI164: 0 | AJ164: 0 | AK164: whole | AL164: soon
A165: =B165+C165 -> 1.238095238 | B165: =D165/Author1Sections -> 0.2380952381 | C165: =E165/Author2Sections -> 1 | D165: =COUNTIF(OFFSET(H165,0,0,1,Author1Sections),">0") -> 5 | E165: =COUNTIF(OFFSET(H165,0,Author1Sections,1,Author2Sections),"=0") -> 8 | F165: 469 | G165: minde | H165: 0 | I165: 0.2 | J165: 0 | K165: 0 | L165: 0.22255193 | M165: 0 | N165: 0 | O165: 0 | P165: 0 | Q165: 0 | R165: 0 | S165: 0 | T165: 0 | U165: 0.1 | V165: 0.1 | W165: 0 | X165: 0 | Y165: 0 | Z165: 0 | AA165: 0 | AB165: 0.07037298 | AC165: 0 | AD165: 0 | AE165: 0 | AF165: 0 | AG165: 0 | AH165: 0 | AI165: 0 | AJ165: 0 | AK165: againe | AL165: star
A166: =B166+C166 -> 1.238095238 | B166: =D166/Author1Sections -> 0.2380952381 | C166: =E166/Author2Sections -> 1 | D166: =COUNTIF(OFFSET(H166,0,0,1,Author1Sections),">0") -> 5 | E166: =COUNTIF(OFFSET(H166,0,Author1Sections,1,Author2Sections),"=0") -> 8 | F166: 471 | G166: mouth | H166: 0 | I166: 0 | J166: 0 | K166: 0 | L166: 0 | M166: 0.1 | N166: 0 | O166: 0.1 | P166: 0 | Q166: 0.1 | R166: 0 | S166: 0 | T166: 0.1 | U166: 0 | V166: 0 | W166: 0 | X166: 0 | Y166: 0 | Z166: 0.4 | AA166: 0 | AB166: 0 | AC166: 0 | AD166: 0 | AE166: 0 | AF166: 0 | AG166: 0 | AH166: 0 | AI166: 0 | AJ166: 0 | AK166: appeare | AL166: sunk
A167: =B167+C167 -> 1.238095238 | B167: =D167/Author1Sections -> 0.2380952381 | C167: =E167/Author2Sections -> 1 | D167: =COUNTIF(OFFSET(H167,0,0,1,Author1Sections),">0") -> 5 | E167: =COUNTIF(OFFSET(H167,0,Author1Sections,1,Author2Sections),"=0") -> 8 | F167: 472 | G167: natures | H167: 0 | I167: 0 | J167: 0 | K167: 0 | L167: 0 | M167: 0 | N167: 0 | O167: 0 | P167: 0.1 | Q167: 0.3 | R167: 0.1 | S167: 0 | T167: 0 | U167: 0 | V167: 0 | W167: 0 | X167: 0 | Y167: 0.1 | Z167: 0.2 | AA167: 0 | AB167: 0 | AC167: 0 | AD167: 0 | AE167: 0 | AF167: 0 | AG167: 0 | AH167: 0 | AI167: 0 | AJ167: 0 | AK167: beares | AL167: 'that
A168: =B168+C168 -> 1.238095238 | B168: =D168/Author1Sections -> 0.2380952381 | C168: =E168/Author2Sections -> 1 | D168: =COUNTIF(OFFSET(H168,0,0,1,Author1Sections),">0") -> 5 | E168: =COUNTIF(OFFSET(H168,0,Author1Sections,1,Author2Sections),"=0") -> 8 | F168: 503 | G168: fault | H168: 0 | I168: 0 | J168: 0 | K168: 0 | L168: 0 | M168: 0 | N168: 0 | O168: 0 | P168: 0 | Q168: 0.1 | R168: 0 | S168: 0.1 | T168: 0 | U168: 0 | V168: 0 | W168: 0 | X168: 0 | Y168: 0 | Z168: 0.1 | AA168: 0.2 | AB168: 0.14074595 | AC168: 0 | AD168: 0 | AE168: 0 | AF168: 0 | AG168: 0 | AH168: 0 | AI168: 0 | AJ168: 0 | AK168: cruell | AL168: 'tis
A169: =B169+C169 -> 1.238095238 | B169: =D169/Author1Sections -> 0.2380952381 | C169: =E169/Author2Sections -> 1 | D169: =COUNTIF(OFFSET(H169,0,0,1,Author1Sections),">0") -> 5 | E169: =COUNTIF(OFFSET(H169,0,Author1Sections,1,Author2Sections),"=0") -> 8 | F169: 507 | G169: felt | H169: 0.2 | I169: 0 | J169: 0 | K169: 0.1 | L169: 0 | M169: 0 | N169: 0 | O169: 0 | P169: 0 | Q169: 0 | R169: 0 | S169: 0 | T169: 0 | U169: 0 | V169: 0 | W169: 0.1 | X169: 0 | Y169: 0 | Z169: 0.2 | AA169: 0 | AB169: 0.07037298 | AC169: 0 | AD169: 0 | AE169: 0 | AF169: 0 | AG169: 0 | AH169: 0 | AI169: 0 | AJ169: 0 | AK169: dart | AL169: affections
A170: =B170+C170 -> 1.238095238 | B170: =D170/Author1Sections -> 0.2380952381 | C170: =E170/Author2Sections -> 1 | D170: =COUNTIF(OFFSET(H170,0,0,1,Author1Sections),">0") -> 5 | E170: =COUNTIF(OFFSET(H170,0,Author1Sections,1,Author2Sections),"=0") -> 8 | F170: 526 | G170: ladie | H170: 0 | I170: 0 | J170: 0.2 | K170: 0 | L170: 0.07418398 | M170: 0.1 | N170: 0.2 | O170: 0 | P170: 0.1 | Q170: 0 | R170: 0 | S170: 0 | T170: 0 | U170: 0 | V170: 0 | W170: 0 | X170: 0 | Y170: 0 | Z170: 0 | AA170: 0 | AB170: 0 | AC170: 0 | AD170: 0 | AE170: 0 | AF170: 0 | AG170: 0 | AH170: 0 | AI170: 0 | AJ170: 0 | AK170: disgrace | AL170: applied
A171: =B171+C171 -> 1.238095238 | B171: =D171/Author1Sections -> 0.2380952381 | C171: =E171/Author2Sections -> 1 | D171: =COUNTIF(OFFSET(H171,0,0,1,Author1Sections),">0") -> 5 | E171: =COUNTIF(OFFSET(H171,0,Author1Sections,1,Author2Sections),"=0") -> 8 | F171: 547 | G171: sence | H171: 0 | I171: 0 | J171: 0 | K171: 0 | L171: 0 | M171: 0 | N171: 0 | O171: 0 | P171: 0 | Q171: 0.1 | R171: 0 | S171: 0 | T171: 0 | U171: 0.1 | V171: 0 | W171: 0.2 | X171: 0 | Y171: 0.1 | Z171: 0 | AA171: 0.2 | AB171: 0 | AC171: 0 | AD171: 0 | AE171: 0 | AF171: 0 | AG171: 0 | AH171: 0 | AI171: 0 | AJ171: 0 | AK171: excell | AL171: barren
A172: =B172+C172 -> 1.238095238 | B172: =D172/Author1Sections -> 0.2380952381 | C172: =E172/Author2Sections -> 1 | D172: =COUNTIF(OFFSET(H172,0,0,1,Author1Sections),">0") -> 5 | E172: =COUNTIF(OFFSET(H172,0,Author1Sections,1,Author2Sections),"=0") -> 8 | F172: 551 | G172: slaue | H172: 0 | I172: 0 | J172: 0 | K172: 0 | L172: 0 | M172: 0 | N172: 0.1 | O172: 0 | P172: 0.1 | Q172: 0 | R172: 0 | S172: 0 | T172: 0.2 | U172: 0 | V172: 0.2 | W172: 0 | X172: 0 | Y172: 0 | Z172: 0.1 | AA172: 0 | AB172: 0 | AC172: 0 | AD172: 0 | AE172: 0 | AF172: 0 | AG172: 0 | AH172: 0 | AI172: 0 | AJ172: 0 | AK172: excellent | AL172: fears
A173: =B173+C173 -> 1.238095238 | B173: =D173/Author1Sections -> 0.2380952381 | C173: =E173/Author2Sections -> 1 | D173: =COUNTIF(OFFSET(H173,0,0,1,Author1Sections),">0") -> 5 | E173: =COUNTIF(OFFSET(H173,0,Author1Sections,1,Author2Sections),"=0") -> 8 | F173: 569 | G173: whole | H173: 0.1 | I173: 0 | J173: 0 | K173: 0 | L173: 0 | M173: 0.2 | N173: 0.1 | O173: 0 | P173: 0 | Q173: 0 | R173: 0 | S173: 0 | T173: 0.1 | U173: 0 | V173: 0 | W173: 0.2 | X173: 0 | Y173: 0 | Z173: 0 | AA173: 0 | AB173: 0 | AC173: 0 | AD173: 0 | AE173: 0 | AF173: 0 | AG173: 0 | AH173: 0 | AI173: 0 | AJ173: 0 | AK173: glorie | AL173: flame
A174: =B174+C174 -> 1.238095238 | B174: =D174/Author1Sections -> 0.2380952381 | C174: =E174/Author2Sections -> 1 | D174: =COUNTIF(OFFSET(H174,0,0,1,Author1Sections),">0") -> 5 | E174: =COUNTIF(OFFSET(H174,0,Author1Sections,1,Author2Sections),"=0") -> 8 | F174: 576 | G174: againe | H174: 0 | I174: 0 | J174: 0 | K174: 0.2 | L174: 0 | M174: 0 | N174: 0.1 | O174: 0.1 | P174: 0 | Q174: 0 | R174: 0 | S174: 0 | T174: 0 | U174: 0 | V174: 0 | W174: 0 | X174: 0.1 | Y174: 0.1 | Z174: 0 | AA174: 0 | AB174: 0 | AC174: 0 | AD174: 0 | AE174: 0 | AF174: 0 | AG174: 0 | AH174: 0 | AI174: 0 | AJ174: 0 | AK174: indeed | AL174: fountain
A175: =B175+C175 -> 1.238095238 | B175: =D175/Author1Sections -> 0.2380952381 | C175: =E175/Author2Sections -> 1 | D175: =COUNTIF(OFFSET(H175,0,0,1,Author1Sections),">0") -> 5 | E175: =COUNTIF(OFFSET(H175,0,Author1Sections,1,Author2Sections),"=0") -> 8 | F175: 577 | G175: appeare | H175: 0 | I175: 0 | J175: 0 | K175: 0.1 | L175: 0.07418398 | M175: 0 | N175: 0 | O175: 0 | P175: 0 | Q175: 0 | R175: 0 | S175: 0 | T175: 0 | U175: 0 | V175: 0 | W175: 0 | X175: 0 | Y175: 0.2 | Z175: 0.1 | AA175: 0 | AB175: 0.07037298 | AC175: 0 | AD175: 0 | AE175: 0 | AF175: 0 | AG175: 0 | AH175: 0 | AI175: 0 | AJ175: 0 | AK175: lou'd | AL175: goddess
A176: =B176+C176 -> 1.238095238 | B176: =D176/Author1Sections -> 0.2380952381 | C176: =E176/Author2Sections -> 1 | D176: =COUNTIF(OFFSET(H176,0,0,1,Author1Sections),">0") -> 5 | E176: =COUNTIF(OFFSET(H176,0,Author1Sections,1,Author2Sections),"=0") -> 8 | F176: 579 | G176: beares | H176: 0.1 | I176: 0 | J176: 0 | K176: 0 | L176: 0.14836796 | M176: 0 | N176: 0 | O176: 0 | P176: 0 | Q176: 0 | R176: 0 | S176: 0 | T176: 0 | U176: 0 | V176: 0 | W176: 0.1 | X176: 0 | Y176: 0.1 | Z176: 0 | AA176: 0.1 | AB176: 0 | AC176: 0 | AD176: 0 | AE176: 0 | AF176: 0 | AG176: 0 | AH176: 0 | AI176: 0 | AJ176: 0 | AK176: manie | AL176: hail
A177: =B177+C177 -> 1.238095238 | B177: =D177/Author1Sections -> 0.2380952381 | C177: =E177/Author2Sections -> 1 | D177: =COUNTIF(OFFSET(H177,0,0,1,Author1Sections),">0") -> 5 | E177: =COUNTIF(OFFSET(H177,0,Author1Sections,1,Author2Sections),"=0") -> 8 | F177: 589 | G177: cruell | H177: 0 | I177: 0.2 | J177: 0 | K177: 0 | L177: 0 | M177: 0 | N177: 0 | O177: 0.1 | P177: 0 | Q177: 0 | R177: 0 | S177: 0 | T177: 0 | U177: 0 | V177: 0.1 | W177: 0 | X177: 0.1 | Y177: 0 | Z177: 0 | AA177: 0.1 | AB177: 0 | AC177: 0 | AD177: 0 | AE177: 0 | AF177: 0 | AG177: 0 | AH177: 0 | AI177: 0 | AJ177: 0 | AK177: paint | AL177: laid
A178: =B178+C178 -> 1.238095238 | B178: =D178/Author1Sections -> 0.2380952381 | C178: =E178/Author2Sections -> 1 | D178: =COUNTIF(OFFSET(H178,0,0,1,Author1Sections),">0") -> 5 | E178: =COUNTIF(OFFSET(H178,0,Author1Sections,1,Author2Sections),"=0") -> 8 | F178: 591 | G178: dart | H178: 0 | I178: 0 | J178: 0 | K178: 0 | L178: 0 | M178: 0.1 | N178: 0 | O178: 0 | P178: 0 | Q178: 0.2 | R178: 0 | S178: 0.1 | T178: 0 | U178: 0.1 | V178: 0 | W178: 0 | X178: 0 | Y178: 0.1 | Z178: 0 | AA178: 0 | AB178: 0 | AC178: 0 | AD178: 0 | AE178: 0 | AF178: 0 | AG178: 0 | AH178: 0 | AI178: 0 | AJ178: 0 | AK178: pen | AL178: lov'd
A179: =B179+C179 -> 1.238095238 | B179: =D179/Author1Sections -> 0.2380952381 | C179: =E179/Author2Sections -> 1 | D179: =COUNTIF(OFFSET(H179,0,0,1,Author1Sections),">0") -> 5 | E179: =COUNTIF(OFFSET(H179,0,Author1Sections,1,Author2Sections),"=0") -> 8 | F179: 592 | G179: disgrace | H179: 0 | I179: 0 | J179: 0 | K179: 0 | L179: 0 | M179: 0 | N179: 0 | O179: 0 | P179: 0 | Q179: 0 | R179: 0.1 | S179: 0 | T179: 0 | U179: 0.1 | V179: 0 | W179: 0.1 | X179: 0.1 | Y179: 0 | Z179: 0 | AA179: 0 | AB179: 0.14074595 | AC179: 0 | AD179: 0 | AE179: 0 | AF179: 0 | AG179: 0 | AH179: 0 | AI179: 0 | AJ179: 0 | AK179: point | AL179: lovely
A180: =B180+C180 -> 1.238095238 | B180: =D180/Author1Sections -> 0.2380952381 | C180: =E180/Author2Sections -> 1 | D180: =COUNTIF(OFFSET(H180,0,0,1,Author1Sections),">0") -> 5 | E180: =COUNTIF(OFFSET(H180,0,Author1Sections,1,Author2Sections),"=0") -> 8 | F180: 597 | G180: excell | H180: 0 | I180: 0 | J180: 0 | K180: 0 | L180: 0.07418398 | M180: 0 | N180: 0.2 | O180: 0 | P180: 0.1 | Q180: 0 | R180: 0 | S180: 0 | T180: 0.1 | U180: 0.1 | V180: 0 | W180: 0 | X180: 0 | Y180: 0 | Z180: 0 | AA180: 0 | AB180: 0 | AC180: 0 | AD180: 0 | AE180: 0 | AF180: 0 | AG180: 0 | AH180: 0 | AI180: 0 | AJ180: 0 | AK180: reach | AL180: nun
A181: =B181+C181 -> 1.238095238 | B181: =D181/Author1Sections -> 0.2380952381 | C181: =E181/Author2Sections -> 1 | D181: =COUNTIF(OFFSET(H181,0,0,1,Author1Sections),">0") -> 5 | E181: =COUNTIF(OFFSET(H181,0,Author1Sections,1,Author2Sections),"=0") -> 8 | F181: 598 | G181: excellent | H181: 0 | I181: 0 | J181: 0.1 | K181: 0 | L181: 0 | M181: 0.2 | N181: 0.1 | O181: 0.1 | P181: 0.1 | Q181: 0 | R181: 0 | S181: 0 | T181: 0 | U181: 0 | V181: 0 | W181: 0 | X181: 0 | Y181: 0 | Z181: 0 | AA181: 0 | AB181: 0 | AC181: 0 | AD181: 0 | AE181: 0 | AF181: 0 | AG181: 0 | AH181: 0 | AI181: 0 | AJ181: 0 | AK181: seeke | AL181: rain
A182: =B182+C182 -> 1.238095238 | B182: =D182/Author1Sections -> 0.2380952381 | C182: =E182/Author2Sections -> 1 | D182: =COUNTIF(OFFSET(H182,0,0,1,Author1Sections),">0") -> 5 | E182: =COUNTIF(OFFSET(H182,0,Author1Sections,1,Author2Sections),"=0") -> 8 | F182: 606 | G182: glorie | H182: 0.1 | I182: 0.1 | J182: 0 | K182: 0.1 | L182: 0.14836796 | M182: 0 | N182: 0 | O182: 0 | P182: 0.1 | Q182: 0 | R182: 0 | S182: 0 | T182: 0 | U182: 0 | V182: 0 | W182: 0 | X182: 0 | Y182: 0 | Z182: 0 | AA182: 0 | AB182: 0 | AC182: 0 | AD182: 0 | AE182: 0 | AF182: 0 | AG182: 0 | AH182: 0 | AI182: 0 | AJ182: 0 | AK182: sinfull | AL182: round
A183: =B183+C183 -> 1.238095238 | B183: =D183/Author1Sections -> 0.2380952381 | C183: =E183/Author2Sections -> 1 | D183: =COUNTIF(OFFSET(H183,0,0,1,Author1Sections),">0") -> 5 | E183: =COUNTIF(OFFSET(H183,0,Author1Sections,1,Author2Sections),"=0") -> 8 | F183: 616 | G183: indeed | H183: 0 | I183: 0 | J183: 0 | K183: 0 | L183: 0 | M183: 0 | N183: 0.1 | O183: 0.1 | P183: 0 | Q183: 0.1 | R183: 0 | S183: 0 | T183: 0 | U183: 0 | V183: 0.1 | W183: 0.2 | X183: 0 | Y183: 0 | Z183: 0 | AA183: 0 | AB183: 0 | AC183: 0 | AD183: 0 | AE183: 0 | AF183: 0 | AG183: 0 | AH183: 0 | AI183: 0 | AJ183: 0 | AK183: vertuous | AL183: spreads
A184: =B184+C184 -> 1.238095238 | B184: =D184/Author1Sections -> 0.2380952381 | C184: =E184/Author2Sections -> 1 | D184: =COUNTIF(OFFSET(H184,0,0,1,Author1Sections),">0") -> 5 | E184: =COUNTIF(OFFSET(H184,0,Author1Sections,1,Author2Sections),"=0") -> 8 | F184: 620 | G184: lou'd | H184: 0 | I184: 0 | J184: 0 | K184: 0 | L184: 0 | M184: 0 | N184: 0 | O184: 0 | P184: 0.1 | Q184: 0 | R184: 0 | S184: 0 | T184: 0.1 | U184: 0.1 | V184: 0 | W184: 0.2 | X184: 0 | Y184: 0 | Z184: 0 | AA184: 0.1 | AB184: 0 | AC184: 0 | AD184: 0 | AE184: 0 | AF184: 0 | AG184: 0 | AH184: 0 | AI184: 0 | AJ184: 0 | AK184: whiles | AL184: suffering
A185: =B185+C185 -> 1.238095238 | B185: =D185/Author1Sections -> 0.2380952381 | C185: =E185/Author2Sections -> 1 | D185: =COUNTIF(OFFSET(H185,0,0,1,Author1Sections),">0") -> 5 | E185: =COUNTIF(OFFSET(H185,0,Author1Sections,1,Author2Sections),"=0") -> 8 | F185: 623 | G185: manie | H185: 0.1 | I185: 0.2 | J185: 0.1 | K185: 0 | L185: 0.07418398 | M185: 0 | N185: 0.1 | O185: 0 | P185: 0 | Q185: 0 | R185: 0 | S185: 0 | T185: 0 | U185: 0 | V185: 0 | W185: 0 | X185: 0 | Y185: 0 | Z185: 0 | AA185: 0 | AB185: 0 | AC185: 0 | AD185: 0 | AE185: 0 | AF185: 0 | AG185: 0 | AH185: 0 | AI185: 0 | AJ185: 0 | AK185: wight | AL185: summer
A186: =B186+C186 -> 1.238095238 | B186: =D186/Author1Sections -> 0.2380952381 | C186: =E186/Author2Sections -> 1 | D186: =COUNTIF(OFFSET(H186,0,0,1,Author1Sections),">0") -> 5 | E186: =COUNTIF(OFFSET(H186,0,Author1Sections,1,Author2Sections),"=0") -> 8 | F186: 633 | G186: paint | H186: 0 | I186: 0 | J186: 0 | K186: 0 | L186: 0 | M186: 0 | N186: 0 | O186: 0 | P186: 0.2 | Q186: 0 | R186: 0 | S186: 0 | T186: 0 | U186: 0 | V186: 0 | W186: 0 | X186: 0.1 | Y186: 0 | Z186: 0.1 | AA186: 0.1 | AB186: 0.07037298 | AC186: 0 | AD186: 0 | AE186: 0 | AF186: 0 | AG186: 0 | AH186: 0 | AI186: 0 | AJ186: 0 | AK186: wound | AL186: tells
A187: =B187+C187 -> 1.238095238 | B187: =D187/Author1Sections -> 0.2380952381 | C187: =E187/Author2Sections -> 1 | D187: =COUNTIF(OFFSET(H187,0,0,1,Author1Sections),">0") -> 5 | E187: =COUNTIF(OFFSET(H187,0,Author1Sections,1,Author2Sections),"=0") -> 8 | F187: 638 | G187: pen | H187: 0 | I187: 0 | J187: 0 | K187: 0 | L187: 0 | M187: 0 | N187: 0 | O187: 0 | P187: 0.1 | Q187: 0.1 | R187: 0.1 | S187: 0 | T187: 0 | U187: 0 | V187: 0.1 | W187: 0 | X187: 0.2 | Y187: 0 | Z187: 0 | AA187: 0 | AB187: 0 | AC187: 0 | AD187: 0 | AE187: 0 | AF187: 0 | AG187: 0 | AH187: 0 | AI187: 0 | AJ187: 0 | AK187: although | AL187: touch'd
A188: =B188+C188 -> 1.238095238 | B188: =D188/Author1Sections -> 0.2380952381 | C188: =E188/Author2Sections -> 1 | D188: =COUNTIF(OFFSET(H188,0,0,1,Author1Sections),">0") -> 5 | E188: =COUNTIF(OFFSET(H188,0,Author1Sections,1,Author2Sections),"=0") -> 8 | F188: 644 | G188: point | H188: 0 | I188: 0 | J188: 0 | K188: 0 | L188: 0 | M188: 0.1 | N188: 0 | O188: 0.2 | P188: 0.1 | Q188: 0 | R188: 0.1 | S188: 0 | T188: 0 | U188: 0 | V188: 0.1 | W188: 0 | X188: 0 | Y188: 0 | Z188: 0 | AA188: 0 | AB188: 0 | AC188: 0 | AD188: 0 | AE188: 0 | AF188: 0 | AG188: 0 | AH188: 0 | AI188: 0 | AJ188: 0 | AK188: betweene | AL188: unseen
A189: =B189+C189 -> 1.238095238 | B189: =D189/Author1Sections -> 0.2380952381 | C189: =E189/Author2Sections -> 1 | D189: =COUNTIF(OFFSET(H189,0,0,1,Author1Sections),">0") -> 5 | E189: =COUNTIF(OFFSET(H189,0,Author1Sections,1,Author2Sections),"=0") -> 8 | F189: 649 | G189: reach | H189: 0 | I189: 0 | J189: 0 | K189: 0.2 | L189: 0.07418398 | M189: 0 | N189: 0 | O189: 0 | P189: 0.1 | Q189: 0.1 | R189: 0 | S189: 0 | T189: 0.1 | U189: 0 | V189: 0 | W189: 0 | X189: 0 | Y189: 0 | Z189: 0 | AA189: 0 | AB189: 0 | AC189: 0 | AD189: 0 | AE189: 0 | AF189: 0 | AG189: 0 | AH189: 0 | AI189: 0 | AJ189: 0 | AK189: crie | AL189: wet
A190: =B190+C190 -> 1.238095238 | B190: =D190/Author1Sections -> 0.2380952381 | C190: =E190/Author2Sections -> 1 | D190: =COUNTIF(OFFSET(H190,0,0,1,Author1Sections),">0") -> 5 | E190: =COUNTIF(OFFSET(H190,0,Author1Sections,1,Author2Sections),"=0") -> 8 | F190: 653 | G190: seeke | H190: 0 | I190: 0 | J190: 0 | K190: 0.1 | L190: 0.07418398 | M190: 0.1 | N190: 0.1 | O190: 0 | P190: 0 | Q190: 0 | R190: 0 | S190: 0 | T190: 0 | U190: 0 | V190: 0 | W190: 0 | X190: 0 | Y190: 0 | Z190: 0 | AA190: 0.2 | AB190: 0 | AC190: 0 | AD190: 0 | AE190: 0 | AF190: 0 | AG190: 0 | AH190: 0 | AI190: 0 | AJ190: 0 | AK190: dame | AL190: world's
A191: =B191+C191 -> 1.238095238 | B191: =D191/Author1Sections -> 0.2380952381 | C191: =E191/Author2Sections -> 1 | D191: =COUNTIF(OFFSET(H191,0,0,1,Author1Sections),">0") -> 5 | E191: =COUNTIF(OFFSET(H191,0,Author1Sections,1,Author2Sections),"=0") -> 8 | F191: 661 | G191: sinfull | H191: 0.1 | I191: 0 | J191: 0.1 | K191: 0 | L191: 0.07418398 | M191: 0 | N191: 0 | O191: 0 | P191: 0 | Q191: 0 | R191: 0.2 | S191: 0 | T191: 0 | U191: 0 | V191: 0 | W191: 0 | X191: 0 | Y191: 0 | Z191: 0.1 | AA191: 0 | AB191: 0 | AC191: 0 | AD191: 0 | AE191: 0 | AF191: 0 | AG191: 0 | AH191: 0 | AI191: 0 | AJ191: 0 | AK191: eies | AL191: youthful
A192: =B192+C192 -> 1.238095238 | B192: =D192/Author1Sections -> 0.2380952381 | C192: =E192/Author2Sections -> 1 | D192: =COUNTIF(OFFSET(H192,0,0,1,Author1Sections),">0") -> 5 | E192: =COUNTIF(OFFSET(H192,0,Author1Sections,1,Author2Sections),"=0") -> 8 | F192: 678 | G192: vertuous | H192: 0 | I192: 0 | J192: 0.1 | K192: 0.2 | L192: 0 | M192: 0 | N192: 0 | O192: 0 | P192: 0 | Q192: 0 | R192: 0 | S192: 0.1 | T192: 0 | U192: 0 | V192: 0.1 | W192: 0 | X192: 0.1 | Y192: 0 | Z192: 0 | AA192: 0 | AB192: 0 | AC192: 0 | AD192: 0 | AE192: 0 | AF192: 0 | AG192: 0 | AH192: 0 | AI192: 0 | AJ192: 0 | AK192: hauing | AL192: 'and
A193: =B193+C193 -> 1.238095238 | B193: =D193/Author1Sections -> 0.2380952381 | C193: =E193/Author2Sections -> 1 | D193: =COUNTIF(OFFSET(H193,0,0,1,Author1Sections),">0") -> 5 | E193: =COUNTIF(OFFSET(H193,0,Author1Sections,1,Author2Sections),"=0") -> 8 | F193: 682 | G193: whiles | H193: 0 | I193: 0.2 | J193: 0.1 | K193: 0 | L193: 0 | M193: 0 | N193: 0 | O193: 0 | P193: 0 | Q193: 0 | R193: 0 | S193: 0.1 | T193: 0 | U193: 0 | V193: 0 | W193: 0 | X193: 0 | Y193: 0 | Z193: 0 | AA193: 0.1 | AB193: 0.07037298 | AC193: 0 | AD193: 0 | AE193: 0 | AF193: 0 | AG193: 0 | AH193: 0 | AI193: 0 | AJ193: 0 | AK193: mourning | AL193: 'for
A194: =B194+C194 -> 1.238095238 | B194: =D194/Author1Sections -> 0.2380952381 | C194: =E194/Author2Sections -> 1 | D194: =COUNTIF(OFFSET(H194,0,0,1,Author1Sections),">0") -> 5 | E194: =COUNTIF(OFFSET(H194,0,Author1Sections,1,Author2Sections),"=0") -> 8 | F194: 683 | G194: wight | H194: 0 | I194: 0.1 | J194: 0 | K194: 0.1 | L194: 0.07418398 | M194: 0 | N194: 0 | O194: 0 | P194: 0 | Q194: 0 | R194: 0 | S194: 0.1 | T194: 0 | U194: 0 | V194: 0 | W194: 0 | X194: 0 | Y194: 0 | Z194: 0 | AA194: 0 | AB194: 0.14074595 | AC194: 0 | AD194: 0 | AE194: 0 | AF194: 0 | AG194: 0 | AH194: 0 | AI194: 0 | AJ194: 0 | AK194: plaint | AL194: acceptance
A195: =B195+C195 -> 1.238095238 | B195: =D195/Author1Sections -> 0.2380952381 | C195: =E195/Author2Sections -> 1 | D195: =COUNTIF(OFFSET(H195,0,0,1,Author1Sections),">0") -> 5 | E195: =COUNTIF(OFFSET(H195,0,Author1Sections,1,Author2Sections),"=0") -> 8 | F195: 687 | G195: wound | H195: 0 | I195: 0 | J195: 0 | K195: 0.1 | L195: 0 | M195: 0 | N195: 0 | O195: 0 | P195: 0.2 | Q195: 0 | R195: 0.1 | S195: 0 | T195: 0 | U195: 0 | V195: 0.1 | W195: 0 | X195: 0 | Y195: 0.1 | Z195: 0 | AA195: 0 | AB195: 0 | AC195: 0 | AD195: 0 | AE195: 0 | AF195: 0 | AG195: 0 | AH195: 0 | AI195: 0 | AJ195: 0 | AK195: powre | AL195: aim
A196: =B196+C196 -> 1.238095238 | B196: =D196/Author1Sections -> 0.2380952381 | C196: =E196/Author2Sections -> 1 | D196: =COUNTIF(OFFSET(H196,0,0,1,Author1Sections),">0") -> 5 | E196: =COUNTIF(OFFSET(H196,0,Author1Sections,1,Author2Sections),"=0") -> 8 | F196: 691 | G196: although | H196: 0 | I196: 0 | J196: 0 | K196: 0 | L196: 0.07418398 | M196: 0.1 | N196: 0 | O196: 0 | P196: 0.1 | Q196: 0 | R196: 0 | S196: 0 | T196: 0 | U196: 0.1 | V196: 0 | W196: 0 | X196: 0 | Y196: 0.1 | Z196: 0 | AA196: 0 | AB196: 0 | AC196: 0 | AD196: 0 | AE196: 0 | AF196: 0 | AG196: 0 | AH196: 0 | AI196: 0 | AJ196: 0 | AK196: raine | AL196: airy
A197: =B197+C197 -> 1.238095238 | B197: =D197/Author1Sections -> 0.2380952381 | C197: =E197/Author2Sections -> 1 | D197: =COUNTIF(OFFSET(H197,0,0,1,Author1Sections),">0") -> 5 | E197: =COUNTIF(OFFSET(H197,0,Author1Sections,1,Author2Sections),"=0") -> 8 | F197: 700 | G197: betweene | H197: 0 | I197: 0 | J197: 0 | K197: 0 | L197: 0 | M197: 0 | N197: 0.1 | O197: 0 | P197: 0 | Q197: 0.1 | R197: 0.1 | S197: 0 | T197: 0 | U197: 0.1 | V197: 0 | W197: 0 | X197: 0 | Y197: 0.1 | Z197: 0 | AA197: 0 | AB197: 0 | AC197: 0 | AD197: 0 | AE197: 0 | AF197: 0 | AG197: 0 | AH197: 0 | AI197: 0 | AJ197: 0 | AK197: riches | AL197: aloof
A198: =B198+C198 -> 1.238095238 | B198: =D198/Author1Sections -> 0.2380952381 | C198: =E198/Author2Sections -> 1 | D198: =COUNTIF(OFFSET(H198,0,0,1,Author1Sections),">0") -> 5 | E198: =COUNTIF(OFFSET(H198,0,Author1Sections,1,Author2Sections),"=0") -> 8 | F198: 712 | G198: crie | H198: 0 | I198: 0.1 | J198: 0 | K198: 0.1 | L198: 0 | M198: 0 | N198: 0 | O198: 0 | P198: 0.1 | Q198: 0 | R198: 0.1 | S198: 0 | T198: 0 | U198: 0 | V198: 0 | W198: 0 | X198: 0.1 | Y198: 0 | Z198: 0 | AA198: 0 | AB198: 0 | AC198: 0 | AD198: 0 | AE198: 0 | AF198: 0 | AG198: 0 | AH198: 0 | AI198: 0 | AJ198: 0 | AK198: saying | AL198: altar
A199: =B199+C199 -> 1.238095238 | B199: =D199/Author1Sections -> 0.2380952381 | C199: =E199/Author2Sections -> 1 | D199: =COUNTIF(OFFSET(H199,0,0,1,Author1Sections),">0") -> 5 | E199: =COUNTIF(OFFSET(H199,0,Author1Sections,1,Author2Sections),"=0") -> 8 | F199: 716 | G199: dame | H199: 0 | I199: 0.1 | J199: 0.1 | K199: 0 | L199: 0 | M199: 0.1 | N199: 0 | O199: 0.1 | P199: 0.1 | Q199: 0 | R199: 0 | S199: 0 | T199: 0 | U199: 0 | V199: 0 | W199: 0 | X199: 0 | Y199: 0 | Z199: 0 | AA199: 0 | AB199: 0 | AC199: 0 | AD199: 0 | AE199: 0 | AF199: 0 | AG199: 0 | AH199: 0 | AI199: 0 | AJ199: 0 | AK199: seruants | AL199: april
A200: =B200+C200 -> 1.238095238 | B200: =D200/Author1Sections -> 0.2380952381 | C200: =E200/Author2Sections -> 1 | D200: =COUNTIF(OFFSET(H200,0,0,1,Author1Sections),">0") -> 5 | E200: =COUNTIF(OFFSET(H200,0,Author1Sections,1,Author2Sections),"=0") -> 8 | F200: 724 | G200: eies | H200: 0 | I200: 0 | J200: 0 | K200: 0.1 | L200: 0 | M200: 0.1 | N200: 0 | O200: 0.1 | P200: 0 | Q200: 0 | R200: 0 | S200: 0.1 | T200: 0 | U200: 0 | V200: 0.1 | W200: 0 | X200: 0 | Y200: 0 | Z200: 0 | AA200: 0 | AB200: 0 | AC200: 0 | AD200: 0 | AE200: 0 | AF200: 0 | AG200: 0 | AH200: 0 | AI200: 0 | AJ200: 0 | AK200: sort | AL200: aptly
... 4300 more rows

Sheet Author1
A1: Word | B1: Writingsduring 1550-1600 (1) | C1: Writingsduring 1550-1600 (2) | D1: Writingsduring 1550-1600 (3) | E1: Writingsduring 1550-1600 (4) | F1: Writingsduring 1550-1600 (5) | G1: Writing between 1550-1600 (1) | H1: Writing between 1550-1600 (2) | I1: Writing between 1550-1600 (3) | J1: Writing between 1550-1600 (4) | K1: Writing between 1550-1600 (5) | L1: Writing between 1550-1600 (6) | M1: Writing between 1550-1600 (7) | N1: Writing between 1550-1600 (8) | O1: Writing between 1550-1600 (9) | P1: Writing between 1550-1600 (10) | Q1: Writing between 1550-1600 (11) | R1: Writing between 1550-1600 (12) | S1: Writing between 1550-1600 (13) | T1: Writing between 1550-1600 (14) | U1: Writing between 1550-1600 (15) | V1: Writing between 1550-1600 (16)
A2: the | B2: 2.8 | C2: 2.6 | D2: 2.1 | E2: 2.6 | F2: 3.338279 | G2: 4.7 | H2: 4.5 | I2: 4.5 | J2: 3 | K2: 1.6 | L2: 1.6 | M2: 2.6 | N2: 1.4 | O2: 2.8 | P2: 1.6 | Q2: 0.9 | R2: 1.6 | S2: 1.9 | T2: 1.3 | U2: 1.6 | V2: 1.6889515
A3: and | B3: 3.9 | C3: 4.6 | D3: 4.9 | E3: 2.4 | F3: 2.967359 | G3: 1.5 | H3: 1.8 | I3: 1.8 | J3: 2.7 | K3: 2.8 | L3: 2.3 | M3: 2.1 | N3: 2.2 | O3: 1.7 | P3: 2.2 | Q3: 1.6 | R3: 1.4 | S3: 1.8 | T3: 1.5 | U3: 1.2 | V3: 1.9000704
A4: of | B4: 4.2 | C4: 2.3 | D4: 4.2 | E4: 3.7 | F4: 3.412463 | G4: 3.4 | H4: 2.4 | I4: 3.2 | J4: 2.3 | K4: 2.4 | L4: 1.8 | M4: 3 | N4: 2 | O4: 2.9 | P4: 2.4 | Q4: 2.1 | R4: 2.6 | S4: 2.2 | T4: 2.5 | U4: 2.3 | V4: 1.6185784
A5: to | B5: 2.3 | C5: 3.1 | D5: 2.5 | E5: 2.7 | F5: 2.8189912 | G5: 2.2 | H5: 2.7 | I5: 2.6 | J5: 2.9 | K5: 2 | L5: 1.9 | M5: 1.9 | N5: 2.3 | O5: 1.8 | P5: 2.6 | Q5: 2.3 | R5: 3.1 | S5: 1.5 | T5: 2.4 | U5: 1.4 | V5: 2.0408163
A6: that | B6: 2.5 | C6: 1.6 | D6: 1.5 | E6: 2.5 | F6: 2.3738873 | G6: 1 | H6: 1 | I6: 1.2 | J6: 2.5 | K6: 2.2 | L6: 2.5 | M6: 2.3 | N6: 1.8 | O6: 2.1 | P6: 2.3 | Q6: 2 | R6: 0.8 | S6: 2.4 | T6: 1 | U6: 2 | V6: 2.1815622
A7: in | B7: 1.6 | C7: 1.2 | D7: 2.1 | E7: 1.9 | F7: 1.7804154 | G7: 1.2 | H7: 1.9 | I7: 1.4 | J7: 2.3 | K7: 2.6 | L7: 2.2 | M7: 2.2 | N7: 2.2 | O7: 1.4 | P7: 1.5 | Q7: 1.7 | R7: 2.2 | S7: 1.7 | T7: 1.6 | U7: 1.9 | V7: 1.7593244
A8: i | B8: 1.7 | C8: 0.8 | D8: 0.7 | E8: 0.8 | F8: 1.6320475 | G8: 1.7 | H8: 2.2 | I8: 1.6 | J8: 2.1 | K8: 0.9 | L8: 2.3 | M8: 2.1 | N8: 1.7 | O8: 1.7 | P8: 2.8 | Q8: 3.2 | R8: 1.9 | S8: 1.7 | T8: 2.7 | U8: 2.3 | V8: 1.0555947
A9: my | B9: 1.1 | C9: 1 | D9: 0.4 | E9: 0.8 | F9: 0.5192878 | G9: 1.3 | H9: 0.8 | I9: 1 | J9: 1.8 | K9: 0.6 | L9: 1.9 | M9: 2 | N9: 2.1 | O9: 2.3 | P9: 2.5 | Q9: 2.4 | R9: 3.6 | S9: 1.6 | T9: 2 | U9: 3.7 | V9: 2.3223083
A10: with | B10: 1.7 | C10: 1.5 | D10: 1.1 | E10: 2.1 | F10: 1.7804154 | G10: 1.4 | H10: 0.8 | I10: 1 | J10: 1 | K10: 1.4 | L10: 1 | M10: 1.3 | N10: 1.1 | O10: 0.7 | P10: 1 | Q10: 2.3 | R10: 1 | S10: 1.4 | T10: 1 | U10: 1.6 | V10: 1.6889515
A11: a | B11: 0.7 | C11: 0.4 | D11: 0.2 | E11: 0.5 | F11: 1.4094956 | G11: 2.2 | H11: 1.9 | I11: 2.5 | J11: 0.5 | K11: 0.9 | L11: 1.1 | M11: 0.2 | N11: 1.3 | O11: 1.2 | P11: 1 | Q11: 1.1 | R11: 0.4 | S11: 1.5 | T11: 0.6 | U11: 0.5 | V11: 0.9852217
A12: but | B12: 0.8 | C12: 0.8 | D12: 0.9 | E12: 1.3 | F12: 0.5934718 | G12: 0.9 | H12: 1.4 | I12: 0.8 | J12: 1.1 | K12: 0.9 | L12: 0.8 | M12: 1.3 | N12: 1.2 | O12: 1.1 | P12: 1.3 | Q12: 1.4 | R12: 1.3 | S12: 1.2 | T12: 1 | U12: 0.8 | V12: 1.4074595
A13: his | B13: 0.3 | C13: 2.6 | D13: 1.8 | E13: 0.8 | F13: 1.4094956 | G13: 0.7 | H13: 0.9 | I13: 0.7 | J13: 0.4 | K13: 1.3 | L13: 1.2 | M13: 0.6 | N13: 0.9 | O13: 0.5 | P13: 0.7 | Q13: 0.8 | R13: 0 | S13: 0.8 | T13: 0.4 | U13: 0.3 | V13: 0.5629838
A14: her | B14: 1.9 | C14: 0.3 | D14: 0.4 | E14: 0.6 | F14: 0.5192878 | G14: 1.7 | H14: 0.3 | I14: 0.9 | J14: 0.7 | K14: 1.1 | L14: 1 | M14: 0.5 | N14: 0.9 | O14: 0.9 | P14: 0.7 | Q14: 1.5 | R14: 0.5 | S14: 0.4 | T14: 1.1 | U14: 0.2 | V14: 0.6333568
A15: for | B15: 0.4 | C15: 1 | D15: 0.7 | E15: 1.7 | F15: 0.81602377 | G15: 1 | H15: 0.8 | I15: 0.7 | J15: 0.8 | K15: 0.7 | L15: 1 | M15: 1.4 | N15: 0.5 | O15: 0.6 | P15: 0.5 | Q15: 0.6 | R15: 0.9 | S15: 0.6 | T15: 0.6 | U15: 0.9 | V15: 0.49261084
A16: is | B16: 0.8 | C16: 1.7 | D16: 0.1 | E16: 0.4 | F16: 0.44510385 | G16: 1.5 | H16: 1.4 | I16: 1.6 | J16: 0.9 | K16: 0.9 | L16: 0.7 | M16: 0.2 | N16: 0.8 | O16: 0.8 | P16: 1.2 | Q16: 0.6 | R16: 0.8 | S16: 0.8 | T16: 0.7 | U16: 0.6 | V16: 0.9148487
A17: me | B17: 0.9 | C17: 0.3 | D17: 0.5 | E17: 0.1 | F17: 0.2967359 | G17: 0.3 | H17: 1.2 | I17: 0.1 | J17: 0.6 | K17: 0.3 | L17: 0.6 | M17: 0.7 | N17: 0.9 | O17: 1.4 | P17: 1.7 | Q17: 1.9 | R17: 1.7 | S17: 0.5 | T17: 0.9 | U17: 1.1 | V17: 1.0555947
A18: not | B18: 0 | C18: 0.1 | D18: 0.1 | E18: 0.5 | F18: 0.5934718 | G18: 0.5 | H18: 0.9 | I18: 0.8 | J18: 0.9 | K18: 0.6 | L18: 0.5 | M18: 0.4 | N18: 1.2 | O18: 0.7 | P18: 1.1 | Q18: 0.7 | R18: 0.8 | S18: 0.5 | T18: 0.8 | U18: 0.7 | V18: 0.5629838
A19: so | B19: 0.6 | C19: 0.6 | D19: 0.6 | E19: 1 | F19: 0.2967359 | G19: 0.7 | H19: 1 | I19: 0.5 | J19: 0.3 | K19: 0.5 | L19: 0.6 | M19: 0.6 | N19: 1 | O19: 0.7 | P19: 1 | Q19: 0.9 | R19: 0.8 | S19: 1.2 | T19: 0.4 | U19: 0.8 | V19: 1.2667136
A20: be | B20: 0.2 | C20: 0.4 | D20: 0.7 | E20: 1 | F20: 0.5934718 | G20: 0.2 | H20: 0.9 | I20: 1.3 | J20: 1 | K20: 0.7 | L20: 0.7 | M20: 0.4 | N20: 0.9 | O20: 0.6 | P20: 0.9 | Q20: 0.7 | R20: 0.7 | S20: 0.5 | T20: 0.8 | U20: 0.8 | V20: 0.6333568
A21: all | B21: 1.1 | C21: 1.3 | D21: 1.1 | E21: 1 | F21: 1.4094956 | G21: 0.5 | H21: 0.7 | I21: 0.2 | J21: 0.3 | K21: 0.3 | L21: 0.7 | M21: 0.4 | N21: 0.3 | O21: 0.3 | P21: 0.2 | Q21: 0.3 | R21: 0.7 | S21: 0.2 | T21: 0.9 | U21: 0.5 | V21: 0.2814919
A22: which | B22: 1.1 | C22: 0.8 | D22: 1.1 | E22: 0.8 | F22: 0.9643917 | G22: 0.6 | H22: 0.4 | I22: 0.5 | J22: 0.4 | K22: 1 | L22: 1.3 | M22: 0.6 | N22: 0.5 | O22: 0.5 | P22: 0.5 | Q22: 0.4 | R22: 0.5 | S22: 1.2 | T22: 0.6 | U22: 0.3 | V22: 0.9148487
A23: as | B23: 0.8 | C23: 0.7 | D23: 0.4 | E23: 0.2 | F23: 0.66765577 | G23: 1.2 | H23: 1.5 | I23: 1.4 | J23: 0.8 | K23: 0.3 | L23: 0.4 | M23: 0.3 | N23: 0.4 | O23: 0.4 | P23: 0.2 | Q23: 0.3 | R23: 0.3 | S23: 0.6 | T23: 0.2 | U23: 0.6 | V23: 0.70372975
A24: thy | B24: 0.3 | C24: 0.5 | D24: 1 | E24: 0.1 | F24: 0.07418398 | G24: 0 | H24: 0.9 | I24: 0.1 | J24: 0.1 | K24: 0.8 | L24: 0.4 | M24: 0 | N24: 1.7 | O24: 0.6 | P24: 0.2 | Q24: 0.2 | R24: 1 | S24: 0.6 | T24: 0.5 | U24: 1.2 | V24: 1.0555947
A25: thou | B25: 0.1 | C25: 0.3 | D25: 1.1 | E25: 0 | F25: 0 | G25: 0 | H25: 0.3 | I25: 0.4 | J25: 0.1 | K25: 1.6 | L25: 0.1 | M25: 0 | N25: 0.8 | O25: 0.7 | P25: 0.3 | Q25: 0.3 | R25: 1.5 | S25: 0.3 | T25: 0.3 | U25: 0.9 | V25: 0.5629838
A26: he | B26: 0 | C26: 1.2 | D26: 0.5 | E26: 0.2 | F26: 0.74183977 | G26: 0.2 | H26: 0.9 | I26: 0.7 | J26: 0.8 | K26: 0.5 | L26: 0.6 | M26: 0.4 | N26: 0.2 | O26: 0.9 | P26: 0.7 | Q26: 1.2 | R26: 0.1 | S26: 0.5 | T26: 0 | U26: 0.3 | V26: 0.07037298
A27: it | B27: 0.5 | C27: 0.6 | D27: 0.4 | E27: 0.5 | F27: 1.0385756 | G27: 0.8 | H27: 0.2 | I27: 0.8 | J27: 1.1 | K27: 0.3 | L27: 0.4 | M27: 0.6 | N27: 0.6 | O27: 0.4 | P27: 0.3 | Q27: 0.4 | R27: 0.2 | S27: 1 | T27: 0.1 | U27: 0.1 | V27: 0.5629838
A28: or | B28: 0.5 | C28: 0.3 | D28: 0.2 | E28: 0.3 | F28: 0.22255193 | G28: 0.2 | H28: 0.5 | I28: 0.4 | J28: 0.8 | K28: 0.9 | L28: 0.1 | M28: 0.4 | N28: 0.4 | O28: 0.2 | P28: 0.3 | Q28: 0.2 | R28: 0.4 | S28: 0.1 | T28: 0.6 | U28: 1.1 | V28: 0.07037298
A29: by | B29: 0.6 | C29: 0.2 | D29: 0.1 | E29: 0.3 | F29: 0.22255193 | G29: 0.4 | H29: 0.1 | I29: 0.1 | J29: 0.2 | K29: 0.5 | L29: 0.4 | M29: 0.5 | N29: 0.6 | O29: 0.8 | P29: 0.6 | Q29: 0.6 | R29: 0.7 | S29: 0.7 | T29: 0.7 | U29: 0.6 | V29: 0.70372975
A30: you | B30: 0 | C30: 0.3 | D30: 0 | E30: 0 | F30: 0 | G30: 1 | H30: 1.8 | I30: 1.5 | J30: 1 | K30: 0 | L30: 0.4 | M30: 0.2 | N30: 0.1 | O30: 0.2 | P30: 0.6 | Q30: 0.4 | R30: 0.1 | S30: 0 | T30: 1.9 | U30: 1.8 | V30: 0.21111894
A31: did | B31: 0.7 | C31: 0.5 | D31: 0.7 | E31: 0.5 | F31: 0.81602377 | G31: 0 | H31: 0.3 | I31: 0 | J31: 0.6 | K31: 0.5 | L31: 1.1 | M31: 0.6 | N31: 0.3 | O31: 0.4 | P31: 0.1 | Q31: 0.4 | R31: 0.1 | S31: 0.4 | T31: 0.7 | U31: 0.5 | V31: 0.5629838
A32: this | B32: 0.4 | C32: 0.2 | D32: 0.6 | E32: 0.5 | F32: 1.1127596 | G32: 0.7 | H32: 1 | I32: 0.4 | J32: 0.8 | K32: 0.3 | L32: 0.2 | M32: 0.5 | N32: 0.2 | O32: 0.4 | P32: 0.5 | Q32: 0.7 | R32: 0.6 | S32: 0.6 | T32: 0.3 | U32: 0.5 | V32: 0.35186487
A33: their | B33: 1.1 | C33: 0.2 | D33: 0.7 | E33: 0.4 | F33: 0.22255193 | G33: 0.3 | H33: 0.6 | I33: 1.3 | J33: 0.3 | K33: 0.4 | L33: 0.3 | M33: 0.8 | N33: 0.1 | O33: 0 | P33: 0.5 | Q33: 0.2 | R33: 0.2 | S33: 0.3 | T33: 0.1 | U33: 0 | V33: 0.42223787
A34: from | B34: 0.3 | C34: 0.3 | D34: 0.2 | E34: 0.4 | F34: 0.5192878 | G34: 0.1 | H34: 0.1 | I34: 0.3 | J34: 0.3 | K34: 0.6 | L34: 0.2 | M34: 0.5 | N34: 0.3 | O34: 1 | P34: 0.4 | Q34: 0.3 | R34: 0.2 | S34: 0.3 | T34: 0.4 | U34: 0.8 | V34: 0.9148487
A35: now | B35: 1.1 | C35: 1.2 | D35: 0.7 | E35: 0.4 | F35: 0.44510385 | G35: 0.4 | H35: 0.5 | I35: 0.2 | J35: 0.6 | K35: 0.2 | L35: 0.2 | M35: 0.3 | N35: 0.4 | O35: 0.2 | P35: 0.7 | Q35: 0.9 | R35: 0.4 | S35: 0.6 | T35: 0.3 | U35: 0.5 | V35: 0.2814919
A36: doth | B36: 0.3 | C36: 0.3 | D36: 0.2 | E36: 0.3 | F36: 0.14836796 | G36: 0.2 | H36: 0.1 | I36: 0.4 | J36: 0.1 | K36: 0.3 | L36: 1.1 | M36: 0.5 | N36: 1.1 | O36: 1 | P36: 0.8 | Q36: 0.5 | R36: 0.6 | S36: 0.8 | T36: 0.3 | U36: 0.6 | V36: 0.5629838
A37: do | B37: 0 | C37: 0 | D37: 0.3 | E37: 0.3 | F37: 0 | G37: 0.1 | H37: 0.5 | I37: 0.1 | J37: 0.4 | K37: 0.4 | L37: 0.7 | M37: 1.1 | N37: 0.7 | O37: 0.8 | P37: 1.1 | Q37: 0.2 | R37: 0.8 | S37: 0.3 | T37: 0.6 | U37: 0.9 | V37: 0.35186487
A38: what | B38: 0.6 | C38: 0.2 | D38: 0.3 | E38: 0 | F38: 0.14836796 | G38: 0.1 | H38: 0.2 | I38: 0.2 | J38: 0.6 | K38: 0.5 | L38: 0.4 | M38: 0.2 | N38: 1.1 | O38: 0.2 | P38: 0.4 | Q38: 0.3 | R38: 0.6 | S38: 0.7 | T38: 0.1 | U38: 0.3 | V38: 0.5629838
A39: loue | B39: 0 | C39: 0 | D39: 0 | E39: 0 | F39: 0 | G39: 0.1 | H39: 0.4 | I39: 0 | J39: 0.4 | K39: 1.1 | L39: 0.8 | M39: 0.9 | N39: 0.7 | O39: 0.5 | P39: 1.2 | Q39: 2 | R39: 0.5 | S39: 0.9 | T39: 0.4 | U39: 0.7 | V39: 0.42223787
A40: no | B40: 0.4 | C40: 0.5 | D40: 0.4 | E40: 0.2 | F40: 0.07418398 | G40: 0.2 | H40: 0.4 | I40: 0.3 | J40: 0.6 | K40: 0.1 | L40: 0.5 | M40: 0.4 | N40: 0.5 | O40: 0.5 | P40: 0.5 | Q40: 0.4 | R40: 1 | S40: 0.7 | T40: 0.4 | U40: 0.5 | V40: 0.2814919
A41: on | B41: 0.6 | C41: 0.6 | D41: 0 | E41: 0.7 | F41: 0.37091988 | G41: 0.2 | H41: 0.1 | I41: 0 | J41: 0.1 | K41: 0.3 | L41: 0.5 | M41: 0.3 | N41: 0.1 | O41: 0.4 | P41: 0.4 | Q41: 0.3 | R41: 0.6 | S41: 0.2 | T41: 0.2 | U41: 0.2 | V41: 0.35186487
A42: she | B42: 0.8 | C42: 0 | D42: 0.1 | E42: 0 | F42: 0.07418398 | G42: 0.7 | H42: 0.2 | I42: 0.1 | J42: 0.4 | K42: 0.7 | L42: 0.4 | M42: 0.1 | N42: 0.1 | O42: 0.7 | P42: 0.1 | Q42: 0.9 | R42: 0.5 | S42: 0.6 | T42: 0.5 | U42: 0.4 | V42: 0.35186487
A43: o | B43: 0.3 | C43: 0.2 | D43: 0.4 | E43: 0.8 | F43: 0.07418398 | G43: 0.1 | H43: 0.4 | I43: 0.6 | J43: 0.1 | K43: 0.1 | L43: 0.4 | M43: 0.1 | N43: 0.4 | O43: 0.9 | P43: 0.6 | Q43: 0.5 | R43: 0.7 | S43: 0.2 | T43: 0.3 | U43: 0.5 | V43: 0.5629838
A44: then | B44: 0.1 | C44: 0.1 | D44: 0.1 | E44: 0.4 | F44: 0.14836796 | G44: 0.3 | H44: 0.2 | I44: 0.4 | J44: 0.5 | K44: 0.1 | L44: 0.6 | M44: 0.2 | N44: 0.6 | O44: 0.9 | P44: 0.2 | Q44: 0.7 | R44: 0.5 | S44: 0.5 | T44: 0.4 | U44: 0.5 | V44: 0.5629838
A45: thee | B45: 0 | C45: 0.5 | D45: 0.6 | E45: 0 | F45: 0.14836796 | G45: 0 | H45: 0 | I45: 0.1 | J45: 0 | K45: 0.4 | L45: 0.3 | M45: 0 | N45: 0.5 | O45: 0.6 | P45: 0.1 | Q45: 0.2 | R45: 0.9 | S45: 0 | T45: 0.5 | U45: 0.4 | V45: 0.6333568
A46: they | B46: 0.1 | C46: 0.3 | D46: 0.8 | E46: 0.4 | F46: 0 | G46: 0.7 | H46: 0.4 | I46: 0.6 | J46: 0.2 | K46: 0.6 | L46: 0.3 | M46: 0.3 | N46: 0.4 | O46: 0.2 | P46: 0.7 | Q46: 0.2 | R46: 0.2 | S46: 0.2 | T46: 0 | U46: 0.5 | V46: 0.2814919
A47: your | B47: 0 | C47: 0.4 | D47: 0 | E47: 0.1 | F47: 0.22255193 | G47: 1.2 | H47: 0.7 | I47: 0.9 | J47: 0.6 | K47: 0 | L47: 0.6 | M47: 0.2 | N47: 0 | O47: 0.2 | P47: 0.3 | Q47: 0.8 | R47: 0 | S47: 0 | T47: 0.7 | U47: 0.2 | V47: 0.35186487
A48: where | B48: 0.7 | C48: 0.3 | D48: 0.4 | E48: 0.1 | F48: 0.44510385 | G48: 0.5 | H48: 0 | I48: 0.3 | J48: 0.1 | K48: 0.2 | L48: 0.1 | M48: 0 | N48: 0.3 | O48: 0.6 | P48: 0.2 | Q48: 0.1 | R48: 0.1 | S48: 0.4 | T48: 0.6 | U48: 0.2 | V48: 0.49261084
A49: was | B49: 1 | C49: 0.3 | D49: 0.1 | E49: 0.5 | F49: 1.4094956 | G49: 0.6 | H49: 0 | I49: 0.2 | J49: 0.4 | K49: 0 | L49: 0.3 | M49: 0.1 | N49: 0.1 | O49: 0.1 | P49: 0 | Q49: 0.1 | R49: 0 | S49: 0.1 | T49: 0.4 | U49: 0 | V49: 0.07037298
A50: yet | B50: 0.2 | C50: 0.4 | D50: 0.4 | E50: 0 | F50: 0.22255193 | G50: 0.2 | H50: 0.1 | I50: 0.3 | J50: 0.3 | K50: 0.3 | L50: 0.6 | M50: 0.4 | N50: 0.4 | O50: 0.7 | P50: 0.5 | Q50: 0.2 | R50: 0.2 | S50: 0.4 | T50: 0.2 | U50: 0.8 | V50: 0.07037298
A51: eyes | B51: 0.1 | C51: 0.1 | D51: 0 | E51: 0 | F51: 0.07418398 | G51: 0.2 | H51: 0.2 | I51: 0.1 | J51: 0.1 | K51: 0.5 | L51: 0.2 | M51: 0.3 | N51: 0.5 | O51: 0.7 | P51: 0.3 | Q51: 0.4 | R51: 0.8 | S51: 0.4 | T51: 0.5 | U51: 0.5 | V51: 0.42223787
A52: if | B52: 0.2 | C52: 0 | D52: 0 | E52: 0.1 | F52: 0.07418398 | G52: 0.1 | H52: 0.4 | I52: 0.5 | J52: 0.2 | K52: 0.3 | L52: 0.4 | M52: 0.4 | N52: 0.3 | O52: 0.7 | P52: 0 | Q52: 0.6 | R52: 0.2 | S52: 0.1 | T52: 0.4 | U52: 0.7 | V52: 0.21111894
A53: him | B53: 0 | C53: 1.5 | D53: 0.3 | E53: 0.4 | F53: 0.66765577 | G53: 0.1 | H53: 0.2 | I53: 0.7 | J53: 0.1 | K53: 0.3 | L53: 0.5 | M53: 0.3 | N53: 0.2 | O53: 0.3 | P53: 0.1 | Q53: 0.1 | R53: 0.1 | S53: 0.1 | T53: 0 | U53: 0.1 | V53: 0.14074595
A54: such | B54: 0.1 | C54: 0 | D54: 0.2 | E54: 0.7 | F54: 0.07418398 | G54: 0.3 | H54: 0.2 | I54: 0.3 | J54: 0.3 | K54: 0.2 | L54: 0.2 | M54: 0.4 | N54: 0.1 | O54: 0.4 | P54: 0.6 | Q54: 0.2 | R54: 0.3 | S54: 0.5 | T54: 0.4 | U54: 0.5 | V54: 0.5629838
A55: when | B55: 0.1 | C55: 0.3 | D55: 0.1 | E55: 0.2 | F55: 0.2967359 | G55: 0.2 | H55: 0 | I55: 0 | J55: 0.2 | K55: 0.5 | L55: 0.3 | M55: 0.2 | N55: 0.1 | O55: 0.4 | P55: 0.2 | Q55: 0.5 | R55: 0.2 | S55: 0.3 | T55: 0.3 | U55: 0.3 | V55: 0.2814919
A56: may | B56: 0.1 | C56: 0 | D56: 0.3 | E56: 0.3 | F56: 0 | G56: 0.4 | H56: 0.4 | I56: 0.1 | J56: 0.6 | K56: 0 | L56: 0 | M56: 0.2 | N56: 0.4 | O56: 0.1 | P56: 0.6 | Q56: 0.2 | R56: 0.9 | S56: 0 | T56: 0.1 | U56: 0.2 | V56: 0.07037298
A57: some | B57: 0.1 | C57: 0 | D57: 0 | E57: 0 | F57: 0.22255193 | G57: 0.2 | H57: 0.1 | I57: 0.5 | J57: 0.1 | K57: 1 | L57: 0.1 | M57: 0.5 | N57: 0.1 | O57: 0.3 | P57: 0.1 | Q57: 0.2 | R57: 0.3 | S57: 0.2 | T57: 0.2 | U57: 0.2 | V57: 0.14074595
A58: those | B58: 0.4 | C58: 0 | D58: 0.3 | E58: 0.2 | F58: 0.14836796 | G58: 0 | H58: 0 | I58: 0 | J58: 0.1 | K58: 0.2 | L58: 0.8 | M58: 0.8 | N58: 0.2 | O58: 0.4 | P58: 0.2 | Q58: 0.3 | R58: 0.2 | S58: 0.5 | T58: 0.6 | U58: 0 | V58: 0.70372975
A59: one | B59: 0.4 | C59: 0.2 | D59: 0 | E59: 0.7 | F59: 0.44510385 | G59: 0.8 | H59: 0.2 | I59: 0.5 | J59: 0.4 | K59: 0.2 | L59: 0 | M59: 0.1 | N59: 0.2 | O59: 0 | P59: 0.3 | Q59: 0.1 | R59: 0.2 | S59: 0.1 | T59: 0.2 | U59: 0.2 | V59: 0
A60: at | B60: 0.5 | C60: 0.1 | D60: 0 | E60: 0.3 | F60: 0.5934718 | G60: 0.2 | H60: 0.3 | I60: 0 | J60: 0.6 | K60: 0.2 | L60: 0.2 | M60: 0.1 | N60: 0.1 | O60: 0.3 | P60: 0.1 | Q60: 0.1 | R60: 0.2 | S60: 0.1 | T60: 0.2 | U60: 0.2 | V60: 0.14074595
A61: more | B61: 0.1 | C61: 0.2 | D61: 0.2 | E61: 0 | F61: 0.07418398 | G61: 0.1 | H61: 0.3 | I61: 0.4 | J61: 0.4 | K61: 0.2 | L61: 0.2 | M61: 0.2 | N61: 0.2 | O61: 0.2 | P61: 0.1 | Q61: 0.4 | R61: 0.6 | S61: 0.3 | T61: 0.5 | U61: 0.4 | V61: 0.14074595
A62: nor | B62: 0.2 | C62: 0.3 | D62: 0.2 | E62: 0.5 | F62: 0.07418398 | G62: 0.1 | H62: 0.2 | I62: 0.2 | J62: 0.2 | K62: 0 | L62: 0.1 | M62: 0.4 | N62: 0.2 | O62: 0 | P62: 0.5 | Q62: 0.1 | R62: 0.4 | S62: 0.7 | T62: 0.4 | U62: 0.2 | V62: 0.14074595
A63: who | B63: 0.3 | C63: 0.3 | D63: 0.2 | E63: 0.3 | F63: 0 | G63: 0.4 | H63: 0.2 | I63: 0.1 | J63: 0 | K63: 0.3 | L63: 0.4 | M63: 0.2 | N63: 0.1 | O63: 0.3 | P63: 0.2 | Q63: 0.3 | R63: 0.3 | S63: 0.4 | T63: 0.1 | U63: 0.4 | V63: 0.49261084
A64: will | B64: 0 | C64: 0.3 | D64: 0.3 | E64: 0.2 | F64: 0.07418398 | G64: 0 | H64: 0.1 | I64: 0.5 | J64: 0.5 | K64: 0.2 | L64: 0 | M64: 0.2 | N64: 0.1 | O64: 0.4 | P64: 0.2 | Q64: 0.1 | R64: 0.3 | S64: 0.1 | T64: 0.4 | U64: 0.1 | V64: 0.14074595
A65: whose | B65: 0.3 | C65: 0.1 | D65: 0.4 | E65: 0.4 | F65: 0 | G65: 0.3 | H65: 0 | I65: 0 | J65: 0.2 | K65: 0.3 | L65: 0.4 | M65: 0.3 | N65: 0 | O65: 0.2 | P65: 0.3 | Q65: 0.2 | R65: 0.1 | S65: 0.5 | T65: 0.3 | U65: 0 | V65: 0.2814919
A66: most | B66: 0 | C66: 0.2 | D66: 0.2 | E66: 0.1 | F66: 0.2967359 | G66: 0.3 | H66: 0.2 | I66: 0.1 | J66: 0.4 | K66: 0.7 | L66: 0.3 | M66: 0.3 | N66: 0.2 | O66: 0.1 | P66: 0.3 | Q66: 0.4 | R66: 0.1 | S66: 0.5 | T66: 0.3 | U66: 0.1 | V66: 0.35186487
A67: see | B67: 0.3 | C67: 0.2 | D67: 0.2 | E67: 0.3 | F67: 0.37091988 | G67: 0 | H67: 0.1 | I67: 0.2 | J67: 0.3 | K67: 0.1 | L67: 0.5 | M67: 0.2 | N67: 0.4 | O67: 0.3 | P67: 0.4 | Q67: 0.1 | R67: 0.4 | S67: 0.2 | T67: 0.4 | U67: 0.1 | V67: 0.21111894
A68: let | B68: 0 | C68: 0 | D68: 0.1 | E68: 0.3 | F68: 0.07418398 | G68: 0 | H68: 0.4 | I68: 0.4 | J68: 0.3 | K68: 0.1 | L68: 0.2 | M68: 0.1 | N68: 0.1 | O68: 0.1 | P68: 0.7 | Q68: 0.2 | R68: 0.8 | S68: 0 | T68: 0.6 | U68: 0 | V68: 0.21111894
A69: are | B69: 0.2 | C69: 0.1 | D69: 0.2 | E69: 0.1 | F69: 0.07418398 | G69: 0.3 | H69: 0.3 | I69: 0.6 | J69: 0.2 | K69: 0.5 | L69: 0.3 | M69: 0 | N69: 0.3 | O69: 0.2 | P69: 0.1 | Q69: 0 | R69: 0 | S69: 0.2 | T69: 0 | U69: 0.2 | V69: 0.07037298
A70: them | B70: 0.2 | C70: 0.1 | D70: 0.1 | E70: 0.3 | F70: 0.07418398 | G70: 0.4 | H70: 0.4 | I70: 0.3 | J70: 0.7 | K70: 0 | L70: 0.2 | M70: 0.1 | N70: 0.1 | O70: 0.4 | P70: 0.3 | Q70: 0.3 | R70: 0 | S70: 0 | T70: 0.1 | U70: 0.3 | V70: 0.07037298
A71: heart | B71: 0.1 | C71: 0.1 | D71: 0 | E71: 0.1 | F71: 0.14836796 | G71: 0 | H71: 0 | I71: 0.3 | J71: 0.1 | K71: 0.4 | L71: 0.3 | M71: 0.4 | N71: 0.6 | O71: 0.5 | P71: 0.5 | Q71: 0.2 | R71: 0.3 | S71: 0.3 | T71: 0.7 | U71: 0.1 | V71: 0
A72: sweet | B72: 0 | C72: 0 | D72: 0 | E72: 0 | F72: 0 | G72: 0 | H72: 0.4 | I72: 0.3 | J72: 0.1 | K72: 0 | L72: 0.3 | M72: 0.1 | N72: 0.3 | O72: 0.3 | P72: 0.2 | Q72: 0.6 | R72: 0.1 | S72: 0.5 | T72: 0.7 | U72: 0.1 | V72: 0
A73: how | B73: 0 | C73: 0 | D73: 0.1 | E73: 0.2 | F73: 0 | G73: 0.2 | H73: 0.1 | I73: 0.4 | J73: 0.1 | K73: 0 | L73: 0.3 | M73: 0.1 | N73: 1.1 | O73: 0.3 | P73: 0 | Q73: 0.2 | R73: 0.2 | S73: 0.4 | T73: 0.2 | U73: 0.3 | V73: 0.21111894
A74: mine | B74: 0.2 | C74: 0 | D74: 0 | E74: 0.1 | F74: 0.14836796 | G74: 0.3 | H74: 0.3 | I74: 0 | J74: 0.1 | K74: 0.1 | L74: 0.1 | M74: 0.1 | N74: 0 | O74: 0.2 | P74: 0.3 | Q74: 0.2 | R74: 0.5 | S74: 0.3 | T74: 0.2 | U74: 0.4 | V74: 0.6333568
A75: there | B75: 0.2 | C75: 0.5 | D75: 0.6 | E75: 0 | F75: 0.2967359 | G75: 0.5 | H75: 0 | I75: 0.2 | J75: 0 | K75: 0.1 | L75: 0.3 | M75: 0.1 | N75: 0.4 | O75: 0.2 | P75: 0 | Q75: 0.1 | R75: 0.2 | S75: 0 | T75: 0 | U75: 0.2 | V75: 0.14074595
A76: hath | B76: 0 | C76: 0.1 | D76: 0.1 | E76: 0.2 | F76: 0 | G76: 0.3 | H76: 0.4 | I76: 0.4 | J76: 0.2 | K76: 0.1 | L76: 0.1 | M76: 0.2 | N76: 0 | O76: 0.4 | P76: 0.1 | Q76: 0.1 | R76: 0.4 | S76: 0.1 | T76: 0 | U76: 0.2 | V76: 0.2814919
A77: still | B77: 0.1 | C77: 0 | D77: 0 | E77: 0.1 | F77: 0.07418398 | G77: 0.1 | H77: 0.1 | I77: 0 | J77: 0.1 | K77: 0.2 | L77: 0.1 | M77: 0.3 | N77: 0.1 | O77: 0.4 | P77: 0.3 | Q77: 0.1 | R77: 0.3 | S77: 0.3 | T77: 0.4 | U77: 0.1 | V77: 0.35186487
A78: can | B78: 0.1 | C78: 0 | D78: 0.3 | E78: 0.1 | F78: 0.14836796 | G78: 0.3 | H78: 0.5 | I78: 0.3 | J78: 0 | K78: 0.3 | L78: 0.1 | M78: 0.4 | N78: 0.8 | O78: 0.1 | P78: 0.3 | Q78: 0.3 | R78: 0.1 | S78: 0.2 | T78: 0.2 | U78: 0.2 | V78: 0.07037298
A79: while | B79: 0.1 | C79: 0 | D79: 0 | E79: 0 | F79: 0 | G79: 0 | H79: 0 | I79: 0 | J79: 0.2 | K79: 0.2 | L79: 0.4 | M79: 0.2 | N79: 0.3 | O79: 0.3 | P79: 0.6 | Q79: 0.1 | R79: 0.3 | S79: 0.5 | T79: 0.3 | U79: 0.3 | V79: 0.49261084
A80: oft | B80: 0 | C80: 0.2 | D80: 0 | E80: 0 | F80: 0 | G80: 0.2 | H80: 0.1 | I80: 0 | J80: 0.1 | K80: 0.1 | L80: 0.1 | M80: 0.4 | N80: 0.3 | O80: 0.2 | P80: 0.1 | Q80: 0.5 | R80: 0.2 | S80: 0.3 | T80: 0.3 | U80: 0.2 | V80: 0.35186487
A81: well | B81: 0 | C81: 0 | D81: 0 | E81: 0 | F81: 0.14836796 | G81: 0.3 | H81: 0.1 | I81: 0.3 | J81: 0.5 | K81: 0.1 | L81: 0.3 | M81: 0.1 | N81: 0.2 | O81: 0.3 | P81: 0.1 | Q81: 0.2 | R81: 0.6 | S81: 0.2 | T81: 0.1 | U81: 0.3 | V81: 0.07037298
A82: out | B82: 0.2 | C82: 0.2 | D82: 0.7 | E82: 0 | F82: 0.22255193 | G82: 0.2 | H82: 0.2 | I82: 0 | J82: 0 | K82: 0.2 | L82: 0 | M82: 0.1 | N82: 0 | O82: 0.1 | P82: 0.1 | Q82: 0.1 | R82: 0.3 | S82: 0.1 | T82: 0.2 | U82: 0.1 | V82: 0.35186487
A83: make | B83: 0 | C83: 0 | D83: 0.1 | E83: 0.3 | F83: 0 | G83: 0 | H83: 0 | I83: 0.1 | J83: 0.2 | K83: 0.2 | L83: 0.1 | M83: 0.2 | N83: 0.1 | O83: 0.3 | P83: 0.2 | Q83: 0.2 | R83: 0.1 | S83: 0.1 | T83: 0.3 | U83: 0.2 | V83: 0.35186487
A84: made | B84: 0.4 | C84: 0 | D84: 0.1 | E84: 0.4 | F84: 0.37091988 | G84: 0.2 | H84: 0 | I84: 0.2 | J84: 0.1 | K84: 0.3 | L84: 0.1 | M84: 0.1 | N84: 0.3 | O84: 0.2 | P84: 0.3 | Q84: 0.1 | R84: 0 | S84: 0.1 | T84: 0 | U84: 0.3 | V84: 0.07037298
A85: good | B85: 0 | C85: 0 | D85: 0.3 | E85: 0.2 | F85: 0.07418398 | G85: 0.4 | H85: 0.1 | I85: 0.6 | J85: 0.2 | K85: 0.3 | L85: 0.1 | M85: 0 | N85: 0.3 | O85: 0.3 | P85: 0 | Q85: 0.4 | R85: 0.2 | S85: 0.2 | T85: 0.1 | U85: 0.2 | V85: 0.07037298
A86: great | B86: 0.5 | C86: 0.3 | D86: 0.4 | E86: 0.6 | F86: 0.22255193 | G86: 0.1 | H86: 0.6 | I86: 0.1 | J86: 0.3 | K86: 0 | L86: 0 | M86: 0.5 | N86: 0.1 | O86: 0 | P86: 0 | Q86: 0 | R86: 0.1 | S86: 0 | T86: 0.1 | U86: 0 | V86: 0.07037298
A87: have | B87: 0.3 | C87: 0.2 | D87: 0.2 | E87: 0.4 | F87: 0.14836796 | G87: 0.1 | H87: 0.2 | I87: 0.2 | J87: 0 | K87: 0 | L87: 0 | M87: 0 | N87: 0 | O87: 0 | P87: 0 | Q87: 0 | R87: 0 | S87: 0 | T87: 0 | U87: 0 | V87: 0
A88: like | B88: 0.2 | C88: 0 | D88: 0.1 | E88: 0.3 | F88: 0.14836796 | G88: 0.1 | H88: 0.4 | I88: 0 | J88: 0.2 | K88: 0.3 | L88: 0.5 | M88: 0.3 | N88: 0.2 | O88: 0 | P88: 0 | Q88: 0.1 | R88: 0.1 | S88: 0.1 | T88: 0.2 | U88: 0.1 | V88: 0.07037298
A89: though | B89: 0.3 | C89: 0.1 | D89: 0.1 | E89: 0 | F89: 0 | G89: 0.1 | H89: 0.1 | I89: 0.1 | J89: 0 | K89: 0 | L89: 0.1 | M89: 0.3 | N89: 0.1 | O89: 0.3 | P89: 0.3 | Q89: 0.1 | R89: 0.3 | S89: 0.3 | T89: 0.2 | U89: 0.4 | V89: 0.21111894
A90: art | B90: 0 | C90: 0 | D90: 0.1 | E90: 0 | F90: 0.07418398 | G90: 0 | H90: 0 | I90: 0.2 | J90: 0 | K90: 0.2 | L90: 0 | M90: 0 | N90: 0.3 | O90: 0 | P90: 0.3 | Q90: 0 | R90: 0.4 | S90: 0.3 | T90: 0.1 | U90: 0 | V90: 0.35186487
A91: both | B91: 0.1 | C91: 0 | D91: 0.1 | E91: 0 | F91: 0.22255193 | G91: 0.3 | H91: 0.2 | I91: 0.3 | J91: 0 | K91: 0.2 | L91: 0.2 | M91: 0 | N91: 0.2 | O91: 0.2 | P91: 0.1 | Q91: 0.1 | R91: 0 | S91: 0.1 | T91: 0 | U91: 0.8 | V91: 0.07037298
A92: faire | B92: 0.3 | C92: 0.1 | D92: 0.1 | E92: 0.1 | F92: 0.14836796 | G92: 0.1 | H92: 0.2 | I92: 0.2 | J92: 0 | K92: 0.4 | L92: 0.3 | M92: 0 | N92: 0 | O92: 0.2 | P92: 0.1 | Q92: 0.3 | R92: 0.4 | S92: 0.2 | T92: 0.4 | U92: 0.1 | V92: 0.5629838
A93: long | B93: 0.3 | C93: 0.2 | D93: 0 | E93: 0.3 | F93: 0.14836796 | G93: 0 | H93: 0.2 | I93: 0.3 | J93: 0.4 | K93: 0 | L93: 0.1 | M93: 0.1 | N93: 0.6 | O93: 0.1 | P93: 0.2 | Q93: 0.2 | R93: 0.1 | S93: 0.1 | T93: 0.1 | U93: 0.2 | V93: 0
A94: might | B94: 0.2 | C94: 0 | D94: 0.1 | E94: 0.5 | F94: 0.2967359 | G94: 0 | H94: 0 | I94: 0.1 | J94: 0.4 | K94: 0.1 | L94: 0.1 | M94: 0.1 | N94: 0.2 | O94: 0 | P94: 0.1 | Q94: 0.6 | R94: 0 | S94: 0.2 | T94: 0 | U94: 0.2 | V94: 0.14074595
A95: our | B95: 0 | C95: 0 | D95: 0 | E95: 0 | F95: 0 | G95: 0.4 | H95: 0.4 | I95: 0.3 | J95: 0.3 | K95: 0.5 | L95: 0 | M95: 0.2 | N95: 0.1 | O95: 0 | P95: 0.3 | Q95: 0 | R95: 0 | S95: 0 | T95: 0 | U95: 0 | V95: 0.07037298
A96: shall | B96: 0 | C96: 0.9 | D96: 0.4 | E96: 0.1 | F96: 0 | G96: 0.2 | H96: 0.1 | I96: 0.2 | J96: 0.1 | K96: 0.1 | L96: 0.1 | M96: 0 | N96: 0.1 | O96: 0 | P96: 0.1 | Q96: 0.1 | R96: 0.2 | S96: 0.1 | T96: 0.1 | U96: 0.2 | V96: 0
A97: were | B97: 0.4 | C97: 0.3 | D97: 0.2 | E97: 0.1 | F97: 0.14836796 | G97: 0.1 | H97: 0.2 | I97: 0 | J97: 0.1 | K97: 0 | L97: 0.3 | M97: 0.1 | N97: 0 | O97: 0 | P97: 0.1 | Q97: 0 | R97: 0 | S97: 0 | T97: 0 | U97: 0.1 | V97: 0.07037298
A98: since | B98: 0 | C98: 0.1 | D98: 0 | E98: 0.1 | F98: 0.07418398 | G98: 0 | H98: 0.2 | I98: 0.1 | J98: 0.4 | K98: 0 | L98: 0 | M98: 0.2 | N98: 0.5 | O98: 0.3 | P98: 0.3 | Q98: 0.2 | R98: 0.3 | S98: 0.1 | T98: 0.3 | U98: 0.3 | V98: 0.07037298
A99: stella | B99: 0 | C99: 0 | D99: 0 | E99: 0 | F99: 0 | G99: 0 | H99: 0 | I99: 0 | J99: 0.1 | K99: 0.3 | L99: 0.3 | M99: 0.3 | N99: 0.2 | O99: 0.3 | P99: 0.6 | Q99: 0.2 | R99: 0.5 | S99: 0 | T99: 0.3 | U99: 0.3 | V99: 0.5629838
A100: would | B100: 0.2 | C100: 0 | D100: 0.1 | E100: 0.2 | F100: 0 | G100: 0.1 | H100: 0.1 | I100: 0.1 | J100: 0.1 | K100: 0.2 | L100: 0 | M100: 0.2 | N100: 0.1 | O100: 0 | P100: 0.1 | Q100: 0.2 | R100: 0 | S100: 0.1 | T100: 0.2 | U100: 0.2 | V100: 0.2814919
A101: must | B101: 0 | C101: 0 | D101: 0 | E101: 0.1 | F101: 0.07418398 | G101: 0 | H101: 0.2 | I101: 0.6 | J101: 0.1 | K101: 0.2 | L101: 0.1 | M101: 0 | N101: 0.3 | O101: 0.1 | P101: 0.5 | Q101: 0.1 | R101: 0 | S101: 0.4 | T101: 0.3 | U101: 0 | V101: 0.07037298
A102: say | B102: 0.1 | C102: 0 | D102: 0 | E102: 0.1 | F102: 0 | G102: 0.5 | H102: 0.2 | I102: 0.2 | J102: 0.3 | K102: 0 | L102: 0.2 | M102: 0.2 | N102: 0.2 | O102: 0.1 | P102: 0.3 | Q102: 0.1 | R102: 0.2 | S102: 0 | T102: 0.1 | U102: 0.2 | V102: 0.2814919
A103: haue | B103: 0 | C103: 0 | D103: 0 | E103: 0 | F103: 0 | G103: 0.3 | H103: 0.5 | I103: 0.7 | J103: 0.3 | K103: 0.1 | L103: 0.5 | M103: 0.1 | N103: 0 | O103: 0 | P103: 0.4 | Q103: 0 | R103: 0 | S103: 0.1 | T103: 0.4 | U103: 0.3 | V103: 0.21111894
A104: much | B104: 0.2 | C104: 0.1 | D104: 0 | E104: 0.2 | F104: 0.14836796 | G104: 0.2 | H104: 0.2 | I104: 0.4 | J104: 0.2 | K104: 0.1 | L104: 0 | M104: 0.1 | N104: 0.1 | O104: 0.2 | P104: 0 | Q104: 0.1 | R104: 0.1 | S104: 0.1 | T104: 0.2 | U104: 0.1 | V104: 0.07037298
A105: selfe | B105: 0 | C105: 0.1 | D105: 0.3 | E105: 0 | F105: 0 | G105: 0.2 | H105: 0.2 | I105: 0 | J105: 0.1 | K105: 0 | L105: 0.1 | M105: 0.1 | N105: 0.3 | O105: 0.3 | P105: 0.3 | Q105: 0.2 | R105: 0.2 | S105: 0.3 | T105: 0.4 | U105: 0.4 | V105: 0.35186487
A106: should | B106: 0.1 | C106: 0 | D106: 0.1 | E106: 0.1 | F106: 0.07418398 | G106: 0.2 | H106: 0.2 | I106: 0.1 | J106: 0.1 | K106: 0.3 | L106: 0 | M106: 0.1 | N106: 0.1 | O106: 0 | P106: 0.1 | Q106: 0.3 | R106: 0.2 | S106: 0 | T106: 0.2 | U106: 0.2 | V106: 0.21111894
A107: these | B107: 0 | C107: 0.1 | D107: 0 | E107: 0 | F107: 0.14836796 | G107: 0.4 | H107: 0.4 | I107: 0 | J107: 0.1 | K107: 0.2 | L107: 0.1 | M107: 0.1 | N107: 0.4 | O107: 0.1 | P107: 0.2 | Q107: 0.1 | R107: 0.1 | S107: 0.2 | T107: 0 | U107: 0 | V107: 0
A108: words | B108: 0 | C108: 0 | D108: 0 | E108: 0 | F108: 0 | G108: 0.1 | H108: 0 | I108: 0 | J108: 0.2 | K108: 0.1 | L108: 0.3 | M108: 0.2 | N108: 0.5 | O108: 0.1 | P108: 0.1 | Q108: 0.6 | R108: 0.3 | S108: 0.1 | T108: 0.5 | U108: 0.4 | V108: 0.07037298
A109: face | B109: 0.1 | C109: 0 | D109: 0 | E109: 0 | F109: 0.07418398 | G109: 0.2 | H109: 0.2 | I109: 0 | J109: 0.2 | K109: 0.2 | L109: 0.1 | M109: 0.4 | N109: 0.1 | O109: 0.5 | P109: 0 | Q109: 0.3 | R109: 0.1 | S109: 0.2 | T109: 0.1 | U109: 0 | V109: 0.35186487
A110: grace | B110: 0 | C110: 0.1 | D110: 0.2 | E110: 0 | F110: 0 | G110: 0 | H110: 0.1 | I110: 0 | J110: 0.1 | K110: 0.1 | L110: 0.1 | M110: 0.3 | N110: 0.1 | O110: 0.4 | P110: 0.3 | Q110: 0.3 | R110: 0 | S110: 0.3 | T110: 0.2 | U110: 0.1 | V110: 0.21111894
A111: place | B111: 0 | C111: 0.1 | D111: 0.1 | E111: 0 | F111: 0.07418398 | G111: 0.2 | H111: 0.1 | I111: 0 | J111: 0 | K111: 0.2 | L111: 0.2 | M111: 0.4 | N111: 0.1 | O111: 0.4 | P111: 0.1 | Q111: 0.1 | R111: 0 | S111: 0.1 | T111: 0.3 | U111: 0.1 | V111: 0.2814919
A112: thus | B112: 0 | C112: 0.1 | D112: 0 | E112: 0.1 | F112: 0.07418398 | G112: 0.2 | H112: 0.2 | I112: 0.3 | J112: 0.5 | K112: 0.1 | L112: 0.2 | M112: 0 | N112: 0.3 | O112: 0.2 | P112: 0.3 | Q112: 0.1 | R112: 0.2 | S112: 0.1 | T112: 0.2 | U112: 0.3 | V112: 0
A113: had | B113: 0 | C113: 0 | D113: 0.1 | E113: 0.1 | F113: 0.07418398 | G113: 0.4 | H113: 0.3 | I113: 0.3 | J113: 0.1 | K113: 0 | L113: 0.1 | M113: 0 | N113: 0.1 | O113: 0.1 | P113: 0.2 | Q113: 0 | R113: 0 | S113: 0 | T113: 0.2 | U113: 0 | V113: 0
A114: wit | B114: 0 | C114: 0 | D114: 0 | E114: 0.1 | F114: 0 | G114: 0 | H114: 0.1 | I114: 0.1 | J114: 0.1 | K114: 0.3 | L114: 0.5 | M114: 0.1 | N114: 0.6 | O114: 0.1 | P114: 0 | Q114: 0.2 | R114: 0.2 | S114: 0.1 | T114: 0.4 | U114: 0.2 | V114: 0.07037298
A115: each | B115: 0 | C115: 0 | D115: 0 | E115: 0.1 | F115: 0 | G115: 0.1 | H115: 0.1 | I115: 0 | J115: 0.1 | K115: 0.1 | L115: 0.1 | M115: 0.2 | N115: 0 | O115: 0.1 | P115: 0.2 | Q115: 0.3 | R115: 0 | S115: 0.3 | T115: 0.1 | U115: 0.2 | V115: 0.35186487
A116: night | B116: 0 | C116: 0 | D116: 0 | E116: 0 | F116: 0.07418398 | G116: 0 | H116: 0 | I116: 0 | J116: 0.1 | K116: 0 | L116: 0 | M116: 0.1 | N116: 0.1 | O116: 0.1 | P116: 0 | Q116: 0 | R116: 0.2 | S116: 0 | T116: 0 | U116: 1.4 | V116: 0.49261084
A117: other | B117: 0.1 | C117: 0 | D117: 0 | E117: 0.2 | F117: 0.44510385 | G117: 0.3 | H117: 0.3 | I117: 0.2 | J117: 0.2 | K117: 0 | L117: 0 | M117: 0 | N117: 0.1 | O117: 0.1 | P117: 0 | Q117: 0.1 | R117: 0.1 | S117: 0.2 | T117: 0 | U117: 0.1 | V117: 0.07037298
A118: TRUE | B118: 0 | C118: 0.3 | D118: 0.1 | E118: 0 | F118: 0 | G118: 0 | H118: 0 | I118: 0 | J118: 0 | K118: 0.8 | L118: 0 | M118: 0.1 | N118: 0.1 | O118: 0.1 | P118: 0.1 | Q118: 0.3 | R118: 0.2 | S118: 0.2 | T118: 0 | U118: 0.2 | V118: 0
A119: could | B119: 0 | C119: 0 | D119: 0 | E119: 0.1 | F119: 0.2967359 | G119: 0 | H119: 0 | I119: 0.1 | J119: 0.2 | K119: 0 | L119: 0.1 | M119: 0.1 | N119: 0.2 | O119: 0.1 | P119: 0 | Q119: 0.2 | R119: 0 | S119: 0.2 | T119: 0.1 | U119: 0.1 | V119: 0.14074595
A120: high | B120: 0.3 | C120: 0.1 | D120: 0 | E120: 0.1 | F120: 0.14836796 | G120: 0 | H120: 0.3 | I120: 0.1 | J120: 0 | K120: 0 | L120: 0 | M120: 0.2 | N120: 0 | O120: 0.1 | P120: 0 | Q120: 0 | R120: 0.4 | S120: 0.1 | T120: 0.2 | U120: 0 | V120: 0
A121: love | B121: 0.1 | C121: 0.1 | D121: 0.2 | E121: 0.1 | F121: 0 | G121: 0 | H121: 0 | I121: 0 | J121: 0.1 | K121: 0 | L121: 0 | M121: 0 | N121: 0 | O121: 0 | P121: 0 | Q121: 0 | R121: 0 | S121: 0 | T121: 0 | U121: 0 | V121: 0
A122: praise | B122: 0 | C122: 0.2 | D122: 0.3 | E122: 0 | F122: 0.07418398 | G122: 0 | H122: 0 | I122: 0 | J122: 0.1 | K122: 0 | L122: 0 | M122: 0 | N122: 0.5 | O122: 0.1 | P122: 0.1 | Q122: 0 | R122: 0 | S122: 0.2 | T122: 0.4 | U122: 0.3 | V122: 0.07037298
A123: whom | B123: 0 | C123: 0.1 | D123: 0.3 | E123: 0.2 | F123: 0.07418398 | G123: 0.3 | H123: 0.5 | I123: 0.1 | J123: 0 | K123: 0 | L123: 0 | M123: 0.1 | N123: 0.1 | O123: 0 | P123: 0 | Q123: 0.2 | R123: 0.1 | S123: 0 | T123: 0.1 | U123: 0.1 | V123: 0.14074595
A124: light | B124: 0 | C124: 0.1 | D124: 0 | E124: 0 | F124: 0 | G124: 0 | H124: 0.1 | I124: 0 | J124: 0 | K124: 0.3 | L124: 0.1 | M124: 0.1 | N124: 0 | O124: 0.1 | P124: 0.2 | Q124: 0 | R124: 0.4 | S124: 0.3 | T124: 0 | U124: 0.3 | V124: 0.2814919
A125: mind | B125: 0 | C125: 0 | D125: 0 | E125: 0 | F125: 0.07418398 | G125: 0.2 | H125: 0.1 | I125: 0.1 | J125: 0.1 | K125: 0.1 | L125: 0.1 | M125: 0.2 | N125: 0.1 | O125: 0.3 | P125: 0.1 | Q125: 0.5 | R125: 0 | S125: 0 | T125: 0 | U125: 0 | V125: 0.14074595
A126: thine | B126: 0 | C126: 0 | D126: 0.4 | E126: 0 | F126: 0 | G126: 0 | H126: 0.1 | I126: 0.1 | J126: 0 | K126: 0 | L126: 0.1 | M126: 0 | N126: 0.1 | O126: 0.1 | P126: 0 | Q126: 0.1 | R126: 0.3 | S126: 0 | T126: 0 | U126: 0.1 | V126: 0
A127: through | B127: 0.1 | C127: 0.2 | D127: 0.2 | E127: 0.2 | F127: 0.22255193 | G127: 0 | H127: 0 | I127: 0 | J127: 0.1 | K127: 0.1 | L127: 0.1 | M127: 0 | N127: 0.1 | O127: 0 | P127: 0.1 | Q127: 0 | R127: 0.1 | S127: 0 | T127: 0.1 | U127: 0.1 | V127: 0.07037298
A128: we | B128: 0 | C128: 0 | D128: 0.1 | E128: 0 | F128: 0 | G128: 0.2 | H128: 0 | I128: 0 | J128: 0.2 | K128: 0.3 | L128: 0 | M128: 0 | N128: 0.1 | O128: 0 | P128: 0 | Q128: 0 | R128: 0 | S128: 0.1 | T128: 0.2 | U128: 0 | V128: 0.07037298
A129: world | B129: 0.7 | C129: 0 | D129: 0.1 | E129: 0 | F129: 0.2967359 | G129: 0 | H129: 0.1 | I129: 0 | J129: 0 | K129: 0.1 | L129: 0 | M129: 0.1 | N129: 0 | O129: 0.1 | P129: 0.1 | Q129: 0 | R129: 0.2 | S129: 0 | T129: 0 | U129: 0 | V129: 0
A130: come | B130: 0 | C130: 0.1 | D130: 0.1 | E130: 0 | F130: 0.07418398 | G130: 0.3 | H130: 0.2 | I130: 0 | J130: 0 | K130: 0 | L130: 0.1 | M130: 0 | N130: 0.1 | O130: 0.3 | P130: 0 | Q130: 0.1 | R130: 0.3 | S130: 0.1 | T130: 0.1 | U130: 0 | V130: 0.07037298
A131: nature | B131: 0 | C131: 0 | D131: 0 | E131: 0 | F131: 0.14836796 | G131: 0 | H131: 0 | I131: 0.1 | J131: 0 | K131: 0.4 | L131: 0.3 | M131: 0.1 | N131: 0.2 | O131: 0.2 | P131: 0 | Q131: 0 | R131: 0.2 | S131: 0 | T131: 0.1 | U131: 0.1 | V131: 0.2814919
A132: owne | B132: 0.2 | C132: 0.1 | D132: 0.2 | E132: 0.2 | F132: 0.14836796 | G132: 0.3 | H132: 0.1 | I132: 0 | J132: 0.1 | K132: 0.1 | L132: 0 | M132: 0.2 | N132: 0 | O132: 0 | P132: 0 | Q132: 0.4 | R132: 0 | S132: 0.3 | T132: 0.1 | U132: 0.3 | V132: 0.14074595
A133: sight | B133: 0 | C133: 0 | D133: 0 | E133: 0.1 | F133: 0.44510385 | G133: 0.2 | H133: 0.2 | I133: 0.1 | J133: 0.1 | K133: 0.1 | L133: 0.1 | M133: 0.1 | N133: 0 | O133: 0 | P133: 0.1 | Q133: 0.2 | R133: 0.1 | S133: 0 | T133: 0 | U133: 0.2 | V133: 0.35186487
A134: find | B134: 0 | C134: 0 | D134: 0 | E134: 0 | F134: 0 | G134: 0 | H134: 0.1 | I134: 0.2 | J134: 0.1 | K134: 0.3 | L134: 0 | M134: 0.1 | N134: 0.2 | O134: 0.1 | P134: 0.3 | Q134: 0.3 | R134: 0.1 | S134: 0 | T134: 0 | U134: 0.1 | V134: 0.07037298
A135: am | B135: 0.2 | C135: 0 | D135: 0 | E135: 0 | F135: 0 | G135: 0.3 | H135: 0.5 | I135: 0.1 | J135: 0 | K135: 0.1 | L135: 0.1 | M135: 0 | N135: 0.1 | O135: 0.2 | P135: 0.1 | Q135: 0.1 | R135: 0.2 | S135: 0.1 | T135: 0 | U135: 0.2 | V135: 0.14074595
A136: best | B136: 0 | C136: 0 | D136: 0 | E136: 0 | F136: 0 | G136: 0 | H136: 0 | I136: 0 | J136: 0 | K136: 0.5 | L136: 0.2 | M136: 0.1 | N136: 0 | O136: 0 | P136: 0.1 | Q136: 0.1 | R136: 0.3 | S136: 0.4 | T136: 0.2 | U136: 0.1 | V136: 0.07037298
A137: day | B137: 0.1 | C137: 0 | D137: 0.1 | E137: 0 | F137: 0.07418398 | G137: 0 | H137: 0 | I137: 0 | J137: 0 | K137: 0.1 | L137: 0.1 | M137: 0 | N137: 0.3 | O137: 0.1 | P137: 0 | Q137: 0 | R137: 0.1 | S137: 0.1 | T137: 0 | U137: 1 | V137: 0.07037298
A138: life | B138: 0 | C138: 0 | D138: 0.1 | E138: 0.2 | F138: 0.07418398 | G138: 0 | H138: 0.1 | I138: 0.5 | J138: 0.1 | K138: 0 | L138: 0 | M138: 0.1 | N138: 0.3 | O138: 0.1 | P138: 0 | Q138: 0 | R138: 0.3 | S138: 0 | T138: 0.2 | U138: 0.2 | V138: 0.07037298
A139: know | B139: 0 | C139: 0 | D139: 0 | E139: 0 | F139: 0 | G139: 0 | H139: 0 | I139: 0 | J139: 0.2 | K139: 0 | L139: 0.2 | M139: 0.6 | N139: 0.1 | O139: 0.2 | P139: 0.1 | Q139: 0.2 | R139: 0.1 | S139: 0.1 | T139: 0.1 | U139: 0.2 | V139: 0.07037298
A140: many | B140: 0 | C140: 0 | D140: 0 | E140: 0 | F140: 0 | G140: 0.3 | H140: 0.3 | I140: 0.2 | J140: 0.2 | K140: 0 | L140: 0.1 | M140: 0 | N140: 0 | O140: 0 | P140: 0 | Q140: 0.1 | R140: 0 | S140: 0.1 | T140: 0 | U140: 0 | V140: 0.07037298
A141: sing | B141: 0 | C141: 0.1 | D141: 0.7 | E141: 0.1 | F141: 0 | G141: 0 | H141: 0.2 | I141: 0 | J141: 0.1 | K141: 0 | L141: 0.1 | M141: 0 | N141: 0 | O141: 0 | P141: 0 | Q141: 0.1 | R141: 0.3 | S141: 0 | T141: 0 | U141: 0 | V141: 0
A142: till | B142: 0 | C142: 0 | D142: 0 | E142: 0 | F142: 0 | G142: 0.1 | H142: 0 | I142: 0.1 | J142: 0.2 | K142: 0.3 | L142: 0.2 | M142: 0 | N142: 0.1 | O142: 0 | P142: 0.3 | Q142: 0 | R142: 0 | S142: 0 | T142: 0.2 | U142: 0 | V142: 0.14074595
A143: time | B143: 0.1 | C143: 0.1 | D143: 0 | E143: 0.4 | F143: 0.07418398 | G143: 0.1 | H143: 0.1 | I143: 0.1 | J143: 0.2 | K143: 0 | L143: 0 | M143: 0.1 | N143: 0 | O143: 0 | P143: 0 | Q143: 0 | R143: 0.1 | S143: 0.1 | T143: 0.1 | U143: 0 | V143: 0.07037298
A144: delight | B144: 0.1 | C144: 0 | D144: 0.1 | E144: 0 | F144: 0.14836796 | G144: 0.1 | H144: 0 | I144: 0 | J144: 0 | K144: 0.1 | L144: 0 | M144: 0 | N144: 0.1 | O144: 0 | P144: 0.2 | Q144: 0.3 | R144: 0.3 | S144: 0.3 | T144: 0.2 | U144: 0.1 | V144: 0.21111894
A145: die | B145: 0 | C145: 0.6 | D145: 0.4 | E145: 0.2 | F145: 0.14836796 | G145: 0 | H145: 0 | I145: 0 | J145: 0 | K145: 0 | L145: 0 | M145: 0 | N145: 0.1 | O145: 0.1 | P145: 0.1 | Q145: 0 | R145: 0 | S145: 0 | T145: 0 | U145: 0.1 | V145: 0
A146: euen | B146: 0 | C146: 0 | D146: 0 | E146: 0 | F146: 0 | G146: 0.1 | H146: 0.1 | I146: 0.2 | J146: 0.3 | K146: 0.1 | L146: 0.3 | M146: 0.1 | N146: 0.2 | O146: 0 | P146: 0.2 | Q146: 0.4 | R146: 0 | S146: 0.1 | T146: 0.2 | U146: 0.2 | V146: 0.07037298
A147: ever | B147: 0.1 | C147: 0.6 | D147: 0.7 | E147: 0.3 | F147: 0.07418398 | G147: 0.1 | H147: 0 | I147: 0 | J147: 0 | K147: 0 | L147: 0 | M147: 0 | N147: 0 | O147: 0 | P147: 0 | Q147: 0 | R147: 0 | S147: 0 | T147: 0 | U147: 0 | V147: 0
A148: giue | B148: 0 | C148: 0 | D148: 0 | E148: 0 | F148: 0 | G148: 0.2 | H148: 0.5 | I148: 0.2 | J148: 0 | K148: 0 | L148: 0 | M148: 0 | N148: 0.2 | O148: 0.1 | P148: 0.2 | Q148: 0 | R148: 0.3 | S148: 0.3 | T148: 0.1 | U148: 0.3 | V148: 0.14074595
A149: live | B149: 0 | C149: 0.4 | D149: 0.4 | E149: 0.3 | F149: 0.07418398 | G149: 0 | H149: 0.1 | I149: 0.1 | J149: 0 | K149: 0 | L149: 0 | M149: 0 | N149: 0 | O149: 0 | P149: 0 | Q149: 0 | R149: 0 | S149: 0 | T149: 0 | U149: 0 | V149: 0
A150: new | B150: 0 | C150: 0 | D150: 0.1 | E150: 0 | F150: 0 | G150: 0 | H150: 0 | I150: 0.1 | J150: 0.1 | K150: 0 | L150: 0.3 | M150: 0 | N150: 0.3 | O150: 0.1 | P150: 0.2 | Q150: 0.1 | R150: 0 | S150: 0 | T150: 0.2 | U150: 0 | V150: 0.14074595
A151: beauties | B151: 0 | C151: 0 | D151: 0 | E151: 0 | F151: 0 | G151: 0 | H151: 0.1 | I151: 0 | J151: 0 | K151: 0.3 | L151: 0.1 | M151: 0.2 | N151: 0.4 | O151: 0 | P151: 0.1 | Q151: 0 | R151: 0 | S151: 0.2 | T151: 0.4 | U151: 0.1 | V151: 0.2814919
A152: take | B152: 0 | C152: 0 | D152: 0 | E152: 0 | F152: 0 | G152: 0.1 | H152: 0.3 | I152: 0 | J152: 0.3 | K152: 0.2 | L152: 0.2 | M152: 0.1 | N152: 0 | O152: 0.2 | P152: 0.1 | Q152: 0.1 | R152: 0.2 | S152: 0.1 | T152: 0.1 | U152: 0.1 | V152: 0
A153: here | B153: 0 | C153: 0 | D153: 0.3 | E153: 0.1 | F153: 0.14836796 | G153: 0.4 | H153: 0.1 | I153: 0 | J153: 0 | K153: 0.1 | L153: 0 | M153: 0 | N153: 0.1 | O153: 0 | P153: 0.2 | Q153: 0 | R153: 0.2 | S153: 0.1 | T153: 0 | U153: 0 | V153: 0.07037298
A154: two | B154: 0 | C154: 0.1 | D154: 0 | E154: 0.2 | F154: 0.22255193 | G154: 0.4 | H154: 0.3 | I154: 0.2 | J154: 0.2 | K154: 0 | L154: 0.1 | M154: 0.1 | N154: 0 | O154: 0 | P154: 0 | Q154: 0 | R154: 0.1 | S154: 0 | T154: 0 | U154: 0 | V154: 0
A155: eye | B155: 0 | C155: 0 | D155: 0 | E155: 0 | F155: 0.07418398 | G155: 0 | H155: 0 | I155: 0.2 | J155: 0 | K155: 0 | L155: 0.1 | M155: 0 | N155: 0.1 | O155: 0 | P155: 0.2 | Q155: 0 | R155: 0.2 | S155: 0.1 | T155: 0.1 | U155: 0 | V155: 0.07037298
A156: full | B156: 0.2 | C156: 0 | D156: 0.1 | E156: 0 | F156: 0.14836796 | G156: 0.1 | H156: 0 | I156: 0 | J156: 0.2 | K156: 0.1 | L156: 0.2 | M156: 0 | N156: 0.1 | O156: 0 | P156: 0.1 | Q156: 0 | R156: 0.1 | S156: 0 | T156: 0.2 | U156: 0.1 | V156: 0.14074595
A157: ioy | B157: 0 | C157: 0 | D157: 0 | E157: 0 | F157: 0 | G157: 0 | H157: 0 | I157: 0 | J157: 0.2 | K157: 0 | L157: 0.1 | M157: 0.1 | N157: 0 | O157: 0 | P157: 0.1 | Q157: 0 | R157: 0.4 | S157: 0.3 | T157: 0.2 | U157: 0.1 | V157: 0.5629838
A158: makes | B158: 0 | C158: 0 | D158: 0 | E158: 0 | F158: 0 | G158: 0.1 | H158: 0.2 | I158: 0 | J158: 0 | K158: 0.1 | L158: 0.3 | M158: 0.2 | N158: 0 | O158: 0.1 | P158: 0.1 | Q158: 0.1 | R158: 0 | S158: 0.3 | T158: 0 | U158: 0.1 | V158: 0.2814919
A159: sad | B159: 0.2 | C159: 0 | D159: 0.2 | E159: 0.2 | F159: 0.07418398 | G159: 0 | H159: 0 | I159: 0 | J159: 0 | K159: 0 | L159: 0 | M159: 0 | N159: 0.1 | O159: 0.1 | P159: 0.1 | Q159: 0.2 | R159: 0.1 | S159: 0 | T159: 0.1 | U159: 0 | V159: 0.14074595
A160: tell | B160: 0.3 | C160: 0.1 | D160: 0 | E160: 0 | F160: 0 | G160: 0.1 | H160: 0.1 | I160: 0.2 | J160: 0 | K160: 0 | L160: 0 | M160: 0.1 | N160: 0.3 | O160: 0 | P160: 0 | Q160: 0.1 | R160: 0 | S160: 0.2 | T160: 0 | U160: 0 | V160: 0
A161: alas | B161: 0 | C161: 0 | D161: 0 | E161: 0 | F161: 0.07418398 | G161: 0.1 | H161: 0.1 | I161: 0 | J161: 0 | K161: 0.1 | L161: 0.1 | M161: 0.1 | N161: 0 | O161: 0.3 | P161: 0.1 | Q161: 0.3 | R161: 0.1 | S161: 0.1 | T161: 0.3 | U161: 0.1 | V161: 0.14074595
A162: beauty | B162: 0 | C162: 0 | D162: 0 | E162: 0 | F162: 0 | G162: 0 | H162: 0 | I162: 0.1 | J162: 0 | K162: 0 | L162: 0 | M162: 0.2 | N162: 0 | O162: 0.1 | P162: 0 | Q162: 0 | R162: 0 | S162: 0.1 | T162: 0 | U162: 0.1 | V162: 0.07037298
A163: lies | B163: 0.1 | C163: 0 | D163: 0 | E163: 0.1 | F163: 0 | G163: 0 | H163: 0 | I163: 0 | J163: 0 | K163: 0.1 | L163: 0.2 | M163: 0.1 | N163: 0.2 | O163: 0 | P163: 0 | Q163: 0 | R163: 0 | S163: 0.2 | T163: 0.2 | U163: 0 | V163: 0.07037298
A164: thoughts | B164: 0 | C164: 0 | D164: 0 | E164: 0.1 | F164: 0.07418398 | G164: 0 | H164: 0.2 | I164: 0.1 | J164: 0.1 | K164: 0.1 | L164: 0.1 | M164: 0.2 | N164: 0.1 | O164: 0 | P164: 0.2 | Q164: 0 | R164: 0 | S164: 0.2 | T164: 0.2 | U164: 0 | V164: 0.14074595
A165: too | B165: 0 | C165: 0 | D165: 0.3 | E165: 0 | F165: 0 | G165: 0 | H165: 0 | I165: 0.1 | J165: 0.1 | K165: 0.2 | L165: 0 | M165: 0.1 | N165: 0.1 | O165: 0 | P165: 0 | Q165: 0.1 | R165: 0.2 | S165: 0 | T165: 0 | U165: 0.1 | V165: 0.07037298
A166: an | B166: 0 | C166: 0.1 | D166: 0.1 | E166: 0.3 | F166: 0.22255193 | G166: 0.1 | H166: 0.1 | I166: 0.2 | J166: 0 | K166: 0.1 | L166: 0 | M166: 0 | N166: 0.1 | O166: 0 | P166: 0 | Q166: 0 | R166: 0 | S166: 0.1 | T166: 0 | U166: 0 | V166: 0
A167: being | B167: 0.1 | C167: 0.1 | D167: 0.2 | E167: 0.2 | F167: 0 | G167: 0.2 | H167: 0 | I167: 0 | J167: 0.3 | K167: 0 | L167: 0.1 | M167: 0 | N167: 0 | O167: 0.1 | P167: 0 | Q167: 0 | R167: 0.1 | S167: 0 | T167: 0 | U167: 0.1 | V167: 0
A168: desire | B168: 0 | C168: 0 | D168: 0 | E168: 0 | F168: 0.07418398 | G168: 0 | H168: 0.3 | I168: 0 | J168: 0.1 | K168: 0 | L168: 0.1 | M168: 0 | N168: 0 | O168: 0 | P168: 0.3 | Q168: 0.1 | R168: 0.1 | S168: 0.3 | T168: 0.2 | U168: 0.1 | V168: 0
A169: forth | B169: 0.2 | C169: 0.1 | D169: 0.2 | E169: 0 | F169: 0 | G169: 0.2 | H169: 0 | I169: 0 | J169: 0.1 | K169: 0.2 | L169: 0.1 | M169: 0.1 | N169: 0.1 | O169: 0.2 | P169: 0.2 | Q169: 0 | R169: 0 | S169: 0 | T169: 0 | U169: 0.1 | V169: 0
A170: hand | B170: 0.1 | C170: 0 | D170: 0 | E170: 0 | F170: 0.07418398 | G170: 0 | H170: 0 | I170: 0 | J170: 0 | K170: 0 | L170: 0 | M170: 0 | N170: 0 | O170: 0.1 | P170: 0.2 | Q170: 0 | R170: 0.1 | S170: 0.1 | T170: 0.2 | U170: 0.1 | V170: 0.14074595
A171: into | B171: 0 | C171: 0.1 | D171: 0.1 | E171: 0 | F171: 0.22255193 | G171: 0.2 | H171: 0 | I171: 0.3 | J171: 0 | K171: 0.1 | L171: 0.3 | M171: 0 | N171: 0 | O171: 0 | P171: 0 | Q171: 0.1 | R171: 0 | S171: 0 | T171: 0 | U171: 0 | V171: 0.07037298
A172: men | B172: 0.1 | C172: 0.2 | D172: 0.2 | E172: 0.4 | F172: 0 | G172: 0.4 | H172: 0.1 | I172: 0.1 | J172: 0 | K172: 0 | L172: 0 | M172: 0 | N172: 0.1 | O172: 0 | P172: 0 | Q172: 0 | R172: 0 | S172: 0 | T172: 0 | U172: 0 | V172: 0
A173: muse | B173: 0 | C173: 0 | D173: 0 | E173: 0.2 | F173: 0 | G173: 0 | H173: 0 | I173: 0 | J173: 0.2 | K173: 0 | L173: 0 | M173: 0.1 | N173: 0 | O173: 0 | P173: 0 | Q173: 0 | R173: 0.4 | S173: 0.1 | T173: 0.2 | U173: 0 | V173: 0
A174: never | B174: 0.1 | C174: 0.4 | D174: 0.2 | E174: 0.2 | F174: 0.07418398 | G174: 0 | H174: 0 | I174: 0 | J174: 0.1 | K174: 0 | L174: 0 | M174: 0 | N174: 0 | O174: 0 | P174: 0 | Q174: 0 | R174: 0 | S174: 0 | T174: 0 | U174: 0 | V174: 0
A175: only | B175: 0 | C175: 0 | D175: 0 | E175: 0 | F175: 0 | G175: 0 | H175: 0.1 | I175: 0.1 | J175: 0 | K175: 0 | L175: 0 | M175: 0.5 | N175: 0 | O175: 0 | P175: 0 | Q175: 0.1 | R175: 0.1 | S175: 0.4 | T175: 0.2 | U175: 0.2 | V175: 0.14074595
A176: upon | B176: 0 | C176: 0.2 | D176: 0.1 | E176: 0.1 | F176: 0.2967359 | G176: 0 | H176: 0 | I176: 0 | J176: 0 | K176: 0 | L176: 0 | M176: 0 | N176: 0 | O176: 0 | P176: 0 | Q176: 0 | R176: 0 | S176: 0 | T176: 0 | U176: 0 | V176: 0
A177: because | B177: 0 | C177: 0.1 | D177: 0.1 | E177: 0 | F177: 0 | G177: 0 | H177: 0.3 | I177: 0.1 | J177: 0 | K177: 0.1 | L177: 0.1 | M177: 0.3 | N177: 0.1 | O177: 0.1 | P177: 0.2 | Q177: 0 | R177: 0 | S177: 0.2 | T177: 0.1 | U177: 0.1 | V177: 0
A178: free | B178: 0 | C178: 0.1 | D178: 0.1 | E178: 0 | F178: 0 | G178: 0 | H178: 0 | I178: 0 | J178: 0 | K178: 0 | L178: 0.1 | M178: 0.2 | N178: 0 | O178: 0.1 | P178: 0.1 | Q178: 0 | R178: 0 | S178: 0 | T178: 0.1 | U178: 0 | V178: 0.07037298
A179: heaven | B179: 0.1 | C179: 0.1 | D179: 0.4 | E179: 0.4 | F179: 0.5934718 | G179: 0 | H179: 0 | I179: 0 | J179: 0 | K179: 0 | L179: 0 | M179: 0 | N179: 0 | O179: 0 | P179: 0 | Q179: 0 | R179: 0 | S179: 0 | T179: 0 | U179: 0 | V179: 0
A180: hope | B180: 0 | C180: 0.2 | D180: 0.1 | E180: 0 | F180: 0.07418398 | G180: 0 | H180: 0 | I180: 0 | J180: 0 | K180: 0 | L180: 0 | M180: 0 | N180: 0.2 | O180: 0.1 | P180: 0.1 | Q180: 0.1 | R180: 0.5 | S180: 0 | T180: 0 | U180: 0.2 | V180: 0.07037298
A181: lips | B181: 0 | C181: 0.1 | D181: 0 | E181: 0 | F181: 0 | G181: 0 | H181: 0 | I181: 0 | J181: 0 | K181: 0 | L181: 0.1 | M181: 0 | N181: 0.2 | O181: 0.2 | P181: 0.2 | Q181: 0.1 | R181: 0 | S181: 0.2 | T181: 0.5 | U181: 0.3 | V181: 0
A182: old | B182: 0 | C182: 0 | D182: 0 | E182: 0 | F182: 0 | G182: 0.1 | H182: 0.2 | I182: 0.3 | J182: 0.1 | K182: 0.1 | L182: 0.1 | M182: 0 | N182: 0 | O182: 0 | P182: 0 | Q182: 0 | R182: 0.1 | S182: 0.1 | T182: 0 | U182: 0 | V182: 0
A183: right | B183: 0.1 | C183: 0.1 | D183: 0.1 | E183: 0 | F183: 0 | G183: 0.1 | H183: 0 | I183: 0 | J183: 0 | K183: 0.1 | L183: 0.1 | M183: 0.1 | N183: 0.2 | O183: 0.1 | P183: 0.2 | Q183: 0 | R183: 0 | S183: 0.1 | T183: 0 | U183: 0.1 | V183: 0.14074595
A184: soule | B184: 0 | C184: 0 | D184: 0.2 | E184: 0.1 | F184: 0 | G184: 0.1 | H184: 0.2 | I184: 0.1 | J184: 0 | K184: 0.2 | L184: 0 | M184: 0.1 | N184: 0 | O184: 0.1 | P184: 0.1 | Q184: 0.3 | R184: 0 | S184: 0.1 | T184: 0.1 | U184: 0.1 | V184: 0.14074595
A185: stellas | B185: 0 | C185: 0 | D185: 0 | E185: 0 | F185: 0 | G185: 0 | H185: 0 | I185: 0 | J185: 0 | K185: 0.2 | L185: 0.3 | M185: 0.1 | N185: 0.3 | O185: 0.1 | P185: 0.3 | Q185: 0.2 | R185: 0.1 | S185: 0.1 | T185: 0.1 | U185: 0.1 | V185: 0.07037298
A186: thinke | B186: 0 | C186: 0.1 | D186: 0 | E186: 0 | F186: 0 | G186: 0.1 | H186: 0.1 | I186: 0.1 | J186: 0 | K186: 0.1 | L186: 0 | M186: 0.3 | N186: 0.2 | O186: 0.3 | P186: 0.1 | Q186: 0.2 | R186: 0.1 | S186: 0 | T186: 0.1 | U186: 0.2 | V186: 0
A187: age | B187: 0 | C187: 0.1 | D187: 0.2 | E187: 0.1 | F187: 0.07418398 | G187: 0 | H187: 0.1 | I187: 0 | J187: 0 | K187: 0 | L187: 0 | M187: 0 | N187: 0 | O187: 0 | P187: 0 | Q187: 0 | R187: 0 | S187: 0 | T187: 0 | U187: 0 | V187: 0
A188: away | B188: 0 | C188: 0.2 | D188: 0 | E188: 0.5 | F188: 0.07418398 | G188: 0.3 | H188: 0 | I188: 0 | J188: 0 | K188: 0.1 | L188: 0 | M188: 0 | N188: 0 | O188: 0.1 | P188: 0 | Q188: 0 | R188: 0 | S188: 0 | T188: 0.1 | U188: 0.1 | V188: 0
A189: espilus | B189: 0 | C189: 0 | D189: 0 | E189: 0 | F189: 0 | G189: 0 | H189: 1.1 | I189: 0.4 | J189: 0.4 | K189: 0 | L189: 0 | M189: 0 | N189: 0 | O189: 0 | P189: 0 | Q189: 0 | R189: 0 | S189: 0 | T189: 0 | U189: 0 | V189: 0
A190: fair | B190: 0 | C190: 0 | D190: 0 | E190: 0 | F190: 0 | G190: 0 | H190: 0 | I190: 0 | J190: 0 | K190: 0 | L190: 0 | M190: 0.3 | N190: 0.1 | O190: 0 | P190: 0.2 | Q190: 0 | R190: 0 | S190: 0 | T190: 0 | U190: 0 | V190: 0
A191: man | B191: 0 | C191: 0.4 | D191: 0 | E191: 0.2 | F191: 0.14836796 | G191: 0.1 | H191: 0 | I191: 0.3 | J191: 0 | K191: 0 | L191: 0 | M191: 0.1 | N191: 0 | O191: 0.2 | P191: 0 | Q191: 0 | R191: 0 | S191: 0 | T191: 0 | U191: 0 | V191: 0
A192: name | B192: 0.2 | C192: 0.2 | D192: 0 | E192: 0 | F192: 0 | G192: 0 | H192: 0.1 | I192: 0.1 | J192: 0 | K192: 0.2 | L192: 0.2 | M192: 0 | N192: 0.1 | O192: 0 | P192: 0.2 | Q192: 0.2 | R192: 0 | S192: 0.2 | T192: 0 | U192: 0.2 | V192: 0
A193: saw | B193: 0 | C193: 0.4 | D193: 0 | E193: 0.1 | F193: 0.44510385 | G193: 0 | H193: 0 | I193: 0 | J193: 0.1 | K193: 0 | L193: 0 | M193: 0.1 | N193: 0 | O193: 0 | P193: 0 | Q193: 0 | R193: 0.1 | S193: 0 | T193: 0.1 | U193: 0 | V193: 0.07037298
A194: shame | B194: 0 | C194: 0.1 | D194: 0 | E194: 0 | F194: 0 | G194: 0 | H194: 0 | I194: 0 | J194: 0.2 | K194: 0 | L194: 0.2 | M194: 0.2 | N194: 0 | O194: 0 | P194: 0.1 | Q194: 0 | R194: 0 | S194: 0 | T194: 0.1 | U194: 0.1 | V194: 0.14074595
A195: thought | B195: 0.1 | C195: 0.1 | D195: 0 | E195: 0.1 | F195: 0.07418398 | G195: 0 | H195: 0 | I195: 0 | J195: 0 | K195: 0.1 | L195: 0.2 | M195: 0.1 | N195: 0 | O195: 0.2 | P195: 0 | Q195: 0 | R195: 0.1 | S195: 0 | T195: 0 | U195: 0.1 | V195: 0.07037298
A196: wits | B196: 0.1 | C196: 0 | D196: 0.1 | E196: 0 | F196: 0 | G196: 0.1 | H196: 0.1 | I196: 0 | J196: 0.2 | K196: 0 | L196: 0.1 | M196: 0.3 | N196: 0.1 | O196: 0.1 | P196: 0 | Q196: 0 | R196: 0 | S196: 0.1 | T196: 0.1 | U196: 0 | V196: 0.07037298
A197: young | B197: 0 | C197: 0 | D197: 0 | E197: 0 | F197: 0 | G197: 0.1 | H197: 0.1 | I197: 0.3 | J197: 0 | K197: 0 | L197: 0.2 | M197: 0.2 | N197: 0 | O197: 0 | P197: 0 | Q197: 0.1 | R197: 0 | S197: 0.2 | T197: 0 | U197: 0.1 | V197: 0
A198: cannot | B198: 0 | C198: 0 | D198: 0 | E198: 0 | F198: 0 | G198: 0.1 | H198: 0.1 | I198: 0.1 | J198: 0 | K198: 0.1 | L198: 0 | M198: 0 | N198: 0 | O198: 0.1 | P198: 0.4 | Q198: 0.1 | R198: 0.1 | S198: 0 | T198: 0.3 | U198: 0 | V198: 0
A199: death | B199: 0.1 | C199: 0.1 | D199: 0.3 | E199: 0.1 | F199: 0.07418398 | G199: 0 | H199: 0.1 | I199: 0 | J199: 0 | K199: 0 | L199: 0 | M199: 0 | N199: 0 | O199: 0.1 | P199: 0.2 | Q199: 0 | R199: 0 | S199: 0.1 | T199: 0.1 | U199: 0.1 | V199: 0
A200: dost | B200: 0 | C200: 0.2 | D200: 0.1 | E200: 0 | F200: 0 | G200: 0 | H200: 0 | I200: 0 | J200: 0 | K200: 0 | L200: 0 | M200: 0 | N200: 0.3 | O200: 0 | P200: 0 | Q200: 0.1 | R200: 0.2 | S200: 0 | T200: 0.1 | U200: 0 | V200: 0.07037298
... 4300 more rows

Sheet Author2
A1: Writings from 1600-1650 (1) | B1: Writings between 1600-1650 (1) | C1: Writings between 1600-1650 (2) | D1: Writings between 1600-1650 (3) | E1: Writings during 1600-1650 (1) | F1: Writings during 1600-1650 (2) | G1: Writings during 1600-1650 (3) | H1: Writings during 1600-1650 (4)
A2: 2.4374177 | B2: 6.6 | C2: 5 | D2: 7.7131257 | E2: 3.1 | F2: 2.4 | G2: 2.7 | H2: 2.9255319
A3: 3.491436 | B3: 5.6 | C3: 4.2 | D3: 5.345061 | E3: 2.2 | F3: 3.9 | G3: 3.5 | H3: 3.4574468
A4: 2.0421607 | B4: 2.3 | C4: 2.7 | D4: 2.097429 | E4: 1.4 | F4: 2.7 | G4: 2.6 | H4: 2.748227
A5: 2.3056653 | B5: 1.9 | C5: 2.1 | D5: 2.165088 | E5: 2.3 | F5: 2.1 | G5: 2.5 | H5: 2.393617
A6: 1.6469039 | B6: 0.6 | C6: 1.6 | D6: 2.02977 | E6: 1.4 | F6: 1.8 | G6: 1.4 | H6: 2.0390072
A7: 0.9222661 | B7: 2.2 | C7: 2 | D7: 0.87956697 | E7: 1.9 | F7: 2.1 | G7: 2.9 | H7: 1.8617021
A8: 1.3833992 | B8: 0.2 | C8: 0.7 | D8: 0.270636 | E8: 0 | F8: 1.3 | G8: 0.9 | H8: 0.8865248
A9: 1.0540185 | B9: 0.1 | C9: 0.4 | D9: 0.33829498 | E9: 0.2 | F9: 0.5 | G9: 1 | H9: 1.1524823
A10: 0.85639 | B10: 2 | C10: 2.1 | D10: 1.894452 | E10: 1.3 | F10: 0.6 | G10: 0.6 | H10: 0.8865248
A11: 1.7786561 | B11: 1 | C11: 1.2 | D11: 0.33829498 | E11: 0.7 | F11: 1.6 | G11: 0.8 | H11: 1.0638298
A12: 1.1198946 | B12: 0.2 | C12: 0.6 | D12: 0.541272 | E12: 1 | F12: 0.7 | G12: 0.4 | H12: 0.6205674
A13: 0.85639 | B13: 1.5 | C13: 0.6 | D13: 1.150203 | E13: 1.2 | F13: 0.2 | G13: 3.2 | H13: 0.9751773
A14: 0.5928854 | B14: 0.5 | C14: 0.8 | D14: 0.270636 | E14: 0.2 | F14: 1.3 | G14: 0.8 | H14: 0.7092199
A15: 0.7246377 | B15: 0 | C15: 0 | D15: 0.744249 | E15: 1 | F15: 0.5 | G15: 0.9 | H15: 0.5319149
A16: 0.85639 | B16: 0.1 | C16: 0.1 | D16: 0.33829498 | E16: 0.5 | F16: 0.3 | G16: 0.4 | H16: 0.4432624
A17: 0.46113306 | B17: 0.2 | C17: 0.4 | D17: 0.202977 | E17: 0 | F17: 0.1 | G17: 0.5 | H17: 1.4184397
A18: 1.4492754 | B18: 0.2 | C18: 0.3 | D18: 0.744249 | E18: 0.9 | F18: 0.8 | G18: 0.9 | H18: 0.8865248
A19: 0.7905138 | B19: 0.1 | C19: 0 | D19: 0.405954 | E19: 0.8 | F19: 0.7 | G19: 0.5 | H19: 0.6205674
A20: 1.2516469 | B20: 0.1 | C20: 0.1 | D20: 0.33829498 | E20: 1.4 | F20: 0.3 | G20: 0.4 | H20: 0.4432624
A21: 0.9222661 | B21: 0.4 | C21: 0.3 | D21: 0.608931 | E21: 0.4 | F21: 0.7 | G21: 0.7 | H21: 1.3297873
A22: 0.6587615 | B22: 0.1 | C22: 0.1 | D22: 0 | E22: 0.4 | F22: 1.1 | G22: 0.4 | H22: 0.6205674
A23: 1.317523 | B23: 1.1 | C23: 0.8 | D23: 0.405954 | E23: 0.1 | F23: 0.8 | G23: 0.6 | H23: 0.4432624
A24: 0.46113306 | B24: 0.3 | C24: 0.6 | D24: 0.405954 | E24: 2.1 | F24: 0.5 | G24: 0.1 | H24: 0
A25: 0.19762845 | B25: 0.3 | C25: 0.2 | D25: 0.405954 | E25: 3.1 | F25: 1.7 | G25: 0 | H25: 0.26595744
A26: 0.26350462 | B26: 0.3 | C26: 0.1 | D26: 0.811908 | E26: 0.2 | F26: 0.1 | G26: 1.4 | H26: 0.79787236
A27: 0.7246377 | B27: 0.3 | C27: 0 | D27: 0.270636 | E27: 0.8 | F27: 0.4 | G27: 0.7 | H27: 0.26595744
A28: 0.85639 | B28: 0.9 | C28: 1.8 | D28: 0.33829498 | E28: 0.4 | F28: 0.7 | G28: 0.4 | H28: 0.6205674
A29: 0.3952569 | B29: 0.6 | C29: 0.3 | D29: 0.270636 | E29: 0.6 | F29: 0.2 | G29: 1.3 | H29: 0.26595744
A30: 0.3952569 | B30: 0.1 | C30: 0 | D30: 0 | E30: 0 | F30: 0.8 | G30: 0.2 | H30: 0.7092199
A31: 0.32938075 | B31: 0 | C31: 0.2 | D31: 0.135318 | E31: 0.1 | F31: 0.4 | G31: 1.1 | H31: 1.0638298
A32: 0.3952569 | B32: 0 | C32: 0.1 | D32: 0.067659 | E32: 0.4 | F32: 0.5 | G32: 0.3 | H32: 0.17730497
A33: 0.52700925 | B33: 0.1 | C33: 0.2 | D33: 0.67658997 | E33: 0.2 | F33: 0.6 | G33: 0.7 | H33: 1.0638298
A34: 0.26350462 | B34: 0.4 | C34: 0.6 | D34: 0.33829498 | E34: 0.4 | F34: 1.1 | G34: 0.3 | H34: 0.4432624
A35: 0.52700925 | B35: 0 | C35: 0 | D35: 0.541272 | E35: 0.5 | F35: 0 | G35: 0.1 | H35: 0.17730497
A36: 0.3952569 | B36: 0.1 | C36: 0.3 | D36: 0.135318 | E36: 0.5 | F36: 0 | G36: 0.1 | H36: 0
A37: 0.32938075 | B37: 0.2 | C37: 0.1 | D37: 0 | E37: 0.4 | F37: 0.5 | G37: 0.2 | H37: 0.35460994
A38: 0.19762845 | B38: 0 | C38: 0.4 | D38: 0.541272 | E38: 0.4 | F38: 0.2 | G38: 0.8 | H38: 0.79787236
A39: 0 | B39: 0 | C39: 0 | D39: 0 | E39: 0 | F39: 0 | G39: 0 | H39: 0
A40: 0.46113306 | B40: 0 | C40: 0.2 | D40: 0.405954 | E40: 0.3 | F40: 0.2 | G40: 0.1 | H40: 0.088652484
A41: 0.19762845 | B41: 0.9 | C41: 0.8 | D41: 0.608931 | E41: 0.5 | F41: 0.3 | G41: 0.4 | H41: 0.17730497
A42: 0.26350462 | B42: 0.3 | C42: 0.3 | D42: 0 | E42: 0.3 | F42: 1.1 | G42: 0.4 | H42: 0.35460994
A43: 0.26350462 | B43: 0 | C43: 0.1 | D43: 0.270636 | E43: 0 | F43: 0.3 | G43: 0.1 | H43: 0.79787236
A44: 0.26350462 | B44: 0.6 | C44: 0 | D44: 0.067659 | E44: 0.6 | F44: 0.2 | G44: 0 | H44: 0.26595744
A45: 0.32938075 | B45: 0.7 | C45: 0.6 | D45: 0.270636 | E45: 1.4 | F45: 0.5 | G45: 0 | H45: 0.088652484
A46: 0.46113306 | B46: 0.1 | C46: 0.1 | D46: 0.405954 | E46: 0.2 | F46: 0.3 | G46: 0.3 | H46: 0.4432624
A47: 0.32938075 | B47: 0.1 | C47: 0 | D47: 0.473613 | E47: 0 | F47: 0.4 | G47: 0.1 | H47: 0.6205674
A48: 0.065876156 | B48: 0.6 | C48: 0.6 | D48: 0.541272 | E48: 0.6 | F48: 0.2 | G48: 0.2 | H48: 0.17730497
A49: 0.3952569 | B49: 0.1 | C49: 0.4 | D49: 0.405954 | E49: 0.1 | F49: 0.1 | G49: 1 | H49: 0.35460994
A50: 0.6587615 | B50: 0 | C50: 0.3 | D50: 0.135318 | E50: 0.2 | F50: 0.2 | G50: 0.5 | H50: 0.17730497
A51: 0.19762845 | B51: 0.2 | C51: 0.2 | D51: 0.202977 | E51: 0.4 | F51: 0.3 | G51: 0.2 | H51: 0.35460994
A52: 0.32938075 | B52: 0.4 | C52: 0.3 | D52: 0 | E52: 0.7 | F52: 0.4 | G52: 0.4 | H52: 0
A53: 0.065876156 | B53: 0.1 | C53: 0.2 | D53: 0.135318 | E53: 0.1 | F53: 0.1 | G53: 1 | H53: 0.26595744
A54: 0.26350462 | B54: 0.4 | C54: 0.4 | D54: 0.135318 | E54: 0.1 | F54: 0.1 | G54: 0.1 | H54: 0.088652484
A55: 0.19762845 | B55: 0.2 | C55: 0.2 | D55: 0.33829498 | E55: 0.7 | F55: 0.6 | G55: 0.4 | H55: 0.26595744
A56: 0.6587615 | B56: 0.2 | C56: 0.5 | D56: 0.067659 | E56: 0.1 | F56: 0.2 | G56: 0.4 | H56: 0.088652484
A57: 0.32938075 | B57: 0.5 | C57: 0.6 | D57: 0.135318 | E57: 0.3 | F57: 0.5 | G57: 0.2 | H57: 0.088652484
A58: 0.13175231 | B58: 0 | C58: 0.1 | D58: 0.067659 | E58: 0.3 | F58: 0.1 | G58: 0 | H58: 0.088652484
A59: 0.19762845 | B59: 0.1 | C59: 0.1 | D59: 0 | E59: 0.5 | F59: 0.4 | G59: 0.2 | H59: 0.17730497
A60: 0.26350462 | B60: 0.5 | C60: 0.4 | D60: 0.270636 | E60: 0 | F60: 0.2 | G60: 0 | H60: 0.26595744
A61: 0.13175231 | B61: 0.1 | C61: 0.1 | D61: 0.473613 | E61: 0.1 | F61: 0.3 | G61: 0.2 | H61: 0
A62: 0.13175231 | B62: 0 | C62: 0 | D62: 0.270636 | E62: 0.2 | F62: 0.4 | G62: 0.2 | H62: 0.35460994
A63: 0.13175231 | B63: 0 | C63: 0.1 | D63: 0.135318 | E63: 0.4 | F63: 0.1 | G63: 0.1 | H63: 0.26595744
A64: 0.5928854 | B64: 0.1 | C64: 0.4 | D64: 0 | E64: 0.5 | F64: 0 | G64: 0.4 | H64: 0.088652484
A65: 0.19762845 | B65: 0.3 | C65: 0.1 | D65: 0.067659 | E65: 0.3 | F65: 0.2 | G65: 0.1 | H65: 0.4432624
A66: 0.19762845 | B66: 0 | C66: 0.2 | D66: 0 | E66: 0 | F66: 0.1 | G66: 0 | H66: 0.17730497
A67: 0.13175231 | B67: 0 | C67: 0.1 | D67: 0 | E67: 0.2 | F67: 0.3 | G67: 0.2 | H67: 0
A68: 0.065876156 | B68: 0.1 | C68: 0.5 | D68: 0.067659 | E68: 0.1 | F68: 0.4 | G68: 0.2 | H68: 0
A69: 0.46113306 | B69: 0.1 | C69: 0.2 | D69: 0.202977 | E69: 0.2 | F69: 0.2 | G69: 0.1 | H69: 0.35460994
A70: 0.065876156 | B70: 0 | C70: 0.2 | D70: 0.135318 | E70: 0 | F70: 0.2 | G70: 0.4 | H70: 0.5319149
A71: 0.065876156 | B71: 0.1 | C71: 0 | D71: 0 | E71: 0 | F71: 0 | G71: 0.2 | H71: 0.4432624
A72: 0.19762845 | B72: 0.2 | C72: 0.2 | D72: 0.067659 | E72: 0.5 | F72: 0.3 | G72: 0.2 | H72: 0.17730497
A73: 0 | B73: 0.4 | C73: 0 | D73: 0.202977 | E73: 0.3 | F73: 0 | G73: 0.1 | H73: 0.26595744
A74: 0.19762845 | B74: 0.1 | C74: 0.2 | D74: 0 | E74: 0.1 | F74: 0 | G74: 0.1 | H74: 0.5319149
A75: 0.19762845 | B75: 0.3 | C75: 0.4 | D75: 0.067659 | E75: 0.1 | F75: 0 | G75: 0.2 | H75: 0.17730497
A76: 0.19762845 | B76: 0.2 | C76: 0.4 | D76: 0.202977 | E76: 0.1 | F76: 0.1 | G76: 0.2 | H76: 0.26595744
A77: 0.52700925 | B77: 0 | C77: 0.3 | D77: 0.067659 | E77: 0.4 | F77: 0.2 | G77: 0.1 | H77: 0
A78: 0.19762845 | B78: 0 | C78: 0 | D78: 0 | E78: 0 | F78: 0.2 | G78: 0 | H78: 0
A79: 0 | B79: 0.3 | C79: 0.4 | D79: 0.067659 | E79: 0 | F79: 0 | G79: 0 | H79: 0
A80: 0.065876156 | B80: 0.2 | C80: 0.7 | D80: 0.067659 | E80: 0 | F80: 0.2 | G80: 0.1 | H80: 0
A81: 0.065876156 | B81: 0.1 | C81: 0 | D81: 0.202977 | E81: 0.2 | F81: 0.1 | G81: 0.1 | H81: 0.17730497
A82: 0.13175231 | B82: 0.4 | C82: 0.2 | D82: 0.202977 | E82: 0.1 | F82: 0 | G82: 0.1 | H82: 0.088652484
A83: 0.32938075 | B83: 0 | C83: 0 | D83: 0.067659 | E83: 0.3 | F83: 0.4 | G83: 0.2 | H83: 0.17730497
A84: 0 | B84: 0 | C84: 0.1 | D84: 0.067659 | E84: 0.1 | F84: 0.1 | G84: 0.4 | H84: 0.17730497
A85: 0.065876156 | B85: 0.1 | C85: 0.1 | D85: 0.067659 | E85: 0 | F85: 0.1 | G85: 0.1 | H85: 0
A86: 0.065876156 | B86: 0.1 | C86: 0.2 | D86: 0.067659 | E86: 0.1 | F86: 0 | G86: 0 | H86: 0
A87: 0.7246377 | B87: 0.2 | C87: 0.1 | D87: 0.202977 | E87: 0 | F87: 0.2 | G87: 0.5 | H87: 0.4432624
A88: 0.19762845 | B88: 0 | C88: 0.2 | D88: 0.067659 | E88: 0.2 | F88: 0.1 | G88: 0.2 | H88: 0.088652484
A89: 0.32938075 | B89: 0 | C89: 0.1 | D89: 0.067659 | E89: 0.1 | F89: 0.1 | G89: 0.2 | H89: 0.088652484
A90: 0.13175231 | B90: 0 | C90: 0.1 | D90: 0.270636 | E90: 0.6 | F90: 0.3 | G90: 0.3 | H90: 0.17730497
A91: 0.32938075 | B91: 0.2 | C91: 0 | D91: 0.135318 | E91: 0 | F91: 0.1 | G91: 0.1 | H91: 0.17730497
A92: 0 | B92: 0 | C92: 0 | D92: 0 | E92: 0 | F92: 0 | G92: 0 | H92: 0
A93: 0.13175231 | B93: 0.2 | C93: 0.1 | D93: 0.067659 | E93: 0 | F93: 0.1 | G93: 0.1 | H93: 0
A94: 0.065876156 | B94: 0 | C94: 0.2 | D94: 0.067659 | E94: 0.2 | F94: 0.2 | G94: 0.1 | H94: 0.088652484
A95: 0.6587615 | B95: 0 | C95: 0.1 | D95: 0.270636 | E95: 0 | F95: 0 | G95: 0.3 | H95: 0.088652484
A96: 0.3952569 | B96: 0 | C96: 0 | D96: 0.067659 | E96: 0.3 | F96: 0.3 | G96: 0 | H96: 0.088652484
A97: 0.13175231 | B97: 0 | C97: 0 | D97: 0.33829498 | E97: 0.5 | F97: 0.3 | G97: 0.6 | H97: 0.088652484
A98: 0.26350462 | B98: 0 | C98: 0 | D98: 0 | E98: 0 | F98: 0.1 | G98: 0 | H98: 0.088652484
A99: 0 | B99: 0 | C99: 0 | D99: 0 | E99: 0 | F99: 0 | G99: 0 | H99: 0
A100: 0.13175231 | B100: 0.1 | C100: 0 | D100: 0.135318 | E100: 0 | F100: 0.3 | G100: 0.2 | H100: 0.5319149
A101: 0 | B101: 0 | C101: 0 | D101: 0.135318 | E101: 0.1 | F101: 0.1 | G101: 0.2 | H101: 0.26595744
A102: 0.065876156 | B102: 0 | C102: 0 | D102: 0 | E102: 0.1 | F102: 0.2 | G102: 0.3 | H102: 0
A103: 0 | B103: 0 | C103: 0 | D103: 0 | E103: 0 | F103: 0 | G103: 0 | H103: 0
A104: 0.32938075 | B104: 0 | C104: 0 | D104: 0.067659 | E104: 0.2 | F104: 0 | G104: 0 | H104: 0.26595744
A105: 0 | B105: 0 | C105: 0 | D105: 0 | E105: 0 | F105: 0 | G105: 0 | H105: 0
A106: 0.26350462 | B106: 0 | C106: 0 | D106: 0 | E106: 0.2 | F106: 0.5 | G106: 0 | H106: 0.088652484
A107: 0.19762845 | B107: 0.1 | C107: 0.2 | D107: 0 | E107: 0 | F107: 0.1 | G107: 0.1 | H107: 0.4432624
A108: 0.13175231 | B108: 0 | C108: 0 | D108: 0.067659 | E108: 0 | F108: 0 | G108: 0.1 | H108: 0
A109: 0.13175231 | B109: 0 | C109: 0 | D109: 0 | E109: 0.2 | F109: 0 | G109: 0.1 | H109: 0.088652484
A110: 0.13175231 | B110: 0.1 | C110: 0 | D110: 0 | E110: 0 | F110: 0 | G110: 0.3 | H110: 0.26595744
A111: 0 | B111: 0 | C111: 0.1 | D111: 0 | E111: 0.2 | F111: 0.1 | G111: 0.2 | H111: 0.26595744
A112: 0 | B112: 0.1 | C112: 0.1 | D112: 0.067659 | E112: 0 | F112: 0 | G112: 0.1 | H112: 0
A113: 0.13175231 | B113: 0 | C113: 0.2 | D113: 0.202977 | E113: 0 | F113: 0.5 | G113: 0.3 | H113: 0.088652484
A114: 0.19762845 | B114: 0.1 | C114: 0 | D114: 0 | E114: 0 | F114: 0 | G114: 0 | H114: 0.088652484
A115: 0.065876156 | B115: 0 | C115: 0 | D115: 0.135318 | E115: 0.3 | F115: 0.1 | G115: 0.1 | H115: 0.26595744
A116: 0 | B116: 0.3 | C116: 0.2 | D116: 0.067659 | E116: 0 | F116: 0.1 | G116: 0 | H116: 0
A117: 0.19762845 | B117: 0.1 | C117: 0 | D117: 0.202977 | E117: 0 | F117: 0.1 | G117: 0 | H117: 0
A118: 0.26350462 | B118: 0 | C118: 0.1 | D118: 0 | E118: 0.1 | F118: 0.1 | G118: 0.1 | H118: 0.17730497
A119: 0.32938075 | B119: 0.1 | C119: 0 | D119: 0.202977 | E119: 0.1 | F119: 0 | G119: 0.2 | H119: 0.088652484
A120: 0.065876156 | B120: 0.3 | C120: 0.3 | D120: 0.202977 | E120: 0 | F120: 0.1 | G120: 0 | H120: 0
A121: 0.3952569 | B121: 0.1 | C121: 0.2 | D121: 0.067659 | E121: 0.3 | F121: 0.4 | G121: 0.5 | H121: 0.35460994
A122: 0.19762845 | B122: 0 | C122: 0.1 | D122: 0.067659 | E122: 0.2 | F122: 0 | G122: 0 | H122: 0.088652484
A123: 0.065876156 | B123: 0.2 | C123: 0 | D123: 0.067659 | E123: 0 | F123: 0.2 | G123: 0 | H123: 0.088652484
A124: 0.065876156 | B124: 0.2 | C124: 0.2 | D124: 0 | E124: 0.1 | F124: 0 | G124: 0.1 | H124: 0
A125: 0 | B125: 0.1 | C125: 0.1 | D125: 0.067659 | E125: 0.1 | F125: 0.2 | G125: 0.3 | H125: 0
A126: 0 | B126: 0 | C126: 0.1 | D126: 0.067659 | E126: 1 | F126: 0.4 | G126: 0 | H126: 0.088652484
A127: 0.065876156 | B127: 0.3 | C127: 0.4 | D127: 0.067659 | E127: 0.1 | F127: 0.1 | G127: 0 | H127: 0.088652484
A128: 0.7246377 | B128: 0 | C128: 0 | D128: 0.202977 | E128: 0.1 | F128: 0 | G128: 0.2 | H128: 0.088652484
A129: 0.13175231 | B129: 0 | C129: 0 | D129: 0.067659 | E129: 0.7 | F129: 0.2 | G129: 0 | H129: 0
A130: 0.13175231 | B130: 0.4 | C130: 0.3 | D130: 0.067659 | E130: 0 | F130: 0 | G130: 0 | H130: 0
A131: 0.065876156 | B131: 0 | C131: 0 | D131: 0.067659 | E131: 0.1 | F131: 0.1 | G131: 0 | H131: 0.26595744
A132: 0 | B132: 0 | C132: 0 | D132: 0 | E132: 0 | F132: 0 | G132: 0 | H132: 0
A133: 0 | B133: 0 | C133: 0.1 | D133: 0 | E133: 0.1 | F133: 0.1 | G133: 0 | H133: 0
A134: 0 | B134: 0.1 | C134: 0.1 | D134: 0.067659 | E134: 0 | F134: 0.3 | G134: 0.2 | H134: 0.088652484
A135: 0.13175231 | B135: 0 | C135: 0 | D135: 0 | E135: 0 | F135: 0 | G135: 0.1 | H135: 0
A136: 0.19762845 | B136: 0 | C136: 0 | D136: 0 | E136: 0 | F136: 0.1 | G136: 0.2 | H136: 0.088652484
A137: 0.065876156 | B137: 0.1 | C137: 0 | D137: 0.067659 | E137: 0.1 | F137: 0.2 | G137: 0 | H137: 0
A138: 0.065876156 | B138: 0 | C138: 0 | D138: 0.067659 | E138: 0.1 | F138: 0 | G138: 0.1 | H138: 0
A139: 0.13175231 | B139: 0 | C139: 0 | D139: 0.067659 | E139: 0 | F139: 0.1 | G139: 0.1 | H139: 0
A140: 0 | B140: 0.4 | C140: 0 | D140: 0 | E140: 0.1 | F140: 0.3 | G140: 0.3 | H140: 0.17730497
A141: 0.13175231 | B141: 0.1 | C141: 0.3 | D141: 0.202977 | E141: 0.1 | F141: 0 | G141: 0 | H141: 0
A142: 0.065876156 | B142: 0.2 | C142: 0.3 | D142: 0.067659 | E142: 0 | F142: 0 | G142: 0.2 | H142: 0.088652484
A143: 0.13175231 | B143: 0 | C143: 0 | D143: 0.067659 | E143: 0.4 | F143: 0.3 | G143: 0 | H143: 0
A144: 0.065876156 | B144: 0.1 | C144: 0 | D144: 0 | E144: 0 | F144: 0 | G144: 0 | H144: 0
A145: 0.19762845 | B145: 0 | C145: 0 | D145: 0 | E145: 0.3 | F145: 0.2 | G145: 0 | H145: 0
A146: 0 | B146: 0 | C146: 0 | D146: 0 | E146: 0 | F146: 0 | G146: 0 | H146: 0
A147: 0 | B147: 0.2 | C147: 0 | D147: 0.067659 | E147: 0 | F147: 0 | G147: 0.3 | H147: 0.088652484
A148: 0 | B148: 0 | C148: 0 | D148: 0 | E148: 0 | F148: 0 | G148: 0 | H148: 0
A149: 0.065876156 | B149: 0.5 | C149: 0.1 | D149: 0.067659 | E149: 0.2 | F149: 0.2 | G149: 0 | H149: 0
A150: 0.065876156 | B150: 0.1 | C150: 0 | D150: 0.135318 | E150: 0.2 | F150: 0 | G150: 0.2 | H150: 0.088652484
A151: 0.065876156 | B151: 0 | C151: 0 | D151: 0 | E151: 0 | F151: 0.1 | G151: 0 | H151: 0
A152: 0.19762845 | B152: 0 | C152: 0 | D152: 0 | E152: 0 | F152: 0 | G152: 0 | H152: 0.088652484
A153: 0.065876156 | B153: 0 | C153: 0 | D153: 0 | E153: 0 | F153: 0.2 | G153: 0 | H153: 0.17730497
A154: 0 | B154: 0.2 | C154: 0 | D154: 0.135318 | E154: 0 | F154: 0 | G154: 0 | H154: 0
A155: 0 | B155: 0.1 | C155: 0.3 | D155: 0 | E155: 0.3 | F155: 0 | G155: 0.1 | H155: 0.26595744
A156: 0.065876156 | B156: 0.1 | C156: 0.1 | D156: 0 | E156: 0 | F156: 0.1 | G156: 0 | H156: 0
A157: 0 | B157: 0 | C157: 0 | D157: 0 | E157: 0 | F157: 0 | G157: 0 | H157: 0
A158: 0.065876156 | B158: 0 | C158: 0 | D158: 0 | E158: 0 | F158: 0 | G158: 0.1 | H158: 0.088652484
A159: 0.065876156 | B159: 0 | C159: 0.2 | D159: 0.135318 | E159: 0 | F159: 0.1 | G159: 0 | H159: 0.088652484
A160: 0.19762845 | B160: 0 | C160: 0 | D160: 0 | E160: 0.1 | F160: 0.2 | G160: 0.1 | H160: 0.088652484
A161: 0 | B161: 0 | C161: 0 | D161: 0.067659 | E161: 0 | F161: 0 | G161: 0 | H161: 0
A162: 0 | B162: 0.1 | C162: 0 | D162: 0.067659 | E162: 0.6 | F162: 0.7 | G162: 0 | H162: 0
A163: 0.065876156 | B163: 0.2 | C163: 0 | D163: 0.135318 | E163: 0.2 | F163: 0.1 | G163: 0 | H163: 0.088652484
A164: 0.065876156 | B164: 0 | C164: 0 | D164: 0.067659 | E164: 0 | F164: 0 | G164: 0.1 | H164: 0
A165: 0.26350462 | B165: 0.1 | C165: 0 | D165: 0 | E165: 0.2 | F165: 0 | G165: 0.1 | H165: 0
A166: 0.13175231 | B166: 0 | C166: 0 | D166: 0 | E166: 0.3 | F166: 0 | G166: 0 | H166: 0.088652484
A167: 0 | B167: 0 | C167: 0 | D167: 0 | E167: 0.3 | F167: 0 | G167: 0.2 | H167: 0.088652484
A168: 0.065876156 | B168: 0 | C168: 0 | D168: 0 | E168: 0.1 | F168: 0.1 | G168: 0.1 | H168: 0
A169: 0.065876156 | B169: 0.1 | C169: 0 | D169: 0 | E169: 0 | F169: 0 | G169: 0 | H169: 0.088652484
A170: 0.19762845 | B170: 0.2 | C170: 0 | D170: 0 | E170: 0.1 | F170: 0.1 | G170: 0.1 | H170: 0.088652484
A171: 0 | B171: 0 | C171: 0.1 | D171: 0.202977 | E171: 0 | F171: 0 | G171: 0 | H171: 0.088652484
A172: 0.065876156 | B172: 0.2 | C172: 0 | D172: 0 | E172: 0 | F172: 0 | G172: 0.2 | H172: 0
A173: 0.26350462 | B173: 0 | C173: 0 | D173: 0.33829498 | E173: 0 | F173: 0 | G173: 0 | H173: 0
A174: 0.13175231 | B174: 0 | C174: 0.2 | D174: 0.135318 | E174: 0.2 | F174: 0 | G174: 0.2 | H174: 0
A175: 0.065876156 | B175: 0 | C175: 0 | D175: 0 | E175: 0.1 | F175: 0 | G175: 0 | H175: 0
A176: 0.13175231 | B176: 0 | C176: 0 | D176: 0.135318 | E176: 0.1 | F176: 0.2 | G176: 0.5 | H176: 0.088652484
A177: 0.065876156 | B177: 0 | C177: 0 | D177: 0 | E177: 0 | F177: 0 | G177: 0 | H177: 0
A178: 0.32938075 | B178: 0.3 | C178: 0 | D178: 0 | E178: 0.1 | F178: 0 | G178: 0.1 | H178: 0.088652484
A179: 0 | B179: 0 | C179: 0 | D179: 0 | E179: 0 | F179: 0.1 | G179: 0 | H179: 0.088652484
A180: 0.13175231 | B180: 0 | C180: 0 | D180: 0.067659 | E180: 0 | F180: 0 | G180: 0 | H180: 0
A181: 0 | B181: 0 | C181: 0 | D181: 0 | E181: 0 | F181: 0 | G181: 0.1 | H181: 0
A182: 0 | B182: 0.1 | C182: 0.1 | D182: 0.202977 | E182: 0.2 | F182: 0 | G182: 0.2 | H182: 0
A183: 0.065876156 | B183: 0.2 | C183: 0 | D183: 0 | E183: 0 | F183: 0.1 | G183: 0 | H183: 0
A184: 0 | B184: 0 | C184: 0 | D184: 0 | E184: 0 | F184: 0 | G184: 0 | H184: 0
A185: 0 | B185: 0 | C185: 0 | D185: 0 | E185: 0 | F185: 0 | G185: 0 | H185: 0
A186: 0 | B186: 0 | C186: 0 | D186: 0 | E186: 0 | F186: 0 | G186: 0 | H186: 0
A187: 0.19762845 | B187: 0 | C187: 0.2 | D187: 0 | E187: 0.3 | F187: 0.2 | G187: 0.3 | H187: 0
A188: 0.065876156 | B188: 0 | C188: 0 | D188: 0.135318 | E188: 0 | F188: 0.1 | G188: 0 | H188: 0
A189: 0 | B189: 0 | C189: 0 | D189: 0 | E189: 0 | F189: 0 | G189: 0 | H189: 0
A190: 0.065876156 | B190: 0.2 | C190: 0 | D190: 0.135318 | E190: 0.3 | F190: 0.1 | G190: 0.1 | H190: 0.26595744
A191: 0.13175231 | B191: 0 | C191: 0 | D191: 0 | E191: 0 | F191: 0.1 | G191: 0.1 | H191: 0
A192: 0 | B192: 0 | C192: 0 | D192: 0 | E192: 0 | F192: 0 | G192: 0 | H192: 0
A193: 0 | B193: 0 | C193: 0 | D193: 0 | E193: 0 | F193: 0.1 | G193: 0.2 | H193: 0
A194: 0 | B194: 0 | C194: 0 | D194: 0 | E194: 0.3 | F194: 0 | G194: 0 | H194: 0.35460994
A195: 0.065876156 | B195: 0 | C195: 0 | D195: 0.067659 | E195: 0 | F195: 0.2 | G195: 0.2 | H195: 0
A196: 0.19762845 | B196: 0 | C196: 0 | D196: 0 | E196: 0 | F196: 0 | G196: 0.1 | H196: 0
A197: 0.065876156 | B197: 0.1 | C197: 0 | D197: 0.135318 | E197: 0 | F197: 0 | G197: 0.1 | H197: 0.088652484
A198: 0.26350462 | B198: 0 | C198: 0 | D198: 0 | E198: 0 | F198: 0 | G198: 0 | H198: 0
A199: 0.19762845 | B199: 0 | C199: 0 | D199: 0 | E199: 0.1 | F199: 0 | G199: 0 | H199: 0
A200: 0.065876156 | B200: 0 | C200: 0 | D200: 0 | E200: 0.5 | F200: 0.1 | G200: 0 | H200: 0
... 6113 more rows

Sheet Author1Ind

Sheet Author2Ind

Sheet Test
